Workbook

Sheet Infos
A1: ok
A5: Générer des codes Ecomaison | B5: Generating Ecomaison codes
B6: Version 10.5 - August 2024 - Valid for products marketed from 1st January 2024
B7: Modifications : Correction of the VAT rates on slatted frame slats
B8: Previous modifications (Version 10.4) HPL sheet format correction Deletion of former upholstery fabric codes (replaced by upholstery textile)
B10: Who is this tool for?
B11: This tool is intended for marketers in furniture, furnishing and fit-out items and components.
B13: What is its purpose?
B14: With the service contract available since 2022, Ecomaison's product codes have been extended to include textile decoration! This file enables you to generate the product codes that will be used when declaring the eco-participation of products placed on the market with Ecomaison from January 1, 2024. These product codes enable you to classify furniture, furnishing and fittings objects and elements, and textile decoration elements according to their characteristics (those required by ADEME regulations, and those necessary for invoicing the eco-participation).
B16: How is a product code composed?
B17: To understand how this 11-digit product code is composed, click on the “Understanding the coding”
B19: How do you generate a product code?
B20: To generate a product code, click on the “Product code generator” tab
B21: Please note: To be sure of entering the correct codes when submitting your declaration, use the “Product code generator” tab and the copy-paste function, selecting “Paste special absolute value”.
B23: What is a code "small producer" ?
B24: The codes "small producers" only concern companies putting on the market 1 000 piece of furniture or less per year, for an yearly total of 15 tons.
B25: These codes correspond to batches of 10 "typical" products. Each decade started must be declared.
B26: These codes are to be declared each year or trimester, analogously than other product codes.
B29: Declaring eco-fees
B31: Consult all the information you need to make your declaration of the eco-fee
B37: 0

Sheet Understanding the coding
A1: Nomenclature of 11-digit product codes
A2: 0 | B2: How an Ecomaison code is composed :
B3: Note: the code cells in green are the new codes created following the introduction of the 2024 scale.
B9: Category code | E9: Product type code | H9: Material code | K9: Characteristic code | N9: 11th-digit
B11: 01 | C11: Living_room_lounge_dining_room_furniture | E11: 003 | F11: Height-adjustable 1-person swivel chair | H11: 00 | I11: Unknown | K11: 000 | L11: Unspecified | N11: 0 | O11: Unspecified
B12: 02 | C12: Occasional_furniture | E12: 010 | F12: Slatted frame | H12: 01 | I12: > 50% wood, wood panels, and wood derivatives | K12: 005 | L12: Set of 2
B13: 03 | C13: Bedroom_furniture | E13: 013 | F13: Electric or mechanically adjustable bed base | H13: 02 | I13: > 50% metal | K13: 006 | L13: Set of 4
B14: 04 | C14: Bedding_for_domestic_market | E14: 017 | F14: Storage units (excluding shelves) | H14: 03 | I14: Bamboo/rattan | K14: 008 | L14: Width <= 205 cm
B15: 14 | C15: Bedding_for_professional_market | E15: 018 | F15: Bedroom furniture or furnishing items (bed frame, headboard, etc.) (N.B.: excludes mattresses and bed bases) | H15: 04 | I15: > 50% biosourced materials or non-synthetic textiles | K15: 009 | L15: Width > 205 cm
B16: 05 | C16: Office_furniture | E16: 019 | F16: Desks, tables, etc. | H16: 05 | I16: Plastics | K16: 010 | L16: Width <= 120 cm
B17: 06 | C17: Kitchen_furniture | E17: 020 | F17: Shelves, panels | H17: 06 | I17: Textiles, leathers, furs | K17: 011 | L17: Width > 120 cm and ≤ 140 cm
B18: 07 | C18: Bathroom_furniture | E18: 021 | F18: Worktops | H18: 07 | I18: Glass and mirrors | K18: 012 | L18: Width > 140 cm
B19: 08 | C19: Garden_furniture | E19: 022 | F19: Hardware (drawer handles, drawer railings, etc.) | H19: 08 | I19: Inert, minerals | K19: 013 | L19: Double/twin (unit made up of two separate components) ≤ 120 cm)
B20: 09 | C20: Seats | E20: 023 | F20: Inflatable mattress | H20: 09 | I20: Foam | K20: 014 | L20: Width <= 205 cm with 1 pillow
B21: 10 | C21: Technical_furniture | E21: 024 | F21: Storage bed | H21: 10 | I21: Latex | K21: 015 | L21: Width > 205 cm with 2 pillows
B22: 11 | C22: Padded_seating_bedding_items | E22: 025 | F22: Bed legs | H22: 11 | I22: Springs | K22: 020 | L22: Must not exceed 0.5 kg
B23: 12 | C23: Decorative textile items | E23: 028 | F23: Padded mattress topper, non-bedding type | H23: 12 | I23: Other | K23: 021 | L23: Between 0.5 kg and < 1 kg
E24: 029 | F24: Duvet/Quilt | H24: 13 | I24: Natural stuffing (down, wool, etc.) | K24: 022 | L24: Between 1 kg and < 2 kg
E25: 030 | F25: Sleeping bag | H25: 14 | I25: Synthetic stuffing (foam, polyester, etc.) | K25: 023 | L25: Between 2 kg and < 5 kg
E26: 031 | F26: Pillow/Bolster | H26: 15 | I26: Composites and compact | K26: 024 | L26: Between 5 kg and < 10 kg
E27: 032 | F27: Cushion, seat cushion | H27: 16 | I27: Artificial stone | K27: 025 | L27: Between 10 kg and < 20 kg
E28: 033 | F28: Other padded seating and bedding items | H28: 17 | I28: Cement, concrete | K28: 026 | L28: Between 20 kg and < 30 kg
E29: 034 | F29: Furniture for pets | H29: 18 | I29: Ceramic | K29: 027 | L29: Between 30 kg and < 40 kg
E30: 036 | F30: Protective cover | H30: 19 | I30: Paper, cardboard | K30: 028 | L30: Between 40 kg and < 60 kg
E31: 040 | F31: 1-person seat without structure | H31: 20 | I31: Min. 75% certified solid wood | K31: 029 | L31: Between 60 kg and < 100 kg
E32: 041 | F32: 2-person seat without structure | H32: 21 | I32: Min. 75% uncertified solid wood | K32: 030 | L32: Between 100 kg and < 150 kg
E33: 042 | F33: Seat without structure for more than 2 people | H33: 22 | I33: Min. 75% metal | K33: 031 | L33: Between 150 kg and < 200 kg
E34: 043 | F34: 1-person non-convertible seat | H34: 23 | I34: Min. 75% mix of certified solid wood and metal | K34: 032 | L34: Between 200 kg and < 250 kg
E35: 044 | F35: 2-person non-convertible seat | H35: 24 | I35: Particleboard and/or wood and/or metal, more than 75% | K35: 033 | L35: Between 250 kg and < 300 kg
E36: 045 | F36: Non-convertible seat for more than 2 people | H36: 25 | I36: Particleboard, more than 75% | K36: 034 | L36: Between 300 kg and < 400 kg
E37: 046 | F37: 1-person convertible seat | H37: 26 | I37: Plywood panel, more than 75% | K37: 035 | L37: Between 400 kg and < 500 kg
E38: 047 | F38: 2-person convertible seat | H38: 27 | I38: OSB panel, more than 75% | K38: 036 | L38: Between 500 kg and < 600 kg
E39: 048 | F39: Convertible seat for more than 2 people | H39: 28 | I39: Over 90% metal | K39: 037 | L39: Between 600 kg and < 700 kg
E40: 049 | F40: 1-person electric/adjustable seat | H40: 40 | I40: Assembly of synthetic rubber or latex >50% with other materials | K40: 038 | L40: Between 700 kg and < 800 kg
E41: 050 | F41: 2-person electric/adjustable seat | H41: 41 | I41: Plastics (monoresin) >90% | K41: 039 | L41: Between 800 kg and < 900 kg
E42: 051 | F42: Electric/adjustable seat for more than 2 people | H42: 42 | I42: Polyethylene terephthalate (PET) >90% | K42: 040 | L42: Between 900 kg and < 1,000 kg
E43: 052 | F43: Other accessory, seat part, hammock stand | H43: 45 | I43: PE or PP or PP/PE blend >90% | K43: 041 | L43: Between 1,000 kg and < 1,100 kg
E44: 053 | F44: Inflatable seat | H44: 46 | I44: ABS >90% | K44: 042 | L44: Between 1,100 kg and < 1,200 kg
E45: 060 | F45: Mattress thickness ≤ 10 cm | H45: 47 | I45: Polystyrene >90% | K45: 043 | L45: Between 1,200 kg and < 1,300 kg
E46: 061 | F46: Mattress thickness > 10 cm | H46: 48 | I46: PVC >90% | K46: 044 | L46: Between 1,300 kg and < 1,400 kg
E47: 062 | F47: Bed base (excluding relaxation bed base and storage bed) | H47: 49 | I47: Synthetic rubber >90% | K47: 045 | L47: Between 1,400 kg and < 1,500 kg
E48: 038 | F48: Shelves (cut to size) | H48: 52 | I48: Massif and certified assimilates >90% | K48: 046 | L48: Between 1,500 kg and < 1,600 kg
E49: 039 | F49: Panels (cut to size) | H49: 53 | I49: Over 90% solid wood or similar | K49: 047 | L49: Between 1,600 kg and < 1,700 kg
E50: 070 | F50: Decorative rugs | H50: 55 | I50: More than 90% bio-sourced materials or non-synthetic textiles | K50: 048 | L50: Between 1,700 kg and < 1,800 kg
E51: 071 | F51: Functional mats / doormats / outdoors mat | H51: 59 | I51: Particleboard or OSB >90% certified | K51: 049 | L51: Between 1,800 kg and < 1,900 kg
E52: 072 | F52: Interior textile blinds / curtains / net curtains | H52: 60 | I52: Particleboard or OSB >75% certified | K52: 050 | L52: Between 1,900 kg and < 2,000 kg
E53: 073 | F53: Removable carpets | H53: 61 | I53: Particleboard or OSB >90% | K53: 051 | L53: Over 2,000 kg
E54: 074 | F54: Other small decorative items (macramé, decorative garlands, etc.) | H54: 62 | I54: Wood derivatives >90% | K54: 052 | L54: Between 2 kg and < 3 kg
E55: 075 | F55: Accessories for decorative textile items (rods, etc.) | H55: 63 | I55: Natural rubber >90% | K55: 053 | L55: Between 3 kg and < 5 kg
E56: 076 | F56: Decorative wall frames | H56: 64 | I56: Natural rubber >50% | K56: 054 | L56: Between 5 kg and < 7 kg
E57: 077 | F57: Headboard | H57: 65 | I57: More than 90% synthetic materials or fibers | K57: 055 | L57: Between 7 kg and < 10 kg
E58: 078 | F58: Upholstery fabric, width <100cm | H58: 66 | I58: Textile and padding in polyester >90% | K58: 056 | L58: Between 10 kg and < 15 kg
E59: 079 | F59: Upholstery fabric, width between 100cm and 200cm inclusive | H59: 67 | I59: More than 50% synthetic materials or fibers | K59: 057 | L59: Between 15 kg and < 20 kg
E60: 080 | F60: Upholstery fabric, width >200cm | H60: 68 | I60: Glass >90% | K60: 058 | L60: Between 20 kg and < 25 kg
E61: 081 | F61: Bed base and headboard | H61: 69 | I61: Mirror >90% | K61: 059 | L61: Between 25 kg and < 30 kg
E62: 082 | F62: Boxes <1m high | H62: 70 | I62: More than 50% glass and metal assembly | K62: 060 | L62: Between 40 kg and < 50 kg
E63: 083 | F63: Boxes >=1m high | H63: 71 | I63: Over 50% glass assembly with Inert | K63: 061 | L63: Between 50 kg and < 60 kg
E64: 084 | F64: Cupboard doors | H64: 72 | I64: More than 50% glass assembly with wood or wood derivatives | K64: 062 | L64: Between 60 kg and < 70 kg
E65: 085 | F65: Slatted frame slats | H65: 73 | I65: More than 50% glass assembly with plastic | K65: 063 | L65: Between 70 kg and < 80 kg
E66: 086 | F66: Melamine surfaced particleboard (MSPB) | H66: 74 | I66: Concrete >90% | K66: 064 | L66: Between 80 kg and < 90 kg
E67: 087 | F67: HPL (High Pressurized Laminated) laminate sheet | H67: 75 | I67: Gypsum >90% | K67: 065 | L67: Between 90 kg and < 100 kg
E68: 088 | F68: MDF (Medium Density Fiber) panel, raw, lacquered, melamine-coated | H68: 76 | I68: Gypsum >50% | K68: 066 | L68: Between 100 kg and < 120 kg
E69: 089 | F69: Solid wood and similar panels (three-ply) | H69: 77 | I69: Over 90% rock wool | K69: 067 | L69: Between 120 kg and < 150 kg
H70: 78 | I70: Over 90% glass wool | K70: 068 | L70: Between 300 kg and < 350 kg
H71: 79 | I71: Assembling glass wool or rock wool over 50% and other materials | K71: 069 | L71: Between 350 kg and < 400 kg
H72: 80 | I72: Over 90% bituminous membranes | K72: 070 | L72: Between 400 kg and < 450 kg
H73: 81 | I73: Assemblies with a combined wood, wood by-products and metal composition exceeding 90%. | K73: 071 | L73: Between 450 kg and < 500 kg
H74: 82 | I74: Assembly of 3 or more materials without one material more than 50%. | K74: 072 | L74: Between 500 kg and < 550 kg
H75: 83 | I75: Liquid products, incl. hazardous >90% | K75: 073 | L75: Between 550 kg and < 600 kg
H76: 84 | I76: Slate >90% | K76: 074 | L76: Between 600 kg and < 650 kg
H77: 85 | I77: Aggregates >90% (excluding stone) | K77: 075 | L77: Between 650 kg and < 700 kg
H78: 86 | I78: Limestone >90% | K78: 076 | L78: Between 700 kg and < 750 kg
H79: 87 | I79: Lava >90% | K79: 077 | L79: Between 750 kg and < 800 kg
H80: 88 | I80: Bituminous mix >90% | K80: 078 | L80: Between 800 kg and < 850 kg
H81: 89 | I81: Baked or unbaked clay >90% | K81: 079 | L81: Between 850 kg and < 900 kg
H82: 90 | I82: Cement >90% | K82: 080 | L82: Between 900 kg and < 950 kg
H83: 91 | I83: Granite >90% | K83: 081 | L83: Between 950 kg and < 1,000 kg
H84: 92 | I84: Mortar >90% | K84: 082 | L84: Over 1,000 kg
H85: 93 | I85: Additives >90% | K85: 091 | L85: Strictly < 1 kg
H86: 94 | I86: Sandstone >90% | K86: 092 | L86: ≥ 1 kg and < 3 kg
H87: 95 | I87: Lime >90% | K87: 093 | L87: > 3 kg
H88: 96 | I88: Cellular concrete >90% | K88: 901 | L88: from 0 to 60cm length, width above 25cm
H89: 97 | I89: Ceramics >90% | K89: 902 | L89: from 60 to 120cm length, width above 25cm
H90: 98 | I90: Artificial stone >90% | K90: 903 | L90: over 120cm length, width above 25cm
H91: 99 | I91: Wood >50% without glass or inert | K91: 904 | L91: Unit cut
K92: 905 | L92: Linear Meter (fabric)
K93: 906 | L93: more than 120cm in length, width above 25cm
K94: 907 | L94: Die-cut unit
K95: 908 | L95: Linear meter (fabric)
K96: 909 | L96: sqm
K97: 094 | L97: width > 140 cm and <= 160 cm
K98: 095 | L98: width > 160 cm and <= 180 cm
K99: 096 | L99: width > 180 cm
K100: 097 | L100: from 0 to 60cm in length
K101: 098 | L101: from 60 to 120cm in length
K102: 099 | L102: from 120 to 180cm in length
K103: 100 | L103: from 180 to 240cm in length
K104: 101 | L104: over 240cm in length
K105: 102 | L105: thickness <=12 mm
K106: 103 | L106: thickness >12 mm and <=22 mm
K107: 104 | L107: thickness >22 mm
K108: 105 | L108: thickness < 6 mm
K109: 106 | L109: Strictly less than 0.25 kg
K110: 107 | L110: Between 0.25 kg and 0.5 kg excluded

Sheet Product code generator
A1: Product code generator | H1: MASQUER | I1: MASQUER | J1: MASQUER | K1: MASQUER | L1: MASQUER_F | M1: MASQUER_F | N1: MASQUER_F
A2: Select the elements in the brown boxes
A4: 1 - Choose a category: | G4: Code: | H4: =LEFT(A4,1)+0 -> 1
G6: =IF(D6="","",VLOOKUP(D6,Masked_lists!$B$3:$C$15,2,FALSE)) ->  | I6: =IF(G6="","",IF(OR(G6="",G6="11",G6="09"),"Vide",IF(OR(G10="010",G10="025",G10="085",G10="060",G10="061",G10="023"),"TranchePoids",IF(OR(G6="04",G6="14"),"Literie","TranchePoids")))) -> 
A8: =H4+1&" - Choose a product type : " -> 2 - Choose a product type : | H8: =LEFT(A8,1)+0 -> 2
G10: =IF(D10="","",VLOOKUP(D10,Masked_lists!$F$3:$G$61,2,FALSE)) ->  | H10: _ | I10: =CONCATENATE(H10,G10,) -> _ | J10: _ | K10: =CONCATENATE(J10,I10) -> __ | L10: =IF(AND(G6="02",G10="021"),"d_021","") -> 
D11: =IF(OR(G10="086",G10="087",G10="088",G10="089"),"Price list applicable only to the sale of full-size panels (as a guide, factory format = 280x207mm for PPSM, MDF and solid wood or 305x130mm for HPL) invoiced by m².","") -> 
A12: =H8+1&IF(OR(G6="09",G6="04",G6="14")," - Indicate the presence of padding : "," - Choose a majority material by weight or indicate the presence of padding ") -> 3 - Choose a majority material by weight or indicate the presence of padding | H12: =LEFT(A12,1)+0 -> 3
I14: =VLOOKUP(D14,Masked_lists!$AK$2:$AL$3,2,FALSE) ->  | J14: =IF(AND(I14="Abs",I6="Literie"),"Abs_Lit",IF(AND(I14="Pre",I6="Literie"),"Pre_Lit",I14)) -> 
A16: =IFERROR(IF(I14="No","Indicate the major material :","indicate the padding :"),"") ->  | G16: =IF(D16="","",VLOOKUP(D16,Masked_lists!$K$3:$L$83,2,FALSE)) ->  | L16: =MATCH(N16,#REF!,) ->  | M16: =COUNTIF(#REF!,'Product code generator'!N16) ->  | N16: =N10&"&"&D10 -> &
D17: =IF(AND(OR(G6="01",G6="02",G6="03",G6="05",G6="06",G6="07",G6="08",G6="10",G6="11"),OR(G16="20",G16="21",G16="22",G16="23",G16="24",G16="25",G16="60",G16="41",G16="42",G16="45",G16="46",G16="47",G16="49")), "Please note! The presence of PVC or an inert material such as glass or stone in a piece of furniture does not qualify for this code! Please code wood as 01-wood, panels, metal as 02-metal and plastic as 05-plastics.", "") -> 
A18: =H12+1&IF(L2="CLASSIQUE"," - Choose the characteristic (size, number of places or weight) according to the type of product: ",IF(N19="à l'unité"," - Choose the product size"," - Choose the "&N19&" of the product : ")) -> 4 - Choose the of the product :
H19: =LEFT(A19,1)+0 -> 
M20: Type dim : | N20: =IF(ISERROR(L21),"dimension",OFFSET(#REF!,'Product code generator'!L21,0)) -> dimension
G21: =IF(D21="","",VLOOKUP(D21,Masked_lists!$O$3:$P$102,2,FALSE)) ->  | I21: =D6&"&"&SUBSTITUTE(MID(D10,7,100000),#REF!,"")&"&"&D16&"&"&D21 ->  | J21: =MATCH(LEFT(I21,255),#REF!,0) ->  | K21: =COUNTIF(#REF!,LEFT('Product code generator'!$I$21,255)) ->  | L21: =MATCH(N21,#REF!,0) ->  | M21: =COUNTIF(#REF!,N21) ->  | N21: =N16&"&"&D16&"&"&D21 -> &&&
A22: Resulting in product code:
D24: =IF(OR(D21="",D16="",D10="",D6=""),"",CONCATENATE(G6,G10,G16,G21,0)) -> 
D25: =IFERROR(VLOOKUP('Product code generator'!$D$24,Tableau13[[Product code]:[Eco part Code]],2,FALSE),"") -> 
G27: and its associated eco-fee code:
A29: you can configure this | B29: VAT rate | D29: =IFERROR(VLOOKUP('Product code generator'!$D$24,Tableau13[[#All],[Product code]:[Eco-fee ex VAT]],3,FALSE),"") ->  | E29: =IF(OR(G21="909",G21="102",G21="103",G21="104",G21="105"),"/ sqm","/ Item") -> / Item | G29: =IFERROR(VLOOKUP('Product code generator'!$D$24,Tableau13[[Product code]:[Eco-fee inc VAT]],4,FALSE),"") -> 
B30: 0.2 | D30: =IF(D29="","",IF(B30=20%,VLOOKUP('Product code generator'!$D$24,Tableau13[[Product code]:[Eco-fee inc VAT]],5,FALSE),D29*(1+$B$30))) ->  | E30: =IF(OR(G21="909",G21="102",G21="103",G21="104",G21="105"),"/ sqm","/ Item") -> / Item
A36: NB :
A37: Remember to click on “RESET” before generating a new code. the eco-fee amount including VAT is given by way of information only; the applicable pricing scale is the excluding VAT scale.

Sheet Masked_lists (hidden)
A1: Category code | E1: Product type code | J1: Material code | N1: Characteristic code | R1: Determination of materials | V1: Determination of materials | Y1: s | AI1: Taux de TVA | AK1: Rembourrage | AN1: Pre
AI2: 0.2 | AK2: Presence of padding | AL2: Pre | AN2: Unknown
A3: 01 | B3: Living_room_lounge_dining_room_furniture | C3: =A3 -> 01 | E3: 003 | F3: Height-adjustable 1-person swivel chair | G3: =E3 -> 003 | H3: Siège | J3: 00 | K3: Unknown | L3: =J3 -> 00 | N3: 000 | O3: Unspecified | P3: =N3 -> 000 | R3: 01 | S3: Living_room_dining_room_furniture | V3: Dtext | Y3: Dtext | AI3: 0.1 | AK3: No padding | AL3: Abs | AN3: Natural stuffing (down, wool, etc.)
A4: 02 | B4: Occasional_furniture | C4: =A4 -> 02 | E4: 010 | F4: Slatted frame | G4: 010 | H4: Sommier | J4: 01 | K4: > 50% wood, wood panels, and wood derivatives | L4: 01 | N4: 005 | O4: Set of 2 | P4: 005 | R4: 017 | S4: =IFERROR(VLOOKUP(R4,$E$3:$F$56,2,FALSE),"") -> Storage units (excluding shelves) | V4: 070 | Y4: 070 | AI4: 0.085 | AN4: Synthetic stuffing (foam, polyester, etc.)
A5: 03 | B5: Bedroom_furniture | C5: 03 | E5: 013 | F5: Electric or mechanically adjustable bed base | G5: 013 | H5: Sommier | J5: 02 | K5: > 50% metal | L5: 02 | N5: 006 | O5: Set of 4 | P5: 006 | R5: 019 | S5: =IFERROR(VLOOKUP(R5,$E$3:$F$56,2,FALSE),"") -> Desks, tables, etc. | V5: 04 | W5: =IFERROR(VLOOKUP(V5,$J$3:$K$83,2,FALSE),"") -> > 50% biosourced materials or non-synthetic textiles | Y5: 091 | Z5: =IFERROR(VLOOKUP(Y5,$N$3:$O$96,2,FALSE),"") -> Strictly < 1 kg
A6: 04 | B6: Bedding_for_domestic_market | C6: 04 | E6: 017 | F6: Storage units (excluding shelves) | G6: 017 | H6: Meubles | J6: 03 | K6: Bamboo/rattan | L6: 03 | N6: 008 | O6: Width <= 205 cm | P6: 008 | R6: 020 | S6: =IFERROR(VLOOKUP(R6,$E$3:$F$56,2,FALSE),"") -> Shelves, panels | V6: 12 | W6: =IFERROR(VLOOKUP(V6,$J$3:$K$83,2,FALSE),"") -> Other | Y6: 092 | Z6: =IFERROR(VLOOKUP(Y6,$N$3:$O$96,2,FALSE),"") -> ≥ 1 kg and < 3 kg | AN6: Abs
A7: 14 | B7: Bedding_for_professional_market | C7: 14 | E7: 018 | F7: Bedroom furniture or furnishing items (bed frame, etc.) (N.B.: excludes mattresses, headboards and bed bases) | G7: 018 | H7: Meubles | J7: 04 | K7: > 50% biosourced materials or non-synthetic textiles | L7: 04 | N7: 009 | O7: Width > 205 cm | P7: 009 | R7: 021 | S7: =IFERROR(VLOOKUP(R7,$E$3:$F$56,2,FALSE),"") -> Worktops | V7: 55 | W7: =IFERROR(VLOOKUP(V7,$J$3:$K$83,2,FALSE),"") -> More than 90% bio-sourced materials or non-synthetic textiles | Y7: 093 | Z7: > 3 kg | AN7: > 50% wood, wood panels, and wood derivatives
A8: 05 | B8: Office_furniture | C8: 05 | E8: 019 | F8: Desks, tables, etc. | G8: 019 | H8: Meubles | J8: 05 | K8: Plastics | L8: 05 | N8: 010 | O8: Width <= 120 cm | P8: 010 | R8: 022 | S8: =IFERROR(VLOOKUP(R8,$E$3:$F$56,2,FALSE),"") -> Hardware (drawer handles, drawer railings, etc.) | V8: 65 | W8: =IFERROR(VLOOKUP(V8,$J$3:$K$83,2,FALSE),"") -> More than 90% synthetic materials or fibers | Y8: 909 | Z8: sqm | AN8: > 50% metal
A9: 06 | B9: Kitchen_furniture | C9: 06 | E9: 020 | F9: Shelves, panels | G9: 020 | H9: Meubles | J9: 06 | K9: Textiles, leathers, furs | L9: 06 | N9: 011 | O9: Width > 120 cm and ≤ 140 cm | P9: 011 | R9: 02 | S9: Side_furniture | V9: 67 | W9: =IFERROR(VLOOKUP(V9,$J$3:$K$83,2,FALSE),"") -> More than 50% synthetic materials or fibers | Y9: 071 | AN9: Bamboo/rattan
A10: 07 | B10: Bathroom_furniture | C10: 07 | E10: 021 | F10: Worktops | G10: 021 | H10: Meubles | J10: 07 | K10: Glass and mirrors | L10: 07 | N10: 012 | O10: Width > 140 cm | P10: 012 | R10: 017 | S10: =IFERROR(VLOOKUP(R10,$E$3:$F$56,2,FALSE),"") -> Storage units (excluding shelves) | V10: 071 | Y10: 091 | Z10: Strictly < 1 kg | AN10: > 50% biosourced materials or non-synthetic textiles
A11: 08 | B11: Garden_furniture | C11: 08 | E11: 022 | F11: Hardware (drawer handles, drawer railings, etc.) | G11: 022 | H11: Meubles | J11: 08 | K11: Inert, minerals | L11: 08 | N11: 013 | O11: Double/twin (unit made up of two separate components) ≤ 120 cm) | P11: 013 | R11: 019 | S11: Desks, tables, etc. | V11: 04 | W11: =IFERROR(VLOOKUP(V11,$J$3:$K$83,2,FALSE),"") -> > 50% biosourced materials or non-synthetic textiles | Y11: 092 | Z11: ≥ 1 kg and < 3 kg | AN11: Plastics
A12: 09 | B12: Seats | C12: 09 | E12: 023 | F12: Inflatable mattress | G12: 023 | H12: Matelas | J12: 09 | K12: Foam | L12: 09 | N12: 014 | O12: Width <= 205 cm with 1 pillow | P12: 014 | R12: 020 | S12: Shelves, panels | V12: 12 | W12: =IFERROR(VLOOKUP(V12,$J$3:$K$83,2,FALSE),"") -> Other | Y12: 093 | Z12: > 3 kg | AN12: Inert, minerals
A13: 10 | B13: Technical_furniture | C13: 10 | E13: 024 | F13: Storage bed | G13: 024 | H13: Sommier | J13: 10 | K13: Latex | L13: 10 | N13: 015 | O13: Width > 205 cm with 2 pillows | P13: 015 | R13: 021 | S13: Worktops | V13: 55 | W13: =IFERROR(VLOOKUP(V13,$J$3:$K$83,2,FALSE),"") -> More than 90% bio-sourced materials or non-synthetic textiles | Y13: 909 | Z13: sqm | AN13: Other
A14: 11 | B14: Padded_seating_bedding_items | C14: 11 | E14: 025 | F14: Bed legs | G14: 025 | H14: Pied de lit | J14: 11 | K14: Springs | L14: 11 | N14: 020 | O14: Must not exceed 0.5 kg | P14: 020 | R14: 022 | S14: Hardware (drawer handles, drawer railings, etc.) | V14: 65 | W14: =IFERROR(VLOOKUP(V14,$J$3:$K$83,2,FALSE),"") -> More than 90% synthetic materials or fibers | Y14: 072 | AN14: Composites and compact
A15: 12 | B15: Decorative_textile_items | C15: 12 | E15: 028 | F15: Padded mattress topper, non-bedding type | G15: 028 | H15: PRAC | J15: 12 | K15: Other | L15: 12 | N15: 021 | O15: Between 0.5 kg and < 1 kg | P15: 021 | R15: 034 | S15: Furniture for pets | V15: 67 | W15: =IFERROR(VLOOKUP(V15,$J$3:$K$83,2,FALSE),"") -> More than 50% synthetic materials or fibers | Y15: 091 | Z15: Strictly < 1 kg | AN15: Artificial stone
E16: 029 | F16: Duvet/Quilt | G16: 029 | H16: PRAC | J16: 13 | K16: Natural stuffing (down, wool, etc.) | L16: 13 | N16: 022 | O16: Between 1 kg and < 2 kg | P16: 022 | R16: 036 | S16: Protective cover | V16: 072 | Y16: 092 | Z16: ≥ 1 kg and < 3 kg | AN16: Cement, concrete
E17: 030 | F17: Sleeping bag | G17: 030 | H17: PRAC | J17: 14 | K17: Synthetic stuffing (foam, polyester, etc.) | L17: 14 | N17: 023 | O17: Between 2 kg and < 5 kg | P17: 023 | R17: 078 | S17: Upholstery fabric, width <100cm | V17: 04 | W17: =IFERROR(VLOOKUP(V17,$J$3:$K$83,2,FALSE),"") -> > 50% biosourced materials or non-synthetic textiles | Y17: 093 | Z17: > 3 kg | AN17: Ceramic
E18: 031 | F18: Pillow/Bolster | G18: 031 | H18: PRAC | J18: 15 | K18: Composites and compact | L18: 15 | N18: 024 | O18: Between 5 kg and < 10 kg | P18: 024 | R18: 079 | S18: Upholstery fabric, width between 100cm and 200cm inclusive | V18: 12 | W18: =IFERROR(VLOOKUP(V18,$J$3:$K$83,2,FALSE),"") -> Other | Y18: 909 | Z18: sqm | AN18: Paper, cardboard
E19: 032 | F19: Cushion, seat cushion | G19: 032 | H19: PRAC | J19: 16 | K19: Artificial stone | L19: 16 | N19: 025 | O19: Between 10 kg and < 20 kg | P19: 025 | R19: 080 | S19: Upholstery fabric, width >200cm | V19: 55 | W19: =IFERROR(VLOOKUP(V19,$J$3:$K$83,2,FALSE),"") -> More than 90% bio-sourced materials or non-synthetic textiles | Y19: 073 | AN19: Min. 75% certified solid wood
E20: 033 | F20: Other padded seating and bedding items | G20: 033 | H20: PRAC | J20: 17 | K20: Cement, concrete | L20: 17 | N20: 026 | O20: Between 20 kg and < 30 kg | P20: 026 | R20: 082 | S20: Boxes <1m high | V20: 65 | W20: =IFERROR(VLOOKUP(V20,$J$3:$K$83,2,FALSE),"") -> More than 90% synthetic materials or fibers | Y20: 909 | Z20: sqm | AN20: Min. 75% uncertified solid wood
E21: 034 | F21: Furniture for pets | G21: 034 | H21: Meubles | J21: 18 | K21: Ceramic | L21: 18 | N21: 027 | O21: Between 30 kg and < 40 kg | P21: 027 | R21: 083 | S21: Boxes >=1m high | V21: 67 | W21: =IFERROR(VLOOKUP(V21,$J$3:$K$83,2,FALSE),"") -> More than 50% synthetic materials or fibers | Y21: 074 | AN21: Min. 75% metal
E22: 036 | F22: Protective cover | G22: =E22 -> 036 | H22: Meubles | J22: 19 | K22: Paper, cardboard | L22: 19 | N22: 028 | O22: Between 40 kg and < 60 kg | P22: 028 | R22: 084 | S22: Cupboard doors | V22: 073 | Y22: 091 | Z22: Strictly < 1 kg | AN22: Min. 75% mix of certified solid wood and metal
E23: 040 | F23: 1-person seat without structure | G23: 040 | H23: Siège | J23: 20 | K23: Min. 75% certified solid wood | L23: 20 | N23: 029 | O23: Between 60 kg and < 100 kg | P23: 029 | R23: 086 | S23: Melamine surfaced particleboard (MSPB) | V23: 65 | W23: =IFERROR(VLOOKUP(V23,$J$3:$K$83,2,FALSE),"") -> More than 90% synthetic materials or fibers | Y23: 092 | Z23: ≥ 1 kg and < 3 kg | AN23: Particleboard and/or wood and/or metal, more than 75%
E24: 041 | F24: 2-person seat without structure | G24: 041 | H24: Siège | J24: 21 | K24: Min. 75% uncertified solid wood | L24: 21 | N24: 030 | O24: Between 100 kg and < 150 kg | P24: 030 | R24: 087 | S24: HPL (High Pressurized Laminated) laminate sheet | V24: 67 | W24: =IFERROR(VLOOKUP(V24,$J$3:$K$83,2,FALSE),"") -> More than 50% synthetic materials or fibers | Y24: 093 | Z24: > 3 kg | AN24: Particleboard, more than 75%
E25: 042 | F25: Seat without structure for more than 2 people | G25: 042 | H25: Siège | J25: 22 | K25: Min. 75% metal | L25: 22 | N25: 031 | O25: Between 150 kg and < 200 kg | P25: 031 | R25: 088 | S25: MDF (Medium Density Fiber) panel, raw, lacquered, melamine-coated | V25: 074 | Y25: 075 | AN25: Plastics (monoresin) >90%
E26: 043 | F26: 1-person non-convertible seat | G26: 043 | H26: Siège | J26: 23 | K26: Min. 75% mix of certified solid wood and metal | L26: 23 | N26: 032 | O26: Between 200 kg and < 250 kg | P26: 032 | R26: 089 | S26: Solid wood and similar panels (three-ply) | V26: 04 | W26: =IFERROR(VLOOKUP(V26,$J$3:$K$83,2,FALSE),"") -> > 50% biosourced materials or non-synthetic textiles | Y26: 091 | Z26: Strictly < 1 kg | AN26: Polyethylene terephthalate (PET) >90%
E27: 044 | F27: 2-person non-convertible seat | G27: 044 | H27: Siège | J27: 24 | K27: Particleboard and/or wood and/or metal, more than 75% | L27: 24 | N27: 033 | O27: Between 250 kg and < 300 kg | P27: 033 | R27: 03 | S27: Bedroom_furniture | V27: 12 | W27: =IFERROR(VLOOKUP(V27,$J$3:$K$83,2,FALSE),"") -> Other | Y27: 092 | Z27: ≥ 1 kg and < 3 kg | AN27: PE or PP or PP/PE blend >90%
E28: 045 | F28: Non-convertible seat for more than 2 people | G28: 045 | H28: Siège | J28: 25 | K28: Particleboard, more than 75% | L28: 25 | N28: 034 | O28: Between 300 kg and < 400 kg | P28: 034 | R28: 017 | S28: =IFERROR(VLOOKUP(R28,$E$3:$F$56,2,FALSE),"") -> Storage units (excluding shelves) | V28: 55 | W28: =IFERROR(VLOOKUP(V28,$J$3:$K$83,2,FALSE),"") -> More than 90% bio-sourced materials or non-synthetic textiles | Y28: 093 | Z28: > 3 kg | AN28: ABS >90%
E29: 046 | F29: 1-person convertible seat | G29: 046 | H29: Siège | J29: 26 | K29: Plywood panel, more than 75% | L29: 26 | N29: 035 | O29: Between 400 kg and < 500 kg | P29: 035 | R29: 018 | S29: Bedroom furniture or furnishing items (bed frame, etc.) (N.B.: excludes mattresses, headboards and bed bases) | V29: 65 | W29: =IFERROR(VLOOKUP(V29,$J$3:$K$83,2,FALSE),"") -> More than 90% synthetic materials or fibers | Y29: 076 | AN29: Polystyrene >90%
E30: 047 | F30: 2-person convertible seat | G30: 047 | H30: Siège | J30: 27 | K30: OSB panel, more than 75% | L30: 27 | N30: 036 | O30: Between 500 kg and < 600 kg | P30: 036 | R30: 019 | S30: Desks, tables, etc. | V30: 67 | W30: =IFERROR(VLOOKUP(V30,$J$3:$K$83,2,FALSE),"") -> More than 50% synthetic materials or fibers | Y30: 091 | Z30: Strictly < 1 kg | AN30: PVC >90%
E31: 048 | F31: Convertible seat for more than 2 people | G31: 048 | H31: Siège | J31: 28 | K31: Over 90% metal | L31: 28 | N31: 037 | O31: Between 600 kg and < 700 kg | P31: 037 | R31: 020 | S31: Shelves, panels | V31: 075 | Y31: 092 | Z31: ≥ 1 kg and < 3 kg | AN31: Synthetic rubber >90%
E32: 049 | F32: 1-person electric/adjustable seat | G32: 049 | H32: Siège | J32: 40 | K32: Assembly of synthetic rubber or latex >50% with other materials | L32: 40 | N32: 038 | O32: Between 700 kg and < 800 kg | P32: 038 | R32: 021 | S32: Worktops | V32: 01 | W32: =IFERROR(VLOOKUP(V32,$J$3:$K$83,2,FALSE),"") -> > 50% wood, wood panels, and wood derivatives | Y32: 093 | Z32: > 3 kg | AN32: Particleboard or OSB >75% certified
E33: 050 | F33: 2-person electric/adjustable seat | G33: 050 | H33: Siège | J33: 41 | K33: Plastics (monoresin) >90% | L33: 41 | N33: 039 | O33: Between 800 kg and < 900 kg | P33: 039 | R33: 022 | S33: Hardware (drawer handles, drawer railings, etc.) | V33: 02 | W33: > 50% metal | Y33: Mattresses | AN33: Natural rubber >50%
E34: 051 | F34: Electric/adjustable seat for more than 2 people | G34: 051 | H34: Siège | J34: 42 | K34: Polyethylene terephthalate (PET) >90% | L34: 42 | N34: 040 | O34: Between 900 kg and < 1,000 kg | P34: 040 | R34: 04 | S34: Bedding_domestic_market | V34: 04 | W34: > 50% biosourced materials or non-synthetic textiles | Y34: 023 | AN34: Concrete >90%
E35: 052 | F35: Other accessory, seat part, hammock stand | G35: 052 | H35: Siège | J35: 45 | K35: PE or PP or PP/PE blend >90% | L35: 45 | N35: 041 | O35: Between 1,000 kg and < 1,100 kg | P35: 041 | R35: 010 | S35: =IFERROR(VLOOKUP(R35,$E$3:$F$56,2,FALSE),"") -> Slatted frame | V35: 12 | W35: Other | Y35: 010 | Z35: Width <= 120 cm | AN35: Assembly of 3 or more materials without one material over 50%.
E36: 053 | F36: Inflatable seat | G36: 053 | H36: Siège | J36: 46 | K36: ABS >90% | L36: 46 | N36: 042 | O36: Between 1,100 kg and < 1,200 kg | P36: 042 | R36: 013 | S36: Electric or mechanically adjustable bed base | V36: 28 | W36: Over 90% metal | Y36: 011 | Z36: =IFERROR(VLOOKUP(Y36,$N$3:$O$96,2,FALSE),"") -> Width > 120 cm and ≤ 140 cm | AN36: Slate >90%
E37: 060 | F37: Mattress thickness ≤ 10 cm | G37: 060 | H37: Matelas | J37: 47 | K37: Polystyrene >90% | L37: 47 | N37: 043 | O37: Between 1,200 kg and < 1,300 kg | P37: 043 | R37: 023 | S37: Inflatable mattress | V37: 53 | W37: Over 90% solid wood or similar | Y37: 094 | Z37: =IFERROR(VLOOKUP(Y37,$N$3:$O$96,2,FALSE),"") -> width > 140 cm and <= 160 cm | AN37: Limestone >90%
E38: 061 | F38: Mattress thickness > 10 cm | G38: 061 | H38: Matelas | J38: 48 | K38: PVC >90% | L38: 48 | N38: 044 | O38: Between 1,300 kg and < 1,400 kg | P38: 044 | R38: 024 | S38: Storage bed | V38: 55 | W38: More than 90% bio-sourced materials or non-synthetic textiles | Y38: 095 | Z38: width > 160 cm and <= 180 cm | AN38: Lava >90%
E39: 062 | F39: Bed base (excluding relaxation bed base and storage bed) | G39: 062 | H39: Sommier | J39: 49 | K39: Synthetic rubber >90% | L39: 49 | N39: 045 | O39: Between 1,400 kg and < 1,500 kg | P39: 045 | R39: 025 | S39: Bed legs | V39: 65 | W39: More than 90% synthetic materials or fibers | Y39: 096 | Z39: width > 180 cm | AN39: Baked or unbaked clay >90%
E40: 038 | F40: Shelves (cut to size) | G40: 038 | H40: Tablette | J40: 52 | K40: Massif and assimilated certified >90% | L40: 52 | N40: 046 | O40: Between 1,500 kg and < 1,600 kg | P40: 046 | R40: 060 | S40: Mattress thickness ≤ 10 cm | V40: 67 | W40: More than 50% synthetic materials or fibers | Y40: 060 | AN40: Concrete >90%
E41: 039 | F41: Panels (cut to size) | G41: 039 | H41: Tablette | J41: 53 | K41: Over 90% solid wood or similar | L41: 53 | N41: 047 | O41: Between 1,600 kg and < 1,700 kg | P41: 047 | R41: 061 | S41: Mattress thickness > 10 cm | V41: 076 | Y41: 010 | Z41: Width <= 120 cm | AN41: Granite >90%
E42: 070 | F42: Decorative rugs | G42: 070 | H42: Dtext | J42: 55 | K42: More than 90% bio-sourced materials or non-synthetic textiles | L42: 55 | N42: 048 | O42: Between 1,700 kg and < 1,800 kg | P42: 048 | R42: 062 | S42: Bed base (excluding relaxation bed base and storage bed) | V42: 01 | W42: =IFERROR(VLOOKUP(V42,$J$3:$K$83,2,FALSE),"") -> > 50% wood, wood panels, and wood derivatives | Y42: 011 | Z42: =IFERROR(VLOOKUP(Y42,$N$3:$O$96,2,FALSE),"") -> Width > 120 cm and ≤ 140 cm | AN42: Sandstone >90%
E43: 071 | F43: Functional mats / doormats / outdoors mat | G43: 071 | H43: Dtext | J43: 59 | K43: Particleboard or OSB >90% certified | L43: 59 | N43: 049 | O43: Between 1,800 kg and < 1,900 kg | P43: 049 | R43: 077 | S43: Headboard | V43: 02 | W43: > 50% metal | Y43: 094 | Z43: =IFERROR(VLOOKUP(Y43,$N$3:$O$96,2,FALSE),"") -> width > 140 cm and <= 160 cm | AN43: Ceramic >90%
E44: 072 | F44: Interior textile blinds / curtains / net curtains | G44: 072 | H44: Dtext | J44: 60 | K44: Particleboard or OSB >75% certified | L44: 60 | N44: 050 | O44: Between 1,900 kg and < 2,000 kg | P44: 050 | R44: 085 | S44: =IFERROR(VLOOKUP(R44,$E$3:$F$57,2,FALSE),"") -> Slatted frame slats | V44: 04 | W44: > 50% biosourced materials or non-synthetic textiles | Y44: 095 | Z44: width > 160 cm and <= 180 cm | AN44: Artificial stone >90%
E45: 073 | F45: Removable carpets | G45: 073 | H45: Dtext | J45: 61 | K45: Particleboard or OSB >90% | L45: 61 | N45: 051 | O45: Over 2,000 kg | P45: 051 | R45: 05 | S45: Office_furniture | V45: 12 | W45: Other | Y45: 096 | Z45: width > 180 cm
E46: 074 | F46: Other small decorative items (macramé, decorative garlands, etc.) | G46: 074 | H46: Dtext | J46: 62 | K46: Wood derivatives >90% | L46: 62 | N46: 052 | O46: Between 2 kg and < 3 kg | P46: 052 | R46: 017 | S46: =IFERROR(VLOOKUP(R46,$E$3:$F$56,2,FALSE),"") -> Storage units (excluding shelves) | V46: 28 | W46: Over 90% metal | Y46: 061
E47: 075 | F47: Accessories for decorative textile items (rods, etc.) | G47: 075 | H47: Dtext | J47: 63 | K47: Natural rubber >90% | L47: 63 | N47: 053 | O47: Between 3 kg and < 5 kg | P47: 053 | R47: 019 | S47: =IFERROR(VLOOKUP(R47,$E$3:$F$56,2,FALSE),"") -> Desks, tables, etc. | V47: 53 | W47: Over 90% solid wood or similar | Y47: 010 | Z47: Width <= 120 cm | AN47: Abs_Lit
E48: 076 | F48: Decorative wall frames | G48: 076 | H48: Dtext | J48: 64 | K48: Natural rubber >50% | L48: 64 | N48: 054 | O48: Between 5 kg and < 7 kg | P48: 054 | R48: 020 | S48: =IFERROR(VLOOKUP(R48,$E$3:$F$56,2,FALSE),"") -> Shelves, panels | V48: 55 | W48: More than 90% bio-sourced materials or non-synthetic textiles | Y48: 011 | Z48: =IFERROR(VLOOKUP(Y48,$N$3:$O$96,2,FALSE),"") -> Width > 120 cm and ≤ 140 cm | AN48: > 50% wood, wood panels, and wood derivatives
E49: 077 | F49: Headboard | G49: 077 | H49: Sommier | J49: 65 | K49: More than 90% synthetic materials or fibers | L49: 65 | N49: 055 | O49: Between 7 kg and < 10 kg | P49: 055 | R49: 021 | S49: =IFERROR(VLOOKUP(R49,$E$3:$F$56,2,FALSE),"") -> Worktops | V49: 65 | W49: More than 90% synthetic materials or fibers | Y49: 094 | Z49: =IFERROR(VLOOKUP(Y49,$N$3:$O$96,2,FALSE),"") -> width > 140 cm and <= 160 cm | AN49: > 50% metal
E50: 078 | F50: Upholstery fabric, width <100cm | G50: 078 | H50: Meubles | J50: 66 | K50: Textile and padding in polyester >90%. | L50: 66 | N50: 056 | O50: Between 10 kg and < 15 kg | P50: 056 | R50: 022 | S50: =IFERROR(VLOOKUP(R50,$E$3:$F$56,2,FALSE),"") -> Hardware (drawer handles, drawer railings, etc.) | V50: 67 | W50: More than 50% synthetic materials or fibers | Y50: 095 | Z50: width > 160 cm and <= 180 cm | AN50: Bamboo/rattan
E51: 079 | F51: Upholstery fabric, width between 100cm and 200cm inclusive | G51: 079 | H51: Meubles | J51: 67 | K51: More than 50% synthetic materials or fibers | L51: 67 | N51: 057 | O51: Between 15 kg and < 20 kg | P51: 057 | R51: 06 | S51: Kitchen_furniture | V51: Mattresses | Y51: 096 | Z51: width > 180 cm | AN51: > 50% biosourced materials or non-synthetic textiles
E52: 080 | F52: Upholstery fabric, width >200cm | G52: 080 | H52: Meubles | J52: 68 | K52: Glass >90% | L52: 68 | N52: 058 | O52: Between 20 kg and < 25 kg | P52: 058 | R52: 017 | S52: =IFERROR(VLOOKUP(R52,$E$3:$F$56,2,FALSE),"") -> Storage units (excluding shelves) | V52: 023 | Y52: Furniture | Z52: =IFERROR(VLOOKUP(Y52,$N$3:$O$96,2,FALSE),"") ->  | AN52: Plastics
E53: 081 | F53: Bed base and headboard | G53: 081 | H53: Sommier | J53: 69 | K53: Mirror >90% | L53: 69 | N53: 059 | O53: Between 25 kg and < 30 kg | P53: 059 | R53: 019 | S53: =IFERROR(VLOOKUP(R53,$E$3:$F$56,2,FALSE),"") -> Desks, tables, etc. | V53: 00 | W53: =IFERROR(VLOOKUP(V53,$J$3:$K$83,2,FALSE),"") -> Unknown | Y53: 017 | AN53: Other
E54: 082 | F54: Boxes <1m high | G54: 082 | H54: Meubles_Dim | J54: 70 | K54: More than 50% glass and metal assembly | L54: 70 | N54: 060 | O54: Between 40 kg and < 50 kg | P54: 060 | R54: 020 | S54: =IFERROR(VLOOKUP(R54,$E$3:$F$56,2,FALSE),"") -> Shelves, panels | V54: 060 | Y54: 106 | Z54: Strictly less than 0.25 kg | AN54: Min. 75% certified solid wood
E55: 083 | F55: Boxes >=1m high | G55: 083 | H55: Meubles_Dim | J55: 71 | K55: More than 50% glass assembly with Inert | L55: 71 | N55: 061 | O55: Between 50 kg and < 60 kg | P55: 061 | R55: 021 | S55: =IFERROR(VLOOKUP(R55,$E$3:$F$56,2,FALSE),"") -> Worktops | V55: 09 | W55: =IFERROR(VLOOKUP(V55,$J$3:$K$83,2,FALSE),"") -> Foam | Y55: 107 | Z55: Between 0.25 kg and 0.5 kg excluded | AN55: Min. 75% uncertified solid wood
E56: 084 | F56: Cupboard doors | G56: 084 | H56: Meubles_Dim | J56: 72 | K56: More than 50% glass assembly with wood or wood derivatives | L56: 72 | N56: 062 | O56: Between 60 kg and < 70 kg | P56: 062 | R56: 022 | S56: =IFERROR(VLOOKUP(R56,$E$3:$F$56,2,FALSE),"") -> Hardware (drawer handles, drawer railings, etc.) | V56: 10 | W56: =IFERROR(VLOOKUP(V56,$J$3:$K$83,2,FALSE),"") -> Latex | Y56: 021 | Z56: Between 0.5 kg and < 1 kg | AN56: Min. 75% metal
E57: 085 | F57: Slatted frame slats | G57: =E57 -> 085 | H57: Meubles_Dim | J57: 73 | K57: More than 50% glass assembly with plastic | L57: 73 | N57: 063 | O57: Between 70 kg and < 80 kg | P57: 063 | R57: 07 | S57: Bathroom_furniture | V57: 11 | W57: =IFERROR(VLOOKUP(V57,$J$3:$K$83,2,FALSE),"") -> Springs | Y57: 022 | Z57: Between 1 kg and < 2 kg | AN57: Min. 75% mix of certified solid wood and metal
E58: 086 | F58: Melamine surfaced particleboard (MSPB) | G58: 086 | H58: Pano_Dim | J58: 74 | K58: Concrete >90% | L58: 74 | N58: 064 | O58: Between 80 kg and < 90 kg | P58: 064 | R58: 017 | S58: =IFERROR(VLOOKUP(R58,$E$3:$F$56,2,FALSE),"") -> Storage units (excluding shelves) | V58: 12 | W58: =IFERROR(VLOOKUP(V58,$J$3:$K$83,2,FALSE),"") -> Other | Y58: 023 | Z58: Between 2 kg and < 5 kg | AN58: Particleboard and/or wood and/or metal, more than 75%
E59: 087 | F59: HPL (High Pressurized Laminated) laminate sheet | G59: 087 | H59: Pano_Dim | J59: 75 | K59: Gypsum >90% | L59: 75 | N59: 065 | O59: Between 90 kg and < 100 kg | P59: 065 | R59: 019 | S59: =IFERROR(VLOOKUP(R59,$E$3:$F$56,2,FALSE),"") -> Desks, tables, etc. | V59: 061 | Y59: 024 | Z59: Between 5 kg and < 10 kg | AN59: Particleboard, more than 75%
E60: 088 | F60: MDF (Medium Density Fiber) panel, raw, lacquered, melamine-coated | G60: 088 | H60: Pano_Dim | J60: 76 | K60: Gypsum >50% | L60: 76 | N60: 066 | O60: Between 100 kg and < 120 kg | P60: 066 | R60: 020 | S60: =IFERROR(VLOOKUP(R60,$E$3:$F$56,2,FALSE),"") -> Shelves, panels | V60: 09 | W60: =IFERROR(VLOOKUP(V60,$J$3:$K$83,2,FALSE),"") -> Foam | Y60: 025 | Z60: Between 10 kg and < 20 kg
E61: 089 | F61: Solid wood and similar panels (three-ply) | G61: 089 | H61: Pano_Dim | J61: 77 | K61: Over 90% rock wool | L61: 77 | N61: 067 | O61: Between 120 kg and < 150 kg | P61: 067 | R61: 021 | S61: =IFERROR(VLOOKUP(R61,$E$3:$F$56,2,FALSE),"") -> Worktops | V61: 10 | W61: =IFERROR(VLOOKUP(V61,$J$3:$K$83,2,FALSE),"") -> Latex | Y61: 026 | Z61: Between 20 kg and < 30 kg
J62: 78 | K62: Over 90% glass wool | L62: 78 | N62: 068 | O62: Between 300 kg and < 350 kg | P62: 068 | R62: 022 | S62: =IFERROR(VLOOKUP(R62,$E$3:$F$56,2,FALSE),"") -> Hardware (drawer handles, drawer railings, etc.) | V62: 11 | W62: =IFERROR(VLOOKUP(V62,$J$3:$K$83,2,FALSE),"") -> Springs | Y62: 027 | Z62: Between 30 kg and < 40 kg
J63: 79 | K63: Assembling glass wool or rock wool over 50% and other materials | L63: 79 | N63: 069 | O63: Between 350 kg and < 400 kg | P63: 069 | R63: 08 | S63: Garden_furniture | V63: 12 | W63: =IFERROR(VLOOKUP(V63,$J$3:$K$83,2,FALSE),"") -> Other | Y63: 028 | Z63: Between 40 kg and < 60 kg
J64: 80 | K64: Over 90% bituminous membranes | L64: 80 | N64: 070 | O64: Between 400 kg and < 450 kg | P64: 070 | R64: 017 | S64: =IFERROR(VLOOKUP(R64,$E$3:$F$56,2,FALSE),"") -> Storage units (excluding shelves) | V64: Furniture | Y64: 029 | Z64: Between 60 kg and < 100 kg
J65: 81 | K65: Assemblies with a combined wood, wood by-products and metal composition exceeding 90%. | L65: 81 | N65: 071 | O65: Between 450 kg and < 500 kg | P65: 071 | R65: 019 | S65: =IFERROR(VLOOKUP(R65,$E$3:$F$56,2,FALSE),"") -> Desks, tables, etc. | V65: 017 | Y65: 030 | Z65: Between 100 kg and < 150 kg | AN65: Pre_Lit
J66: 82 | K66: Assembly of 3 or more materials without one material over 50%. | L66: 82 | N66: 072 | O66: Between 500 kg and < 550 kg | P66: 072 | R66: 022 | S66: =IFERROR(VLOOKUP(R66,$E$3:$F$56,2,FALSE),"") -> Hardware (drawer handles, drawer railings, etc.) | V66: 01 | W66: =IFERROR(VLOOKUP(V66,$J$3:$K$83,2,FALSE),"") -> > 50% wood, wood panels, and wood derivatives | Y66: 031 | Z66: Between 150 kg and < 200 kg | AN66: Unknown
J67: 83 | K67: Liquid products, incl. hazardous >90%. | L67: =J67 -> 83 | N67: 073 | O67: Between 550 kg and < 600 kg | P67: =N67 -> 073 | R67: 036 | S67: =IFERROR(VLOOKUP(R67,$E$3:$F$56,2,FALSE),"") -> Protective cover | V67: 02 | W67: > 50% metal | Y67: 032 | Z67: Between 200 kg and < 250 kg | AN67: Natural stuffing (down, wool, etc.)
J68: 84 | K68: Slate >90% | L68: 84 | N68: 074 | O68: Between 600 kg and < 650 kg | P68: 074 | R68: 09 | S68: Seats | V68: 03 | W68: Bamboo/rattan | Y68: 033 | Z68: Between 250 kg and < 300 kg | AN68: Synthetic stuffing (foam, polyester, etc.)
J69: 85 | K69: Aggregates >90% (excluding stone) | L69: 85 | N69: 075 | O69: Between 650 kg and < 700 kg | P69: 075 | R69: 003 | S69: =IFERROR(VLOOKUP(R69,$E$3:$F$56,2,FALSE),"") -> Height-adjustable 1-person swivel chair | V69: 04 | W69: > 50% biosourced materials or non-synthetic textiles | Y69: 034 | Z69: Between 300 kg and < 400 kg
J70: 86 | K70: Limestone >90% | L70: 86 | N70: 076 | O70: Between 700 kg and < 750 kg | P70: 076 | R70: 040 | S70: 1-person seat without structure | V70: 05 | W70: Plastics | Y70: 035 | Z70: Between 400 kg and < 500 kg
J71: 87 | K71: Lava >90% | L71: 87 | N71: 077 | O71: Between 750 kg and < 800 kg | P71: 077 | R71: 041 | S71: 2-person seat without structure | V71: 06 | W71: Textiles, leathers, furs | Y71: 036 | Z71: Between 500 kg and < 600 kg
J72: 88 | K72: Bituminous mix >90% | L72: 88 | N72: 078 | O72: Between 800 kg and < 850 kg | P72: 078 | R72: 042 | S72: Seat without structure for more than 2 people | V72: 07 | W72: Glass and mirrors | Y72: 037 | Z72: Between 600 kg and < 700 kg
J73: 89 | K73: Baked or unbaked clay >90% | L73: 89 | N73: 079 | O73: Between 850 kg and < 900 kg | P73: 079 | R73: 043 | S73: 1-person non-convertible seat | V73: 08 | W73: Inert, minerals | Y73: 038 | Z73: Between 700 kg and < 800 kg
J74: 90 | K74: Concrete >90% | L74: 90 | N74: 080 | O74: Between 900 kg and < 950 kg | P74: 080 | R74: 044 | S74: 2-person non-convertible seat | V74: 12 | W74: Other | Y74: 039 | Z74: Between 800 kg and < 900 kg
J75: 91 | K75: Granite >90% | L75: 91 | N75: 081 | O75: Between 950 kg and < 1,000 kg | P75: 081 | R75: 045 | S75: Non-convertible seat for more than 2 people | V75: 15 | W75: Composites and compact | Y75: 040 | Z75: =IFERROR(VLOOKUP(Y75,$N$3:$O$96,2,FALSE),"") -> Between 900 kg and < 1,000 kg
J76: 92 | K76: Mortar >90% | L76: 92 | N76: 082 | O76: Over 1,000 kg | P76: 082 | R76: 046 | S76: 1-person convertible seat | V76: 16 | W76: Artificial stone | Y76: 041 | Z76: Between 1,000 kg and < 1,100 kg
J77: 93 | K77: Additives >90% | L77: 93 | N77: 091 | O77: Strictly < 1 kg | P77: 091 | R77: 047 | S77: 2-person convertible seat | V77: 17 | W77: Cement, concrete | Y77: 042 | Z77: Between 1,100 kg and < 1,200 kg
J78: 94 | K78: Sandstone >90% | L78: 94 | N78: 092 | O78: ≥ 1 kg and < 3 kg | P78: 092 | R78: 048 | S78: Convertible seat for more than 2 people | V78: 18 | W78: Ceramic | Y78: 043 | Z78: Between 1,200 kg and < 1,300 kg
J79: 95 | K79: Lime >90% | L79: 95 | N79: 093 | O79: > 3 kg | P79: 093 | R79: 049 | S79: 1-person electric/adjustable seat | V79: 19 | W79: Paper, cardboard | Y79: 044 | Z79: Between 1,300 kg and < 1,400 kg
J80: 96 | K80: Cellular concrete >90% | L80: 96 | N80: 901 | O80: from 0 to 60cm length, width above 25cm | P80: 901 | R80: 050 | S80: 2-person electric/adjustable seat | V80: 20 | W80: Min. 75% certified solid wood | Y80: 045 | Z80: Between 1,400 kg and < 1,500 kg
J81: 97 | K81: Ceramic >90% | L81: 97 | N81: 902 | O81: from 60 to 120cm length, width above 25cm | P81: 902 | R81: 051 | S81: Electric/adjustable seat for more than 2 people | V81: 21 | W81: Min. 75% uncertified solid wood | Y81: 046 | Z81: Between 1,500 kg and < 1,600 kg
J82: 98 | K82: Artificial stone >90% | L82: 98 | N82: 903 | O82: over 120cm length, width above 25cm | P82: 903 | R82: 052 | S82: Other accessory, seat part, hammock stand | V82: 22 | W82: Min. 75% metal | Y82: 047 | Z82: Between 1,600 kg and < 1,700 kg
J83: 99 | K83: Wood >50% without glass or inert | L83: 99 | N83: 904 | O83: Unit cut | P83: 904 | R83: 053 | S83: Inflatable seat | V83: 23 | W83: Min. 75% mix of certified solid wood and metal | Y83: 048 | Z83: Between 1,700 kg and < 1,800 kg
N84: 905 | O84: Linear Meter (fabric) | P84: 905 | R84: 10 | S84: Technical_furniture | V84: 24 | W84: Particleboard and/or wood and/or metal, more than 75% | Y84: 049 | Z84: Between 1,800 kg and < 1,900 kg
N85: 906 | O85: more than 120cm in length, width above 25cm | P85: 906 | R85: 017 | S85: =IFERROR(VLOOKUP(R85,$E$3:$F$56,2,FALSE),"") -> Storage units (excluding shelves) | V85: 25 | W85: Particleboard, more than 75% | Y85: 050 | Z85: Between 1,900 kg and < 2,000 kg
N86: 907 | O86: Die-cut unit | P86: 907 | R86: 019 | S86: =IFERROR(VLOOKUP(R86,$E$3:$F$56,2,FALSE),"") -> Desks, tables, etc. | V86: 41 | W86: Plastics (monoresin) >90% | Y86: 051 | Z86: Over 2,000 kg
N87: 908 | O87: Linear meter (fabric) | P87: 908 | R87: 020 | S87: =IFERROR(VLOOKUP(R87,$E$3:$F$56,2,FALSE),"") -> Shelves, panels | V87: 42 | W87: Polyethylene terephthalate (PET) >90% | Y87: 018
N88: 909 | O88: sqm | P88: 909 | R88: 021 | S88: =IFERROR(VLOOKUP(R88,$E$3:$F$56,2,FALSE),"") -> Worktops | V88: 45 | W88: PE or PP or PP/PE blend >90% | Y88: 106 | Z88: Strictly less than 0.25 kg
N89: 094 | O89: width > 140 cm and <= 160 cm | P89: 094 | R89: 022 | S89: =IFERROR(VLOOKUP(R89,$E$3:$F$56,2,FALSE),"") -> Hardware (drawer handles, drawer railings, etc.) | V89: 46 | W89: ABS >90% | Y89: 107 | Z89: Between 0.25 kg and 0.5 kg excluded
N90: 095 | O90: width > 160 cm and <= 180 cm | P90: 095 | R90: 11 | S90: Stuffed_articles_seat_couching | V90: 47 | W90: Polystyrene >90% | Y90: 021 | Z90: Between 0.5 kg and < 1 kg
N91: 096 | O91: width > 180 cm | P91: 096 | R91: 028 | S91: =IFERROR(VLOOKUP(R91,$E$3:$F$56,2,FALSE),"") -> Padded mattress topper, non-bedding type | V91: 48 | W91: PVC >90% | Y91: 022 | Z91: Between 1 kg and < 2 kg
N92: 097 | O92: from 0 to 60cm in length | P92: 097 | R92: 029 | S92: Duvet/Quilt | V92: 49 | W92: Synthetic rubber >90% | Y92: 023 | Z92: Between 2 kg and < 5 kg
N93: 098 | O93: from 60 to 120cm in length | P93: 098 | R93: 030 | S93: Sleeping bag | V93: 60 | W93: Particleboard or OSB >75% certified | Y93: 024 | Z93: Between 5 kg and < 10 kg
N94: 099 | O94: from 120 to 180cm in length | P94: 099 | R94: 031 | S94: Pillow/Bolster | V94: 64 | W94: Natural rubber >50% | Y94: 025 | Z94: Between 10 kg and < 20 kg
N95: 100 | O95: from 180 to 240cm in length | P95: 100 | R95: 032 | S95: Cushion, seat cushion | V95: 74 | W95: Concrete >90% | Y95: 026 | Z95: Between 20 kg and < 30 kg
N96: 101 | O96: over 240cm in length | P96: 101 | R96: 033 | S96: Other padded seating and bedding items | V96: 82 | W96: Assembly of 3 or more materials without one material over 50%. | Y96: 027 | Z96: Between 30 kg and < 40 kg
N97: 102 | O97: thickness <=12 mm | P97: =N97 -> 102 | R97: 12 | S97: Textile_decoration_articles | V97: 84 | W97: Slate >90% | Y97: 028 | Z97: Between 40 kg and < 60 kg
N98: 103 | O98: thickness >12 mm and <=22 mm | P98: =N98 -> 103 | R98: 070 | S98: =IFERROR(VLOOKUP(R98,$E$3:$F$56,2,FALSE),"") -> Decorative rugs | V98: 86 | W98: Limestone >90% | Y98: 029 | Z98: Between 60 kg and < 100 kg
N99: 104 | O99: thickness >22 mm | P99: =N99 -> 104 | R99: 071 | S99: Functional mats / doormats / outdoors mat | V99: 87 | W99: Lava >90% | Y99: 030 | Z99: Between 100 kg and < 150 kg
N100: 105 | O100: thickness < 6 mm | P100: =N100 -> 105 | R100: 072 | S100: Interior textile blinds / curtains / net curtains | V100: 89 | W100: Baked or unbaked clay >90% | Y100: 031 | Z100: Between 150 kg and < 200 kg
N101: 106 | O101: Strictly less than 0.25 kg | P101: =N101 -> 106 | R101: 073 | S101: Removable carpets | V101: 90 | W101: Concrete >90% | Y101: 032 | Z101: Between 200 kg and < 250 kg
N102: 107 | O102: Between 0.25 kg and 0.5 kg excluded | P102: 107 | R102: 074 | S102: Other small decorative items (macramé, decorative garlands, etc.) | V102: 91 | W102: Granite >90% | Y102: 033 | Z102: Between 250 kg and < 300 kg
R103: 075 | S103: Accessories for decorative textile items (rods, etc.) | V103: 94 | W103: Sandstone >90% | Y103: 034 | Z103: Between 300 kg and < 400 kg
R104: 076 | S104: Decorative wall frames | V104: 97 | W104: Ceramic >90% | Y104: 035 | Z104: Between 400 kg and < 500 kg
R105: 14 | S105: Bedding_professional_market | V105: 98 | W105: Artificial stone >90% | Y105: 036 | Z105: Between 500 kg and < 600 kg
R106: 010 | S106: =IFERROR(VLOOKUP(R106,$E$3:$F$56,2,FALSE),"") -> Slatted frame | V106: 018 | Y106: 037 | Z106: Between 600 kg and < 700 kg
R107: 013 | S107: Electric or mechanically adjustable bed base | V107: 01 | W107: =IFERROR(VLOOKUP(V107,$J$3:$K$83,2,FALSE),"") -> > 50% wood, wood panels, and wood derivatives | Y107: 038 | Z107: Between 700 kg and < 800 kg
R108: 023 | S108: Inflatable mattress | V108: 02 | W108: > 50% metal | Y108: 039 | Z108: Between 800 kg and < 900 kg
R109: 024 | S109: Storage bed | V109: 03 | W109: Bamboo/rattan | Y109: 040 | Z109: Between 900 kg and < 1,000 kg
R110: 025 | S110: Bed legs | V110: 04 | W110: > 50% biosourced materials or non-synthetic textiles | Y110: 041 | Z110: Between 1,000 kg and < 1,100 kg
R111: 060 | S111: Mattress thickness ≤ 10 cm | V111: 05 | W111: Plastics | Y111: 042 | Z111: Between 1,100 kg and < 1,200 kg
R112: 061 | S112: Mattress thickness > 10 cm | V112: 07 | W112: Glass and mirrors | Y112: 043 | Z112: Between 1,200 kg and < 1,300 kg
R113: 062 | S113: Bed base (excluding relaxation bed base and storage bed) | V113: 08 | W113: Inert, minerals | Y113: 044 | Z113: Between 1,300 kg and < 1,400 kg
R114: 077 | S114: Headboard | V114: 12 | W114: Other | Y114: 045 | Z114: Between 1,400 kg and < 1,500 kg
R115: 085 | S115: =IFERROR(VLOOKUP(R115,$E$3:$F$57,2,FALSE),"") -> Slatted frame slats | V115: 15 | W115: Composites and compact | Y115: 046 | Z115: Between 1,500 kg and < 1,600 kg
V116: 16 | W116: Artificial stone | Y116: 047 | Z116: Between 1,600 kg and < 1,700 kg
V117: 17 | W117: Cement, concrete | Y117: 048 | Z117: Between 1,700 kg and < 1,800 kg
V118: 18 | W118: Ceramic | Y118: 049 | Z118: Between 1,800 kg and < 1,900 kg
V119: 19 | W119: Paper, cardboard | Y119: 050 | Z119: Between 1,900 kg and < 2,000 kg
V120: 20 | W120: Min. 75% certified solid wood | Y120: 051 | Z120: Over 2,000 kg
V121: 21 | W121: Min. 75% uncertified solid wood | Y121: 019
V122: 22 | W122: Min. 75% metal | Y122: 106 | Z122: Strictly less than 0.25 kg
V123: 23 | W123: Min. 75% mix of certified solid wood and metal | Y123: 107 | Z123: Between 0.25 kg and 0.5 kg excluded
V124: 24 | W124: Particleboard and/or wood and/or metal, more than 75% | Y124: 021 | Z124: Between 0.5 kg and < 1 kg
V125: 25 | W125: Particleboard, more than 75% | Y125: 022 | Z125: Between 1 kg and < 2 kg
V126: 41 | W126: Plastics (monoresin) >90% | Y126: 023 | Z126: Between 2 kg and < 5 kg
V127: 42 | W127: Polyethylene terephthalate (PET) >90% | Y127: 024 | Z127: Between 5 kg and < 10 kg
V128: 45 | W128: PE or PP or PP/PE blend >90% | Y128: 025 | Z128: Between 10 kg and < 20 kg
V129: 46 | W129: ABS >90% | Y129: 026 | Z129: Between 20 kg and < 30 kg
V130: 47 | W130: Polystyrene >90% | Y130: 027 | Z130: Between 30 kg and < 40 kg
V131: 48 | W131: PVC >90% | Y131: 028 | Z131: Between 40 kg and < 60 kg
V132: 49 | W132: Synthetic rubber >90% | Y132: 029 | Z132: Between 60 kg and < 100 kg
V133: 60 | W133: Particleboard or OSB >75% certified | Y133: 030 | Z133: Between 100 kg and < 150 kg
V134: 64 | W134: Natural rubber >50% | Y134: 031 | Z134: Between 150 kg and < 200 kg
V135: 74 | W135: Concrete >90% | Y135: 032 | Z135: Between 200 kg and < 250 kg
V136: 82 | W136: Assembly of 3 or more materials without one material over 50%. | Y136: 033 | Z136: Between 250 kg and < 300 kg
V137: 84 | W137: Slate >90% | Y137: 034 | Z137: Between 300 kg and < 400 kg
V138: 86 | W138: Limestone >90% | Y138: 035 | Z138: Between 400 kg and < 500 kg
V139: 87 | W139: Lava >90% | Y139: 036 | Z139: Between 500 kg and < 600 kg
V140: 89 | W140: Baked or unbaked clay >90% | Y140: 037 | Z140: Between 600 kg and < 700 kg
V141: 90 | W141: Concrete >90% | Y141: 038 | Z141: =IFERROR(VLOOKUP(Y141,$N$3:$O$96,2,FALSE),"") -> Between 700 kg and < 800 kg
V142: 91 | W142: Granite >90% | Y142: 039 | Z142: Between 800 kg and < 900 kg
V143: 94 | W143: Sandstone >90% | Y143: 040 | Z143: Between 900 kg and < 1,000 kg
V144: 97 | W144: Ceramic >90% | Y144: 041 | Z144: Between 1,000 kg and < 1,100 kg
V145: 98 | W145: Artificial stone >90% | Y145: 042 | Z145: Between 1,100 kg and < 1,200 kg
V146: 019 | Y146: 043 | Z146: Between 1,200 kg and < 1,300 kg
V147: 01 | W147: =IFERROR(VLOOKUP(V147,$J$3:$K$83,2,FALSE),"") -> > 50% wood, wood panels, and wood derivatives | Y147: 044 | Z147: Between 1,300 kg and < 1,400 kg
V148: 02 | W148: > 50% metal | Y148: 045 | Z148: Between 1,400 kg and < 1,500 kg
V149: 03 | W149: Bamboo/rattan | Y149: 046 | Z149: Between 1,500 kg and < 1,600 kg
V150: 04 | W150: > 50% biosourced materials or non-synthetic textiles | Y150: 047 | Z150: Between 1,600 kg and < 1,700 kg
V151: 05 | W151: Plastics | Y151: 048 | Z151: Between 1,700 kg and < 1,800 kg
V152: 07 | W152: Glass and mirrors | Y152: 049 | Z152: Between 1,800 kg and < 1,900 kg
V153: 08 | W153: Inert, minerals | Y153: 050 | Z153: Between 1,900 kg and < 2,000 kg
V154: 12 | W154: Other | Y154: 051 | Z154: Over 2,000 kg
V155: 15 | W155: Composites and compact | Y155: 020
V156: 16 | W156: Artificial stone | Y156: 106 | Z156: Strictly less than 0.25 kg
V157: 17 | W157: Cement, concrete | Y157: 107 | Z157: Between 0.25 kg and 0.5 kg excluded
V158: 18 | W158: Ceramic | Y158: 021 | Z158: Between 0.5 kg and < 1 kg
V159: 19 | W159: Paper, cardboard | Y159: 022 | Z159: Between 1 kg and < 2 kg
V160: 20 | W160: Min. 75% certified solid wood | Y160: 023 | Z160: Between 2 kg and < 5 kg
V161: 21 | W161: Min. 75% uncertified solid wood | Y161: 024 | Z161: Between 5 kg and < 10 kg
V162: 22 | W162: Min. 75% metal | Y162: 025 | Z162: Between 10 kg and < 20 kg
V163: 23 | W163: Min. 75% mix of certified solid wood and metal | Y163: 026 | Z163: Between 20 kg and < 30 kg
V164: 24 | W164: Particleboard and/or wood and/or metal, more than 75% | Y164: 027 | Z164: Between 30 kg and < 40 kg
V165: 25 | W165: Particleboard, more than 75% | Y165: 028 | Z165: Between 40 kg and < 60 kg
V166: 41 | W166: Plastics (monoresin) >90% | Y166: 029 | Z166: Between 60 kg and < 100 kg
V167: 42 | W167: Polyethylene terephthalate (PET) >90% | Y167: 030 | Z167: Between 100 kg and < 150 kg
V168: 45 | W168: PE or PP or PP/PE blend >90% | Y168: 031 | Z168: Between 150 kg and < 200 kg
V169: 46 | W169: ABS >90% | Y169: 032 | Z169: Between 200 kg and < 250 kg
V170: 47 | W170: Polystyrene >90% | Y170: 033 | Z170: Between 250 kg and < 300 kg
V171: 48 | W171: PVC >90% | Y171: 034 | Z171: Between 300 kg and < 400 kg
V172: 49 | W172: Synthetic rubber >90% | Y172: 035 | Z172: Between 400 kg and < 500 kg
V173: 60 | W173: Particleboard or OSB >75% certified | Y173: 036 | Z173: Between 500 kg and < 600 kg
V174: 64 | W174: Natural rubber >50% | Y174: 037 | Z174: Between 600 kg and < 700 kg
V175: 74 | W175: Concrete >90% | Y175: 038 | Z175: Between 700 kg and < 800 kg
V176: 82 | W176: Assembly of 3 or more materials without one material over 50%. | Y176: 039 | Z176: Between 800 kg and < 900 kg
V177: 84 | W177: Slate >90% | Y177: 040 | Z177: Between 900 kg and < 1,000 kg
V178: 86 | W178: Limestone >90% | Y178: 041 | Z178: Between 1,000 kg and < 1,100 kg
V179: 87 | W179: Lava >90% | Y179: 042 | Z179: Between 1,100 kg and < 1,200 kg
V180: 89 | W180: Baked or unbaked clay >90% | Y180: 043 | Z180: Between 1,200 kg and < 1,300 kg
V181: 90 | W181: Concrete >90% | Y181: 044 | Z181: Between 1,300 kg and < 1,400 kg
V182: 91 | W182: Granite >90% | Y182: 045 | Z182: Between 1,400 kg and < 1,500 kg
V183: 94 | W183: Sandstone >90% | Y183: 046 | Z183: Between 1,500 kg and < 1,600 kg
V184: 97 | W184: Ceramic >90% | Y184: 047 | Z184: Between 1,600 kg and < 1,700 kg
V185: 98 | W185: Artificial stone >90% | Y185: 048 | Z185: Between 1,700 kg and < 1,800 kg
V186: 020 | Y186: 049 | Z186: Between 1,800 kg and < 1,900 kg
V187: 01 | W187: =IFERROR(VLOOKUP(V187,$J$3:$K$83,2,FALSE),"") -> > 50% wood, wood panels, and wood derivatives | Y187: 050 | Z187: Between 1,900 kg and < 2,000 kg
V188: 02 | W188: > 50% metal | Y188: 051 | Z188: Over 2,000 kg
V189: 05 | W189: Plastics | Y189: 021
V190: 07 | W190: Glass and mirrors | Y190: 106 | Z190: Strictly less than 0.25 kg
V191: 08 | W191: Inert, minerals | Y191: 107 | Z191: Between 0.25 kg and 0.5 kg excluded
V192: 12 | W192: Other | Y192: 021 | Z192: Between 0.5 kg and < 1 kg
V193: 15 | W193: Composites and compact | Y193: 022 | Z193: Between 1 kg and < 2 kg
V194: 16 | W194: Artificial stone | Y194: 023 | Z194: Between 2 kg and < 5 kg
V195: 17 | W195: Cement, concrete | Y195: 024 | Z195: Between 5 kg and < 10 kg
V196: 18 | W196: Ceramic | Y196: 025 | Z196: Between 10 kg and < 20 kg
V197: 19 | W197: Paper, cardboard | Y197: 026 | Z197: Between 20 kg and < 30 kg
V198: 20 | W198: Min. 75% certified solid wood | Y198: 027 | Z198: Between 30 kg and < 40 kg
V199: 21 | W199: Min. 75% uncertified solid wood | Y199: 028 | Z199: Between 40 kg and < 60 kg
V200: 22 | W200: Min. 75% metal | Y200: 029 | Z200: Between 60 kg and < 100 kg
... 974 more rows

Sheet Eco-fee codes
A1: Eco-fee codes | F1: 0
B2: The following table shows eco-fee codes and their corresponding amounts for 2024 and beyond.
B5: Eco-fee codes | C5: Amount € excl. VAT / item | D5: Montant € incl. VAT / item (20% VAT)
B6: 499 | C6: 0.005 | D6: =C6*1.2 -> 0.006 | E6: =B6 -> 499
B7: 260 | C7: 0.01 | D7: 0.01 | E7: 260
B8: 441 | C8: 0.018 | D8: =C8*1.2 -> 0.0216 | E8: 441
B9: 047 | C9: 0.02 | D9: 0.02 | E9: 047
B10: 519 | C10: 0.027 | D10: =C10*1.2 -> 0.0324 | E10: 519
B11: 092 | C11: 0.03 | D11: 0.04 | E11: 092
B12: 002 | C12: 0.04 | D12: 0.05 | E12: 002
B13: 048 | C13: 0.05 | D13: 0.06 | E13: 048
B14: 520 | C14: 0.054 | D14: =C14*1.2 -> 0.0648 | E14: 520
B15: 096 | C15: 0.06 | D15: 0.07 | E15: 096
B16: 247 | C16: 0.07 | D16: 0.08 | E16: 247
B17: 003 | C17: 0.08 | D17: 0.1 | E17: 003
B18: 442 | C18: 0.086 | D18: =C18*1.2 -> 0.1032 | E18: 442
B19: 049 | C19: 0.09 | D19: 0.11 | E19: 049
B20: 094 | C20: 0.1 | D20: 0.12 | E20: 094
B21: 443 | C21: 0.105 | D21: =C21*1.2 -> 0.126 | E21: 443
B22: 262 | C22: 0.11 | D22: 0.13 | E22: 262
B23: 097 | C23: 0.12 | D23: 0.14 | E23: 097
B24: 004 | C24: 0.13 | D24: 0.16 | E24: 004
B25: 098 | C25: 0.14 | D25: 0.17 | E25: 098
B26: 444 | C26: 0.143 | D26: =C26*1.2 -> 0.1716 | E26: 444
B27: 050 | C27: 0.15 | D27: 0.18 | E27: 050
B28: 099 | C28: 0.16 | D28: 0.19 | E28: 099
B29: 005 | C29: 0.17 | D29: 0.2 | E29: 005
B30: 100 | C30: 0.18 | D30: 0.22 | E30: 100
B31: 291 | C31: 0.19 | D31: 0.23 | E31: 291
B32: 101 | C32: 0.2 | D32: 0.24 | E32: 101
B33: 051 | C33: 0.21 | D33: 0.25 | E33: 051
B34: 263 | C34: 0.22 | D34: 0.26 | E34: 263
B35: 323 | C35: 0.23 | D35: =C35*1.2 -> 0.276 | E35: 323
B36: 248 | C36: 0.24 | D36: 0.29 | E36: 248
B37: 095 | C37: 0.25 | D37: 0.3 | E37: 095
B38: 445 | C38: 0.26 | D38: =C38*1.2 -> 0.312 | E38: 445
B39: 103 | C39: 0.27 | D39: 0.32 | E39: 103
B40: 542 | C40: 0.28 | D40: =C40*1.2 -> 0.336 | E40: 542
B41: 324 | C41: 0.29 | D41: =C41*1.2 -> 0.348 | E41: 324
B42: 446 | C42: 0.3 | D42: =C42*1.2 -> 0.36 | E42: 446
B43: 104 | C43: 0.31 | D43: 0.37 | E43: 104
B44: 447 | C44: 0.32 | D44: =C44*1.2 -> 0.384 | E44: 447
B45: 006 | C45: 0.33 | D45: 0.4 | E45: 006
B46: 043 | C46: 0.34 | D46: 0.41 | E46: 043
B47: 448 | C47: 0.35 | D47: =C47*1.2 -> 0.42 | E47: 448
B48: 449 | C48: 0.36 | D48: =C48*1.2 -> 0.432 | E48: 449
B49: 268 | C49: 0.37 | D49: 0.44 | E49: 268
B50: 292 | C50: 0.38 | D50: 0.46 | E50: 292
B51: 253 | C51: 0.39 | D51: 0.47 | E51: 253
B52: 105 | C52: 0.4 | D52: 0.48 | E52: 105
B53: 503 | C53: 0.41 | D53: =C53*1.2 -> 0.492 | E53: 503
B54: 450 | C54: 0.42 | D54: =C54*1.2 -> 0.504 | E54: 450
B55: 506 | C55: 0.43 | D55: =C55*1.2 -> 0.516 | E55: 506
B56: 281 | C56: 0.44 | D56: 0.53 | E56: 281
B57: 325 | C57: 0.45 | D57: =C57*1.2 -> 0.54 | E57: 325
B58: 106 | C58: 0.46 | D58: 0.55 | E58: 106
B59: 107 | C59: 0.47 | D59: 0.56 | E59: 107
B60: 108 | C60: 0.49 | D60: 0.59 | E60: 108
B61: 053 | C61: 0.5 | D61: 0.6 | E61: 053
B62: 109 | C62: 0.51 | D62: 0.61 | E62: 109
B63: 509 | C63: 0.52 | D63: =C63*1.2 -> 0.624 | E63: 509
B64: 451 | C64: 0.53 | D64: 0.636 | E64: 451
B65: 500 | C65: 0.54 | D65: 0.648 | E65: 500
B66: 536 | C66: 0.55 | D66: 0.66 | E66: 536
B67: 543 | C67: 0.56 | D67: 0.672 | E67: 543
B68: 326 | C68: 0.57 | D68: 0.684 | E68: 326
B69: 535 | C69: 0.58 | D69: 0.696 | E69: 535
B70: 254 | C70: 0.59 | D70: 0.71 | E70: =B70 -> 254
B71: 327 | C71: 0.6 | D71: =C71*1.2 -> 0.72 | E71: 327
B72: 540 | C72: 0.62 | D72: =C72*1.2 -> 0.744 | E72: 540
B73: 297 | C73: 0.63 | D73: 0.76 | E73: 297
B74: 452 | C74: 0.64 | D74: =C74*1.2 -> 0.768 | E74: 452
B75: 453 | C75: 0.66 | D75: =C75*1.2 -> 0.792 | E75: 453
B76: 110 | C76: 0.67 | D76: 0.8 | E76: 110
B77: 044 | C77: 0.68 | D77: 0.82 | E77: 044
B78: 111 | C78: 0.69 | D78: 0.83 | E78: 111
B79: 282 | C79: 0.7 | D79: 0.84 | E79: 282
B80: 454 | C80: 0.72 | D80: =C80*1.2 -> 0.864 | E80: 454
B81: 255 | C81: 0.73 | D81: 0.88 | E81: 255
B82: 328 | C82: 0.75 | D82: =C82*1.2 -> 0.9 | E82: 328
B83: 455 | C83: 0.76 | D83: =C83*1.2 -> 0.912 | E83: 455
B84: 312 | C84: 0.78 | D84: 0.94 | E84: 312
B85: 456 | C85: 0.8 | D85: =C85*1.2 -> 0.96 | E85: 456
B86: 112 | C86: 0.81 | D86: 0.97 | E86: 112
B87: 008 | C87: 0.83 | D87: 1 | E87: 008
B88: 457 | C88: 0.84 | D88: =C88*1.2 -> 1.008 | E88: 457
B89: 329 | C89: 0.85 | D89: =C89*1.2 -> 1.02 | E89: 329
B90: 501 | C90: 0.86 | D90: =C90*1.2 -> 1.032 | E90: 501
B91: 269 | C91: 0.88 | D91: 1.06 | E91: 269
B92: 330 | C92: 0.9 | D92: =C92*1.2 -> 1.08 | E92: 330
B93: 510 | C93: 0.91 | D93: =C93*1.2 -> 1.092 | E93: 510
B94: 054 | C94: 0.92 | D94: 1.1 | E94: 054
B95: 458 | C95: 0.94 | D95: =C95*1.2 -> 1.128 | E95: 458
B96: 055 | C96: 0.96 | D96: 1.15 | E96: 055
B97: 459 | C97: 0.98 | D97: =C97*1.2 -> 1.176 | E97: 459
B98: 056 | C98: 1 | D98: 1.2 | E98: 056
B99: 298 | C99: 1.01 | D99: 1.21 | E99: 298
B100: 283 | C100: 1.05 | D100: 1.26 | E100: 283
B101: 113 | C101: 1.08 | D101: 1.3 | E101: 113
B102: 270 | C102: 1.09 | D102: 1.31 | E102: 270
B103: 331 | C103: 1.13 | D103: =C103*1.2 -> 1.356 | E103: 331
B104: 460 | C104: 1.15 | D104: 1.38 | E104: 460
B105: 504 | C105: 1.16 | D105: 1.392 | E105: 504
B106: 537 | C106: 1.17 | D106: 1.404 | E106: 537
B107: 461 | C107: 1.18 | D107: 1.416 | E107: 461
B108: 507 | C108: 1.19 | D108: 1.428 | E108: 507
B109: 505 | C109: 1.2 | D109: 1.44 | E109: 505
B110: 114 | C110: 1.21 | D110: 1.45 | E110: 114
B111: 313 | C111: 1.24 | D111: 1.49 | E111: 313
B112: 009 | C112: 1.25 | D112: 1.5 | E112: 009
B113: 511 | C113: 1.3 | D113: =C113*1.2 -> 1.56 | E113: 511
B114: 284 | C114: 1.31 | D114: 1.57 | E114: 284
B115: 115 | C115: 1.33 | D115: 1.6 | E115: 115
B116: 332 | C116: 1.35 | D116: =C116*1.2 -> 1.62 | E116: 332
B117: 462 | C117: 1.38 | D117: =C117*1.2 -> 1.656 | E117: 462
B118: 463 | C118: 1.4 | D118: =C118*1.2 -> 1.68 | E118: 463
B119: 333 | C119: 1.41 | D119: =C119*1.2 -> 1.692 | E119: 333
B120: 057 | C120: 1.42 | D120: 1.7 | E120: 057
B121: 058 | C121: 1.46 | D121: 1.75 | E121: 058
B122: 059 | C122: 1.5 | D122: 1.8 | E122: 059
B123: 502 | C123: 1.51 | D123: =C123*1.2 -> 1.812 | E123: 502
B124: 299 | C124: 1.52 | D124: 1.82 | E124: 299
B125: 464 | C125: 1.57 | D125: =C125*1.2 -> 1.884 | E125: 464
B126: 010 | C126: 1.67 | D126: 2 | E126: 010
B127: 465 | C127: 1.68 | D127: =C127*1.2 -> 2.016 | E127: 465
B128: 334 | C128: 1.69 | D128: =C128*1.2 -> 2.028 | E128: 334
B129: 256 | C129: 1.7 | D129: 2.04 | E129: 256
B130: 116 | C130: 1.71 | D130: 2.05 | E130: 116
B131: 394 | C131: 1.74 | D131: =C131*1.2 -> 2.088 | E131: 394
B132: 538 | C132: 1.75 | D132: =C132*1.2 -> 2.1 | E132: 538
B133: 466 | C133: 1.77 | D133: =C133*1.2 -> 2.124 | E133: 466
B134: 467 | C134: 1.81 | D134: =C134*1.2 -> 2.172 | E134: =B134 -> 467
B135: 271 | C135: 1.82 | D135: 2.18 | E135: 271
B136: 117 | C136: 1.83 | D136: 2.2 | E136: 117
B137: 314 | C137: 1.86 | D137: 2.23 | E137: 314
B138: 335 | C138: 1.88 | D138: =C138*1.2 -> 2.256 | E138: 335
B139: 300 | C139: 1.89 | D139: 2.27 | E139: 300
B140: 060 | C140: 1.92 | D140: 2.3 | E140: 060
B141: 512 | C141: 1.95 | D141: =C141*1.2 -> 2.34 | E141: 512
B142: 336 | C142: 1.97 | D142: =C142*1.2 -> 2.364 | E142: 336
B143: 061 | C143: 2 | D143: 2.4 | E143: 061
B144: 011 | C144: 2.08 | D144: 2.5 | E144: 011
B145: 468 | C145: 2.09 | D145: =C145*1.2 -> 2.508 | E145: 468
B146: 541 | C146: 2.17 | D146: =C146*1.2 -> 2.604 | E146: 541
B147: 257 | C147: 2.18 | D147: 2.62 | E147: 257
B148: 390 | C148: 2.2 | D148: =C148*1.2 -> 2.64 | E148: 390
B149: 469 | C149: 2.21 | D149: =C149*1.2 -> 2.652 | E149: 469
B150: 118 | C150: 2.25 | D150: 2.7 | E150: 118
B151: 062 | C151: 2.33 | D151: 2.8 | E151: 062
B152: 337 | C152: 2.35 | D152: =C152*1.2 -> 2.82 | E152: 337
B153: 470 | C153: 2.42 | D153: =C153*1.2 -> 2.904 | E153: 470
B154: 471 | C154: 2.43 | D154: =C154*1.2 -> 2.916 | E154: 471
B155: 012 | C155: 2.5 | D155: 3 | E155: 012
B156: 338 | C156: 2.54 | D156: =C156*1.2 -> 3.048 | E156: 338
B157: 272 | C157: 2.55 | D157: 3.06 | E157: 272
B158: 513 | C158: 2.6 | D158: =C158*1.2 -> 3.12 | E158: 513
B159: 399 | C159: 2.62 | D159: =C159*1.2 -> 3.144 | E159: 399
B160: 339 | C160: 2.63 | D160: =C160*1.2 -> 3.156 | E160: 339
B161: 119 | C161: 2.67 | D161: 3.2 | E161: 119
B162: 472 | C162: 2.74 | D162: =C162*1.2 -> 3.288 | E162: 472
B163: 120 | C163: 2.75 | D163: 3.3 | E163: 120
B164: 473 | C164: 2.78 | D164: =C164*1.2 -> 3.336 | E164: 473
B165: 340 | C165: 2.82 | D165: =C165*1.2 -> 3.384 | E165: 340
B166: 437 | C166: 2.84 | D166: =C166*1.2 -> 3.408 | E166: 437
B167: 400 | C167: 2.88 | D167: =C167*1.2 -> 3.456 | E167: 400
B168: 013 | C168: 2.92 | D168: 3.5 | E168: 013
B169: 474 | C169: 3 | D169: =C169*1.2 -> 3.6 | E169: 474
B170: 285 | C170: 3.05 | D170: 3.66 | E170: 285
B171: 475 | C171: 3.07 | D171: =C171*1.2 -> 3.684 | E171: 475
B172: 121 | C172: 3.08 | D172: 3.7 | E172: 121
B173: 341 | C173: 3.1 | D173: =C173*1.2 -> 3.72 | E173: 341
B174: 431 | C174: 3.11 | D174: =C174*1.2 -> 3.732 | E174: 431
B175: 301 | C175: 3.15 | D175: 3.78 | E175: 301
B176: 438 | C176: 3.17 | D176: =C176*1.2 -> 3.804 | E176: 438
B177: 476 | C177: 3.2 | D177: =C177*1.2 -> 3.84 | E177: 476
B178: 122 | C178: 3.25 | D178: 3.9 | E178: 122
B179: 273 | C179: 3.27 | D179: 3.92 | E179: 273
B180: 342 | C180: 3.29 | D180: =C180*1.2 -> 3.948 | E180: 342
B181: 397 | C181: 3.3 | D181: =C181*1.2 -> 3.96 | E181: 397
B182: 014 | C182: 3.33 | D182: 4 | E182: 014
B183: 343 | C183: 3.38 | D183: =C183*1.2 -> 4.056 | E183: 343
B184: 249 | C184: 3.39 | D184: 4.07 | E184: 249
B185: 508 | C185: 3.4 | D185: =C185*1.2 -> 4.08 | E185: 508
B186: 539 | C186: 3.5 | D186: =C186*1.2 -> 4.2 | E186: 539
B187: 123 | C187: 3.58 | D187: 4.3 | E187: 123
B188: 432 | C188: 3.61 | D188: =C188*1.2 -> 4.332 | E188: 432
B189: 124 | C189: 3.67 | D189: 4.4 | E189: 124
B190: 434 | C190: 3.68 | D190: =C190*1.2 -> 4.416 | E190: 434
B191: 407 | C191: 3.73 | D191: =C191*1.2 -> 4.476 | E191: 407
B192: 015 | C192: 3.75 | D192: 4.5 | E192: 015
B193: 396 | C193: 3.81 | D193: =C193*1.2 -> 4.572 | E193: 396
B194: 477 | C194: 3.82 | D194: =C194*1.2 -> 4.584 | E194: 477
B195: 521 | C195: 3.83 | D195: =C195*1.2 -> 4.596 | E195: 521
B196: 315 | C196: 3.88 | D196: 4.66 | E196: 315
B197: 125 | C197: 3.92 | D197: 4.7 | E197: 125
B198: 286 | C198: 3.93 | D198: 4.72 | E198: =B198 -> 286
B199: 344 | C199: 3.94 | D199: =C199*1.2 -> 4.728 | E199: 344
B200: 274 | C200: 4 | D200: 4.8 | E200: 274
B201: 345 | C201: 4.13 | D201: =C201*1.2 -> 4.956 | E201: 345
B202: 016 | C202: 4.17 | D202: 5 | E202: 016
... 329 more rows

Sheet Manuf to distrib into format
A1: Ecomaison - Template to be filled by the marketers (manufacturers) for their dsitributors
E3: Optional :
B4: Product EAN code (or any other code used by the manufacturer and distributor) | C4: Product description | D4: Eco-fee codes (3 digits) | E4: 11-digit product code
D5: 000 | E5: 00000000000
D6: 000 | E6: 00000000000
D7: 000 | E7: 00000000000
D8: 000 | E8: 00000000000
D9: 000 | E9: 00000000000
D10: 000 | E10: 00000000000
D11: 000 | E11: 00000000000
D12: 000 | E12: 00000000000
D13: 000 | E13: 00000000000
D14: 000 | E14: 00000000000
D15: 000 | E15: 00000000000
D16: 000 | E16: 00000000000
D17: 000 | E17: 00000000000
D18: 000 | E18: 00000000000
D19: 000 | E19: 00000000000
D20: 000 | E20: 00000000000
D21: 000 | E21: 00000000000
D22: 000 | E22: 00000000000
D23: 000 | E23: 00000000000
D24: 000 | E24: 00000000000
B26: A table displaying eco-fee codes and their corresponding amounts in the pricing scale is provided in the "Eco-fee codes" tab.

Sheet Ecofees
A1: Category code | B1: Category label | C1: Product type code | D1: Label Type | E1: Material code | F1: Material label | G1: Caracteristic code | H1: Caracteristic label | I1: Ecofee index | J1: Product code | K1: Product description | L1: Eco-fee ex VAT | M1: Eco part Code | N1: Eco-fee inc VAT
A2: =MID(J2,1,2) -> 01 | B2: =VLOOKUP(A2,'Understanding the coding'!$B$11:$C$23,2,FALSE) -> Living_room_lounge_dining_room_furniture | C2: =MID(J2,3,3) -> 017 | D2: =VLOOKUP(C2,'Understanding the coding'!$E$11:$F$65,2,FALSE) -> Storage units (excluding shelves) | E2: =MID(J2,6,2) -> 01 | F2: =VLOOKUP(E2,'Understanding the coding'!$H$11:$I$91,2,FALSE) -> > 50% wood, wood panels, and wood derivatives | G2: =MID(J2,8,3) -> 020 | H2: =VLOOKUP(G2,'Understanding the coding'!$K$11:$L$114,2,FALSE) -> Must not exceed 0.5 kg | J2: 01017010200 | K2: Living_room_lounge_dining_room_furniture,Storage units (excluding shelves),> 50% wood, wood panels, and wood derivatives,Must not exceed 0.5 kg | L2: 0.04 | M2: 002 | N2: 0.05
A3: 01 | B3: =VLOOKUP(A3,'Understanding the coding'!$B$11:$C$23,2,FALSE) -> Living_room_lounge_dining_room_furniture | C3: 017 | D3: =VLOOKUP(C3,'Understanding the coding'!$E$11:$F$65,2,FALSE) -> Storage units (excluding shelves) | E3: 01 | F3: =VLOOKUP(E3,'Understanding the coding'!$H$11:$I$91,2,FALSE) -> > 50% wood, wood panels, and wood derivatives | G3: 021 | H3: =VLOOKUP(G3,'Understanding the coding'!$K$11:$L$114,2,FALSE) -> Between 0.5 kg and < 1 kg | J3: 01017010210 | K3: Living_room_lounge_dining_room_furniture,Storage units (excluding shelves),> 50% wood, wood panels, and wood derivatives,Between 0.5 kg and < 1 kg | L3: 0.11 | M3: 262 | N3: 0.13
A4: 01 | B4: =VLOOKUP(A4,'Understanding the coding'!$B$11:$C$23,2,FALSE) -> Living_room_lounge_dining_room_furniture | C4: 017 | D4: =VLOOKUP(C4,'Understanding the coding'!$E$11:$F$65,2,FALSE) -> Storage units (excluding shelves) | E4: 01 | F4: =VLOOKUP(E4,'Understanding the coding'!$H$11:$I$91,2,FALSE) -> > 50% wood, wood panels, and wood derivatives | G4: 022 | H4: =VLOOKUP(G4,'Understanding the coding'!$K$11:$L$114,2,FALSE) -> Between 1 kg and < 2 kg | J4: 01017010220 | K4: Living_room_lounge_dining_room_furniture,Storage units (excluding shelves),> 50% wood, wood panels, and wood derivatives,Between 1 kg and < 2 kg | L4: 0.18 | M4: 100 | N4: 0.22
A5: 01 | B5: =VLOOKUP(A5,'Understanding the coding'!$B$11:$C$23,2,FALSE) -> Living_room_lounge_dining_room_furniture | C5: 017 | D5: =VLOOKUP(C5,'Understanding the coding'!$E$11:$F$65,2,FALSE) -> Storage units (excluding shelves) | E5: 01 | F5: =VLOOKUP(E5,'Understanding the coding'!$H$11:$I$91,2,FALSE) -> > 50% wood, wood panels, and wood derivatives | G5: 023 | H5: =VLOOKUP(G5,'Understanding the coding'!$K$11:$L$114,2,FALSE) -> Between 2 kg and < 5 kg | J5: 01017010230 | K5: Living_room_lounge_dining_room_furniture,Storage units (excluding shelves),> 50% wood, wood panels, and wood derivatives,Between 2 kg and < 5 kg | L5: 0.37 | M5: 268 | N5: 0.44
A6: 01 | B6: =VLOOKUP(A6,'Understanding the coding'!$B$11:$C$23,2,FALSE) -> Living_room_lounge_dining_room_furniture | C6: 017 | D6: =VLOOKUP(C6,'Understanding the coding'!$E$11:$F$65,2,FALSE) -> Storage units (excluding shelves) | E6: 01 | F6: =VLOOKUP(E6,'Understanding the coding'!$H$11:$I$91,2,FALSE) -> > 50% wood, wood panels, and wood derivatives | G6: 024 | H6: =VLOOKUP(G6,'Understanding the coding'!$K$11:$L$114,2,FALSE) -> Between 5 kg and < 10 kg | J6: 01017010240 | K6: Living_room_lounge_dining_room_furniture,Storage units (excluding shelves),> 50% wood, wood panels, and wood derivatives,Between 5 kg and < 10 kg | L6: 0.83 | M6: 008 | N6: 1
A7: 01 | B7: =VLOOKUP(A7,'Understanding the coding'!$B$11:$C$23,2,FALSE) -> Living_room_lounge_dining_room_furniture | C7: 017 | D7: =VLOOKUP(C7,'Understanding the coding'!$E$11:$F$65,2,FALSE) -> Storage units (excluding shelves) | E7: 01 | F7: =VLOOKUP(E7,'Understanding the coding'!$H$11:$I$91,2,FALSE) -> > 50% wood, wood panels, and wood derivatives | G7: 025 | H7: =VLOOKUP(G7,'Understanding the coding'!$K$11:$L$114,2,FALSE) -> Between 10 kg and < 20 kg | J7: 01017010250 | K7: Living_room_lounge_dining_room_furniture,Storage units (excluding shelves),> 50% wood, wood panels, and wood derivatives,Between 10 kg and < 20 kg | L7: 1.75 | M7: 538 | N7: 2.1
A8: 01 | B8: =VLOOKUP(A8,'Understanding the coding'!$B$11:$C$23,2,FALSE) -> Living_room_lounge_dining_room_furniture | C8: 017 | D8: =VLOOKUP(C8,'Understanding the coding'!$E$11:$F$65,2,FALSE) -> Storage units (excluding shelves) | E8: 01 | F8: =VLOOKUP(E8,'Understanding the coding'!$H$11:$I$91,2,FALSE) -> > 50% wood, wood panels, and wood derivatives | G8: 026 | H8: =VLOOKUP(G8,'Understanding the coding'!$K$11:$L$114,2,FALSE) -> Between 20 kg and < 30 kg | J8: 01017010260 | K8: Living_room_lounge_dining_room_furniture,Storage units (excluding shelves),> 50% wood, wood panels, and wood derivatives,Between 20 kg and < 30 kg | L8: 2.92 | M8: 013 | N8: 3.5
A9: 01 | B9: =VLOOKUP(A9,'Understanding the coding'!$B$11:$C$23,2,FALSE) -> Living_room_lounge_dining_room_furniture | C9: 017 | D9: =VLOOKUP(C9,'Understanding the coding'!$E$11:$F$65,2,FALSE) -> Storage units (excluding shelves) | E9: 01 | F9: =VLOOKUP(E9,'Understanding the coding'!$H$11:$I$91,2,FALSE) -> > 50% wood, wood panels, and wood derivatives | G9: 027 | H9: =VLOOKUP(G9,'Understanding the coding'!$K$11:$L$114,2,FALSE) -> Between 30 kg and < 40 kg | J9: 01017010270 | K9: Living_room_lounge_dining_room_furniture,Storage units (excluding shelves),> 50% wood, wood panels, and wood derivatives,Between 30 kg and < 40 kg | L9: 4 | M9: 274 | N9: 4.8
A10: 01 | B10: =VLOOKUP(A10,'Understanding the coding'!$B$11:$C$23,2,FALSE) -> Living_room_lounge_dining_room_furniture | C10: 017 | D10: =VLOOKUP(C10,'Understanding the coding'!$E$11:$F$65,2,FALSE) -> Storage units (excluding shelves) | E10: 01 | F10: =VLOOKUP(E10,'Understanding the coding'!$H$11:$I$91,2,FALSE) -> > 50% wood, wood panels, and wood derivatives | G10: 028 | H10: =VLOOKUP(G10,'Understanding the coding'!$K$11:$L$114,2,FALSE) -> Between 40 kg and < 60 kg | J10: 01017010280 | K10: Living_room_lounge_dining_room_furniture,Storage units (excluding shelves),> 50% wood, wood panels, and wood derivatives,Between 40 kg and < 60 kg | L10: 5.33 | M10: 132 | N10: 6.4
A11: 01 | B11: =VLOOKUP(A11,'Understanding the coding'!$B$11:$C$23,2,FALSE) -> Living_room_lounge_dining_room_furniture | C11: 017 | D11: =VLOOKUP(C11,'Understanding the coding'!$E$11:$F$65,2,FALSE) -> Storage units (excluding shelves) | E11: 01 | F11: =VLOOKUP(E11,'Understanding the coding'!$H$11:$I$91,2,FALSE) -> > 50% wood, wood panels, and wood derivatives | G11: 029 | H11: =VLOOKUP(G11,'Understanding the coding'!$K$11:$L$114,2,FALSE) -> Between 60 kg and < 100 kg | J11: 01017010290 | K11: Living_room_lounge_dining_room_furniture,Storage units (excluding shelves),> 50% wood, wood panels, and wood derivatives,Between 60 kg and < 100 kg | L11: 8.33 | M11: 021 | N11: 10
A12: 01 | B12: =VLOOKUP(A12,'Understanding the coding'!$B$11:$C$23,2,FALSE) -> Living_room_lounge_dining_room_furniture | C12: 017 | D12: =VLOOKUP(C12,'Understanding the coding'!$E$11:$F$65,2,FALSE) -> Storage units (excluding shelves) | E12: 01 | F12: =VLOOKUP(E12,'Understanding the coding'!$H$11:$I$91,2,FALSE) -> > 50% wood, wood panels, and wood derivatives | G12: 030 | H12: =VLOOKUP(G12,'Understanding the coding'!$K$11:$L$114,2,FALSE) -> Between 100 kg and < 150 kg | J12: 01017010300 | K12: Living_room_lounge_dining_room_furniture,Storage units (excluding shelves),> 50% wood, wood panels, and wood derivatives,Between 100 kg and < 150 kg | L12: 15 | M12: 023 | N12: 18
A13: 01 | B13: =VLOOKUP(A13,'Understanding the coding'!$B$11:$C$23,2,FALSE) -> Living_room_lounge_dining_room_furniture | C13: 017 | D13: =VLOOKUP(C13,'Understanding the coding'!$E$11:$F$65,2,FALSE) -> Storage units (excluding shelves) | E13: 01 | F13: =VLOOKUP(E13,'Understanding the coding'!$H$11:$I$91,2,FALSE) -> > 50% wood, wood panels, and wood derivatives | G13: 031 | H13: =VLOOKUP(G13,'Understanding the coding'!$K$11:$L$114,2,FALSE) -> Between 150 kg and < 200 kg | J13: 01017010310 | K13: Living_room_lounge_dining_room_furniture,Storage units (excluding shelves),> 50% wood, wood panels, and wood derivatives,Between 150 kg and < 200 kg | L13: 25 | M13: 151 | N13: 30
A14: 01 | B14: =VLOOKUP(A14,'Understanding the coding'!$B$11:$C$23,2,FALSE) -> Living_room_lounge_dining_room_furniture | C14: 017 | D14: =VLOOKUP(C14,'Understanding the coding'!$E$11:$F$65,2,FALSE) -> Storage units (excluding shelves) | E14: 01 | F14: =VLOOKUP(E14,'Understanding the coding'!$H$11:$I$91,2,FALSE) -> > 50% wood, wood panels, and wood derivatives | G14: 032 | H14: =VLOOKUP(G14,'Understanding the coding'!$K$11:$L$114,2,FALSE) -> Between 200 kg and < 250 kg | J14: 01017010320 | K14: Living_room_lounge_dining_room_furniture,Storage units (excluding shelves),> 50% wood, wood panels, and wood derivatives,Between 200 kg and < 250 kg | L14: 25 | M14: 151 | N14: 30
A15: 01 | B15: =VLOOKUP(A15,'Understanding the coding'!$B$11:$C$23,2,FALSE) -> Living_room_lounge_dining_room_furniture | C15: 017 | D15: =VLOOKUP(C15,'Understanding the coding'!$E$11:$F$65,2,FALSE) -> Storage units (excluding shelves) | E15: 01 | F15: =VLOOKUP(E15,'Understanding the coding'!$H$11:$I$91,2,FALSE) -> > 50% wood, wood panels, and wood derivatives | G15: 033 | H15: =VLOOKUP(G15,'Understanding the coding'!$K$11:$L$114,2,FALSE) -> Between 250 kg and < 300 kg | J15: 01017010330 | K15: Living_room_lounge_dining_room_furniture,Storage units (excluding shelves),> 50% wood, wood panels, and wood derivatives,Between 250 kg and < 300 kg | L15: 25 | M15: 151 | N15: 30
A16: 01 | B16: =VLOOKUP(A16,'Understanding the coding'!$B$11:$C$23,2,FALSE) -> Living_room_lounge_dining_room_furniture | C16: 017 | D16: =VLOOKUP(C16,'Understanding the coding'!$E$11:$F$65,2,FALSE) -> Storage units (excluding shelves) | E16: 01 | F16: =VLOOKUP(E16,'Understanding the coding'!$H$11:$I$91,2,FALSE) -> > 50% wood, wood panels, and wood derivatives | G16: 034 | H16: =VLOOKUP(G16,'Understanding the coding'!$K$11:$L$114,2,FALSE) -> Between 300 kg and < 400 kg | J16: 01017010340 | K16: Living_room_lounge_dining_room_furniture,Storage units (excluding shelves),> 50% wood, wood panels, and wood derivatives,Between 300 kg and < 400 kg | L16: 25 | M16: 151 | N16: 30
A17: 01 | B17: =VLOOKUP(A17,'Understanding the coding'!$B$11:$C$23,2,FALSE) -> Living_room_lounge_dining_room_furniture | C17: 017 | D17: =VLOOKUP(C17,'Understanding the coding'!$E$11:$F$65,2,FALSE) -> Storage units (excluding shelves) | E17: 01 | F17: =VLOOKUP(E17,'Understanding the coding'!$H$11:$I$91,2,FALSE) -> > 50% wood, wood panels, and wood derivatives | G17: 035 | H17: =VLOOKUP(G17,'Understanding the coding'!$K$11:$L$114,2,FALSE) -> Between 400 kg and < 500 kg | J17: 01017010350 | K17: Living_room_lounge_dining_room_furniture,Storage units (excluding shelves),> 50% wood, wood panels, and wood derivatives,Between 400 kg and < 500 kg | L17: 25 | M17: 151 | N17: 30
A18: 01 | B18: =VLOOKUP(A18,'Understanding the coding'!$B$11:$C$23,2,FALSE) -> Living_room_lounge_dining_room_furniture | C18: 017 | D18: =VLOOKUP(C18,'Understanding the coding'!$E$11:$F$65,2,FALSE) -> Storage units (excluding shelves) | E18: 01 | F18: =VLOOKUP(E18,'Understanding the coding'!$H$11:$I$91,2,FALSE) -> > 50% wood, wood panels, and wood derivatives | G18: 036 | H18: =VLOOKUP(G18,'Understanding the coding'!$K$11:$L$114,2,FALSE) -> Between 500 kg and < 600 kg | J18: 01017010360 | K18: Living_room_lounge_dining_room_furniture,Storage units (excluding shelves),> 50% wood, wood panels, and wood derivatives,Between 500 kg and < 600 kg | L18: 25 | M18: 151 | N18: 30
A19: 01 | B19: =VLOOKUP(A19,'Understanding the coding'!$B$11:$C$23,2,FALSE) -> Living_room_lounge_dining_room_furniture | C19: 017 | D19: =VLOOKUP(C19,'Understanding the coding'!$E$11:$F$65,2,FALSE) -> Storage units (excluding shelves) | E19: 01 | F19: =VLOOKUP(E19,'Understanding the coding'!$H$11:$I$91,2,FALSE) -> > 50% wood, wood panels, and wood derivatives | G19: 037 | H19: =VLOOKUP(G19,'Understanding the coding'!$K$11:$L$114,2,FALSE) -> Between 600 kg and < 700 kg | J19: 01017010370 | K19: Living_room_lounge_dining_room_furniture,Storage units (excluding shelves),> 50% wood, wood panels, and wood derivatives,Between 600 kg and < 700 kg | L19: 25 | M19: 151 | N19: 30
A20: 01 | B20: =VLOOKUP(A20,'Understanding the coding'!$B$11:$C$23,2,FALSE) -> Living_room_lounge_dining_room_furniture | C20: 017 | D20: =VLOOKUP(C20,'Understanding the coding'!$E$11:$F$65,2,FALSE) -> Storage units (excluding shelves) | E20: 01 | F20: =VLOOKUP(E20,'Understanding the coding'!$H$11:$I$91,2,FALSE) -> > 50% wood, wood panels, and wood derivatives | G20: 038 | H20: =VLOOKUP(G20,'Understanding the coding'!$K$11:$L$114,2,FALSE) -> Between 700 kg and < 800 kg | J20: 01017010380 | K20: Living_room_lounge_dining_room_furniture,Storage units (excluding shelves),> 50% wood, wood panels, and wood derivatives,Between 700 kg and < 800 kg | L20: 25 | M20: 151 | N20: 30
A21: 01 | B21: =VLOOKUP(A21,'Understanding the coding'!$B$11:$C$23,2,FALSE) -> Living_room_lounge_dining_room_furniture | C21: 017 | D21: =VLOOKUP(C21,'Understanding the coding'!$E$11:$F$65,2,FALSE) -> Storage units (excluding shelves) | E21: 01 | F21: =VLOOKUP(E21,'Understanding the coding'!$H$11:$I$91,2,FALSE) -> > 50% wood, wood panels, and wood derivatives | G21: 039 | H21: =VLOOKUP(G21,'Understanding the coding'!$K$11:$L$114,2,FALSE) -> Between 800 kg and < 900 kg | J21: 01017010390 | K21: Living_room_lounge_dining_room_furniture,Storage units (excluding shelves),> 50% wood, wood panels, and wood derivatives,Between 800 kg and < 900 kg | L21: 25 | M21: 151 | N21: 30
A22: 01 | B22: =VLOOKUP(A22,'Understanding the coding'!$B$11:$C$23,2,FALSE) -> Living_room_lounge_dining_room_furniture | C22: 017 | D22: =VLOOKUP(C22,'Understanding the coding'!$E$11:$F$65,2,FALSE) -> Storage units (excluding shelves) | E22: 01 | F22: =VLOOKUP(E22,'Understanding the coding'!$H$11:$I$91,2,FALSE) -> > 50% wood, wood panels, and wood derivatives | G22: 040 | H22: =VLOOKUP(G22,'Understanding the coding'!$K$11:$L$114,2,FALSE) -> Between 900 kg and < 1,000 kg | J22: 01017010400 | K22: Living_room_lounge_dining_room_furniture,Storage units (excluding shelves),> 50% wood, wood panels, and wood derivatives,Between 900 kg and < 1,000 kg | L22: 25 | M22: 151 | N22: 30
A23: 01 | B23: =VLOOKUP(A23,'Understanding the coding'!$B$11:$C$23,2,FALSE) -> Living_room_lounge_dining_room_furniture | C23: 017 | D23: =VLOOKUP(C23,'Understanding the coding'!$E$11:$F$65,2,FALSE) -> Storage units (excluding shelves) | E23: 01 | F23: =VLOOKUP(E23,'Understanding the coding'!$H$11:$I$91,2,FALSE) -> > 50% wood, wood panels, and wood derivatives | G23: 041 | H23: =VLOOKUP(G23,'Understanding the coding'!$K$11:$L$114,2,FALSE) -> Between 1,000 kg and < 1,100 kg | J23: 01017010410 | K23: Living_room_lounge_dining_room_furniture,Storage units (excluding shelves),> 50% wood, wood panels, and wood derivatives,Between 1,000 kg and < 1,100 kg | L23: 25 | M23: 151 | N23: 30
A24: 01 | B24: =VLOOKUP(A24,'Understanding the coding'!$B$11:$C$23,2,FALSE) -> Living_room_lounge_dining_room_furniture | C24: 017 | D24: =VLOOKUP(C24,'Understanding the coding'!$E$11:$F$65,2,FALSE) -> Storage units (excluding shelves) | E24: 01 | F24: =VLOOKUP(E24,'Understanding the coding'!$H$11:$I$91,2,FALSE) -> > 50% wood, wood panels, and wood derivatives | G24: 042 | H24: =VLOOKUP(G24,'Understanding the coding'!$K$11:$L$114,2,FALSE) -> Between 1,100 kg and < 1,200 kg | J24: 01017010420 | K24: Living_room_lounge_dining_room_furniture,Storage units (excluding shelves),> 50% wood, wood panels, and wood derivatives,Between 1,100 kg and < 1,200 kg | L24: 25 | M24: 151 | N24: 30
A25: 01 | B25: =VLOOKUP(A25,'Understanding the coding'!$B$11:$C$23,2,FALSE) -> Living_room_lounge_dining_room_furniture | C25: 017 | D25: =VLOOKUP(C25,'Understanding the coding'!$E$11:$F$65,2,FALSE) -> Storage units (excluding shelves) | E25: 01 | F25: =VLOOKUP(E25,'Understanding the coding'!$H$11:$I$91,2,FALSE) -> > 50% wood, wood panels, and wood derivatives | G25: 043 | H25: =VLOOKUP(G25,'Understanding the coding'!$K$11:$L$114,2,FALSE) -> Between 1,200 kg and < 1,300 kg | J25: 01017010430 | K25: Living_room_lounge_dining_room_furniture,Storage units (excluding shelves),> 50% wood, wood panels, and wood derivatives,Between 1,200 kg and < 1,300 kg | L25: 25 | M25: 151 | N25: 30
A26: 01 | B26: =VLOOKUP(A26,'Understanding the coding'!$B$11:$C$23,2,FALSE) -> Living_room_lounge_dining_room_furniture | C26: 017 | D26: =VLOOKUP(C26,'Understanding the coding'!$E$11:$F$65,2,FALSE) -> Storage units (excluding shelves) | E26: 01 | F26: =VLOOKUP(E26,'Understanding the coding'!$H$11:$I$91,2,FALSE) -> > 50% wood, wood panels, and wood derivatives | G26: 044 | H26: =VLOOKUP(G26,'Understanding the coding'!$K$11:$L$114,2,FALSE) -> Between 1,300 kg and < 1,400 kg | J26: 01017010440 | K26: Living_room_lounge_dining_room_furniture,Storage units (excluding shelves),> 50% wood, wood panels, and wood derivatives,Between 1,300 kg and < 1,400 kg | L26: 25 | M26: 151 | N26: 30
A27: 01 | B27: =VLOOKUP(A27,'Understanding the coding'!$B$11:$C$23,2,FALSE) -> Living_room_lounge_dining_room_furniture | C27: 017 | D27: =VLOOKUP(C27,'Understanding the coding'!$E$11:$F$65,2,FALSE) -> Storage units (excluding shelves) | E27: 01 | F27: =VLOOKUP(E27,'Understanding the coding'!$H$11:$I$91,2,FALSE) -> > 50% wood, wood panels, and wood derivatives | G27: 045 | H27: =VLOOKUP(G27,'Understanding the coding'!$K$11:$L$114,2,FALSE) -> Between 1,400 kg and < 1,500 kg | J27: 01017010450 | K27: Living_room_lounge_dining_room_furniture,Storage units (excluding shelves),> 50% wood, wood panels, and wood derivatives,Between 1,400 kg and < 1,500 kg | L27: 25 | M27: 151 | N27: 30
A28: 01 | B28: =VLOOKUP(A28,'Understanding the coding'!$B$11:$C$23,2,FALSE) -> Living_room_lounge_dining_room_furniture | C28: 017 | D28: =VLOOKUP(C28,'Understanding the coding'!$E$11:$F$65,2,FALSE) -> Storage units (excluding shelves) | E28: 01 | F28: =VLOOKUP(E28,'Understanding the coding'!$H$11:$I$91,2,FALSE) -> > 50% wood, wood panels, and wood derivatives | G28: 046 | H28: =VLOOKUP(G28,'Understanding the coding'!$K$11:$L$114,2,FALSE) -> Between 1,500 kg and < 1,600 kg | J28: 01017010460 | K28: Living_room_lounge_dining_room_furniture,Storage units (excluding shelves),> 50% wood, wood panels, and wood derivatives,Between 1,500 kg and < 1,600 kg | L28: 25 | M28: 151 | N28: 30
A29: 01 | B29: =VLOOKUP(A29,'Understanding the coding'!$B$11:$C$23,2,FALSE) -> Living_room_lounge_dining_room_furniture | C29: 017 | D29: =VLOOKUP(C29,'Understanding the coding'!$E$11:$F$65,2,FALSE) -> Storage units (excluding shelves) | E29: 01 | F29: =VLOOKUP(E29,'Understanding the coding'!$H$11:$I$91,2,FALSE) -> > 50% wood, wood panels, and wood derivatives | G29: 047 | H29: =VLOOKUP(G29,'Understanding the coding'!$K$11:$L$114,2,FALSE) -> Between 1,600 kg and < 1,700 kg | J29: 01017010470 | K29: Living_room_lounge_dining_room_furniture,Storage units (excluding shelves),> 50% wood, wood panels, and wood derivatives,Between 1,600 kg and < 1,700 kg | L29: 25 | M29: 151 | N29: 30
A30: 01 | B30: =VLOOKUP(A30,'Understanding the coding'!$B$11:$C$23,2,FALSE) -> Living_room_lounge_dining_room_furniture | C30: 017 | D30: =VLOOKUP(C30,'Understanding the coding'!$E$11:$F$65,2,FALSE) -> Storage units (excluding shelves) | E30: 01 | F30: =VLOOKUP(E30,'Understanding the coding'!$H$11:$I$91,2,FALSE) -> > 50% wood, wood panels, and wood derivatives | G30: 048 | H30: =VLOOKUP(G30,'Understanding the coding'!$K$11:$L$114,2,FALSE) -> Between 1,700 kg and < 1,800 kg | J30: 01017010480 | K30: Living_room_lounge_dining_room_furniture,Storage units (excluding shelves),> 50% wood, wood panels, and wood derivatives,Between 1,700 kg and < 1,800 kg | L30: 25 | M30: 151 | N30: 30
A31: 01 | B31: =VLOOKUP(A31,'Understanding the coding'!$B$11:$C$23,2,FALSE) -> Living_room_lounge_dining_room_furniture | C31: 017 | D31: =VLOOKUP(C31,'Understanding the coding'!$E$11:$F$65,2,FALSE) -> Storage units (excluding shelves) | E31: 01 | F31: =VLOOKUP(E31,'Understanding the coding'!$H$11:$I$91,2,FALSE) -> > 50% wood, wood panels, and wood derivatives | G31: 049 | H31: =VLOOKUP(G31,'Understanding the coding'!$K$11:$L$114,2,FALSE) -> Between 1,800 kg and < 1,900 kg | J31: 01017010490 | K31: Living_room_lounge_dining_room_furniture,Storage units (excluding shelves),> 50% wood, wood panels, and wood derivatives,Between 1,800 kg and < 1,900 kg | L31: 25 | M31: 151 | N31: 30
A32: 01 | B32: =VLOOKUP(A32,'Understanding the coding'!$B$11:$C$23,2,FALSE) -> Living_room_lounge_dining_room_furniture | C32: 017 | D32: =VLOOKUP(C32,'Understanding the coding'!$E$11:$F$65,2,FALSE) -> Storage units (excluding shelves) | E32: 01 | F32: =VLOOKUP(E32,'Understanding the coding'!$H$11:$I$91,2,FALSE) -> > 50% wood, wood panels, and wood derivatives | G32: 050 | H32: =VLOOKUP(G32,'Understanding the coding'!$K$11:$L$114,2,FALSE) -> Between 1,900 kg and < 2,000 kg | J32: 01017010500 | K32: Living_room_lounge_dining_room_furniture,Storage units (excluding shelves),> 50% wood, wood panels, and wood derivatives,Between 1,900 kg and < 2,000 kg | L32: 25 | M32: 151 | N32: 30
A33: 01 | B33: =VLOOKUP(A33,'Understanding the coding'!$B$11:$C$23,2,FALSE) -> Living_room_lounge_dining_room_furniture | C33: 017 | D33: =VLOOKUP(C33,'Understanding the coding'!$E$11:$F$65,2,FALSE) -> Storage units (excluding shelves) | E33: 01 | F33: =VLOOKUP(E33,'Understanding the coding'!$H$11:$I$91,2,FALSE) -> > 50% wood, wood panels, and wood derivatives | G33: 051 | H33: =VLOOKUP(G33,'Understanding the coding'!$K$11:$L$114,2,FALSE) -> Over 2,000 kg | J33: 01017010510 | K33: Living_room_lounge_dining_room_furniture,Storage units (excluding shelves),> 50% wood, wood panels, and wood derivatives,Over 2,000 kg | L33: 25 | M33: 151 | N33: 30
A34: =MID(J34,1,2) -> 01 | B34: =VLOOKUP(A34,'Understanding the coding'!$B$11:$C$23,2,FALSE) -> Living_room_lounge_dining_room_furniture | C34: =MID(J34,3,3) -> 017 | D34: =VLOOKUP(C34,'Understanding the coding'!$E$11:$F$69,2,FALSE) -> Storage units (excluding shelves) | E34: =MID(J34,6,2) -> 01 | F34: =VLOOKUP(E34,'Understanding the coding'!$H$11:$I$91,2,FALSE) -> > 50% wood, wood panels, and wood derivatives | G34: =MID(J34,8,3) -> 106 | H34: =VLOOKUP(G34,'Understanding the coding'!$K$11:$L$114,2,FALSE) -> Strictly less than 0.25 kg | J34: 01017011060 | K34: Living_room_lounge_dining_room_furniture,Storage units (excluding shelves),> 50% wood, wood panels, and wood derivatives,Strictly less than 0.25 kg | L34: 0.03 | M34: 092 | N34: 0.04
A35: 01 | B35: =VLOOKUP(A35,'Understanding the coding'!$B$11:$C$23,2,FALSE) -> Living_room_lounge_dining_room_furniture | C35: 017 | D35: =VLOOKUP(C35,'Understanding the coding'!$E$11:$F$69,2,FALSE) -> Storage units (excluding shelves) | E35: 01 | F35: =VLOOKUP(E35,'Understanding the coding'!$H$11:$I$91,2,FALSE) -> > 50% wood, wood panels, and wood derivatives | G35: 107 | H35: =VLOOKUP(G35,'Understanding the coding'!$K$11:$L$114,2,FALSE) -> Between 0.25 kg and 0.5 kg excluded | J35: 01017011070 | K35: Living_room_lounge_dining_room_furniture,Storage units (excluding shelves),> 50% wood, wood panels, and wood derivatives,Between 0.25 kg and 0.5 kg excluded | L35: 0.04 | M35: 002 | N35: 0.05
A36: 01 | B36: =VLOOKUP(A36,'Understanding the coding'!$B$11:$C$23,2,FALSE) -> Living_room_lounge_dining_room_furniture | C36: 017 | D36: =VLOOKUP(C36,'Understanding the coding'!$E$11:$F$69,2,FALSE) -> Storage units (excluding shelves) | E36: 02 | F36: =VLOOKUP(E36,'Understanding the coding'!$H$11:$I$91,2,FALSE) -> > 50% metal | G36: 020 | H36: =VLOOKUP(G36,'Understanding the coding'!$K$11:$L$114,2,FALSE) -> Must not exceed 0.5 kg | J36: 01017020200 | K36: Living_room_lounge_dining_room_furniture,Storage units (excluding shelves),> 50% metal,Must not exceed 0.5 kg | L36: 0.03 | M36: 092 | N36: 0.04
A37: =MID(J37,1,2) -> 01 | B37: =VLOOKUP(A37,'Understanding the coding'!$B$11:$C$23,2,FALSE) -> Living_room_lounge_dining_room_furniture | C37: =MID(J37,3,3) -> 017 | D37: =VLOOKUP(C37,'Understanding the coding'!$E$11:$F$65,2,FALSE) -> Storage units (excluding shelves) | E37: =MID(J37,6,2) -> 02 | F37: =VLOOKUP(E37,'Understanding the coding'!$H$11:$I$91,2,FALSE) -> > 50% metal | G37: =MID(J37,8,3) -> 021 | H37: =VLOOKUP(G37,'Understanding the coding'!$K$11:$L$114,2,FALSE) -> Between 0.5 kg and < 1 kg | J37: 01017020210 | K37: Living_room_lounge_dining_room_furniture,Storage units (excluding shelves),> 50% metal,Between 0.5 kg and < 1 kg | L37: 0.06 | M37: 096 | N37: 0.07
A38: 01 | B38: =VLOOKUP(A38,'Understanding the coding'!$B$11:$C$23,2,FALSE) -> Living_room_lounge_dining_room_furniture | C38: 017 | D38: =VLOOKUP(C38,'Understanding the coding'!$E$11:$F$65,2,FALSE) -> Storage units (excluding shelves) | E38: 02 | F38: =VLOOKUP(E38,'Understanding the coding'!$H$11:$I$91,2,FALSE) -> > 50% metal | G38: 022 | H38: =VLOOKUP(G38,'Understanding the coding'!$K$11:$L$114,2,FALSE) -> Between 1 kg and < 2 kg | J38: 01017020220 | K38: Living_room_lounge_dining_room_furniture,Storage units (excluding shelves),> 50% metal,Between 1 kg and < 2 kg | L38: 0.12 | M38: 097 | N38: 0.14
A39: 01 | B39: =VLOOKUP(A39,'Understanding the coding'!$B$11:$C$23,2,FALSE) -> Living_room_lounge_dining_room_furniture | C39: 017 | D39: =VLOOKUP(C39,'Understanding the coding'!$E$11:$F$65,2,FALSE) -> Storage units (excluding shelves) | E39: 02 | F39: =VLOOKUP(E39,'Understanding the coding'!$H$11:$I$91,2,FALSE) -> > 50% metal | G39: 023 | H39: =VLOOKUP(G39,'Understanding the coding'!$K$11:$L$114,2,FALSE) -> Between 2 kg and < 5 kg | J39: 01017020230 | K39: Living_room_lounge_dining_room_furniture,Storage units (excluding shelves),> 50% metal,Between 2 kg and < 5 kg | L39: 0.22 | M39: 263 | N39: 0.26
A40: 01 | B40: =VLOOKUP(A40,'Understanding the coding'!$B$11:$C$23,2,FALSE) -> Living_room_lounge_dining_room_furniture | C40: 017 | D40: =VLOOKUP(C40,'Understanding the coding'!$E$11:$F$65,2,FALSE) -> Storage units (excluding shelves) | E40: 02 | F40: =VLOOKUP(E40,'Understanding the coding'!$H$11:$I$91,2,FALSE) -> > 50% metal | G40: 024 | H40: =VLOOKUP(G40,'Understanding the coding'!$K$11:$L$114,2,FALSE) -> Between 5 kg and < 10 kg | J40: 01017020240 | K40: Living_room_lounge_dining_room_furniture,Storage units (excluding shelves),> 50% metal,Between 5 kg and < 10 kg | L40: 0.55 | M40: 536 | N40: 0.66
A41: =MID(J41,1,2) -> 01 | B41: =VLOOKUP(A41,'Understanding the coding'!$B$11:$C$23,2,FALSE) -> Living_room_lounge_dining_room_furniture | C41: =MID(J41,3,3) -> 017 | D41: =VLOOKUP(C41,'Understanding the coding'!$E$11:$F$65,2,FALSE) -> Storage units (excluding shelves) | E41: =MID(J41,6,2) -> 02 | F41: =VLOOKUP(E41,'Understanding the coding'!$H$11:$I$91,2,FALSE) -> > 50% metal | G41: =MID(J41,8,3) -> 025 | H41: =VLOOKUP(G41,'Understanding the coding'!$K$11:$L$114,2,FALSE) -> Between 10 kg and < 20 kg | J41: 01017020250 | K41: Living_room_lounge_dining_room_furniture,Storage units (excluding shelves),> 50% metal,Between 10 kg and < 20 kg | L41: 1.25 | M41: 009 | N41: 1.5
A42: 01 | B42: =VLOOKUP(A42,'Understanding the coding'!$B$11:$C$23,2,FALSE) -> Living_room_lounge_dining_room_furniture | C42: 017 | D42: =VLOOKUP(C42,'Understanding the coding'!$E$11:$F$65,2,FALSE) -> Storage units (excluding shelves) | E42: 02 | F42: =VLOOKUP(E42,'Understanding the coding'!$H$11:$I$91,2,FALSE) -> > 50% metal | G42: 026 | H42: =VLOOKUP(G42,'Understanding the coding'!$K$11:$L$114,2,FALSE) -> Between 20 kg and < 30 kg | J42: 01017020260 | K42: Living_room_lounge_dining_room_furniture,Storage units (excluding shelves),> 50% metal,Between 20 kg and < 30 kg | L42: 1.83 | M42: 117 | N42: 2.2
A43: 01 | B43: =VLOOKUP(A43,'Understanding the coding'!$B$11:$C$23,2,FALSE) -> Living_room_lounge_dining_room_furniture | C43: 017 | D43: =VLOOKUP(C43,'Understanding the coding'!$E$11:$F$65,2,FALSE) -> Storage units (excluding shelves) | E43: 02 | F43: =VLOOKUP(E43,'Understanding the coding'!$H$11:$I$91,2,FALSE) -> > 50% metal | G43: 027 | H43: =VLOOKUP(G43,'Understanding the coding'!$K$11:$L$114,2,FALSE) -> Between 30 kg and < 40 kg | J43: 01017020270 | K43: Living_room_lounge_dining_room_furniture,Storage units (excluding shelves),> 50% metal,Between 30 kg and < 40 kg | L43: 2.62 | M43: 399 | N43: 3.14
A44: 01 | B44: =VLOOKUP(A44,'Understanding the coding'!$B$11:$C$23,2,FALSE) -> Living_room_lounge_dining_room_furniture | C44: 017 | D44: =VLOOKUP(C44,'Understanding the coding'!$E$11:$F$65,2,FALSE) -> Storage units (excluding shelves) | E44: 02 | F44: =VLOOKUP(E44,'Understanding the coding'!$H$11:$I$91,2,FALSE) -> > 50% metal | G44: 028 | H44: =VLOOKUP(G44,'Understanding the coding'!$K$11:$L$114,2,FALSE) -> Between 40 kg and < 60 kg | J44: 01017020280 | K44: Living_room_lounge_dining_room_furniture,Storage units (excluding shelves),> 50% metal,Between 40 kg and < 60 kg | L44: 3.5 | M44: 539 | N44: 4.2
A45: =MID(J45,1,2) -> 01 | B45: =VLOOKUP(A45,'Understanding the coding'!$B$11:$C$23,2,FALSE) -> Living_room_lounge_dining_room_furniture | C45: =MID(J45,3,3) -> 017 | D45: =VLOOKUP(C45,'Understanding the coding'!$E$11:$F$65,2,FALSE) -> Storage units (excluding shelves) | E45: =MID(J45,6,2) -> 02 | F45: =VLOOKUP(E45,'Understanding the coding'!$H$11:$I$91,2,FALSE) -> > 50% metal | G45: =MID(J45,8,3) -> 029 | H45: =VLOOKUP(G45,'Understanding the coding'!$K$11:$L$114,2,FALSE) -> Between 60 kg and < 100 kg | J45: 01017020290 | K45: Living_room_lounge_dining_room_furniture,Storage units (excluding shelves),> 50% metal,Between 60 kg and < 100 kg | L45: 5.83 | M45: 018 | N45: 7
A46: 01 | B46: =VLOOKUP(A46,'Understanding the coding'!$B$11:$C$23,2,FALSE) -> Living_room_lounge_dining_room_furniture | C46: 017 | D46: =VLOOKUP(C46,'Understanding the coding'!$E$11:$F$65,2,FALSE) -> Storage units (excluding shelves) | E46: 02 | F46: =VLOOKUP(E46,'Understanding the coding'!$H$11:$I$91,2,FALSE) -> > 50% metal | G46: 030 | H46: =VLOOKUP(G46,'Understanding the coding'!$K$11:$L$114,2,FALSE) -> Between 100 kg and < 150 kg | J46: 01017020300 | K46: Living_room_lounge_dining_room_furniture,Storage units (excluding shelves),> 50% metal,Between 100 kg and < 150 kg | L46: 10.5 | M46: 529 | N46: 12.6
A47: 01 | B47: =VLOOKUP(A47,'Understanding the coding'!$B$11:$C$23,2,FALSE) -> Living_room_lounge_dining_room_furniture | C47: 017 | D47: =VLOOKUP(C47,'Understanding the coding'!$E$11:$F$65,2,FALSE) -> Storage units (excluding shelves) | E47: 02 | F47: =VLOOKUP(E47,'Understanding the coding'!$H$11:$I$91,2,FALSE) -> > 50% metal | G47: 031 | H47: =VLOOKUP(G47,'Understanding the coding'!$K$11:$L$114,2,FALSE) -> Between 150 kg and < 200 kg | J47: 01017020310 | K47: Living_room_lounge_dining_room_furniture,Storage units (excluding shelves),> 50% metal,Between 150 kg and < 200 kg | L47: 17.5 | M47: 073 | N47: 21
A48: 01 | B48: =VLOOKUP(A48,'Understanding the coding'!$B$11:$C$23,2,FALSE) -> Living_room_lounge_dining_room_furniture | C48: 017 | D48: =VLOOKUP(C48,'Understanding the coding'!$E$11:$F$65,2,FALSE) -> Storage units (excluding shelves) | E48: 02 | F48: =VLOOKUP(E48,'Understanding the coding'!$H$11:$I$91,2,FALSE) -> > 50% metal | G48: 032 | H48: =VLOOKUP(G48,'Understanding the coding'!$K$11:$L$114,2,FALSE) -> Between 200 kg and < 250 kg | J48: 01017020320 | K48: Living_room_lounge_dining_room_furniture,Storage units (excluding shelves),> 50% metal,Between 200 kg and < 250 kg | L48: 17.5 | M48: 073 | N48: 21
A49: =MID(J49,1,2) -> 01 | B49: =VLOOKUP(A49,'Understanding the coding'!$B$11:$C$23,2,FALSE) -> Living_room_lounge_dining_room_furniture | C49: =MID(J49,3,3) -> 017 | D49: =VLOOKUP(C49,'Understanding the coding'!$E$11:$F$65,2,FALSE) -> Storage units (excluding shelves) | E49: =MID(J49,6,2) -> 02 | F49: =VLOOKUP(E49,'Understanding the coding'!$H$11:$I$91,2,FALSE) -> > 50% metal | G49: =MID(J49,8,3) -> 033 | H49: =VLOOKUP(G49,'Understanding the coding'!$K$11:$L$114,2,FALSE) -> Between 250 kg and < 300 kg | J49: 01017020330 | K49: Living_room_lounge_dining_room_furniture,Storage units (excluding shelves),> 50% metal,Between 250 kg and < 300 kg | L49: 17.5 | M49: 073 | N49: 21
A50: 01 | B50: =VLOOKUP(A50,'Understanding the coding'!$B$11:$C$23,2,FALSE) -> Living_room_lounge_dining_room_furniture | C50: 017 | D50: =VLOOKUP(C50,'Understanding the coding'!$E$11:$F$65,2,FALSE) -> Storage units (excluding shelves) | E50: 02 | F50: =VLOOKUP(E50,'Understanding the coding'!$H$11:$I$91,2,FALSE) -> > 50% metal | G50: 034 | H50: =VLOOKUP(G50,'Understanding the coding'!$K$11:$L$114,2,FALSE) -> Between 300 kg and < 400 kg | J50: 01017020340 | K50: Living_room_lounge_dining_room_furniture,Storage units (excluding shelves),> 50% metal,Between 300 kg and < 400 kg | L50: 17.5 | M50: 073 | N50: 21
A51: 01 | B51: =VLOOKUP(A51,'Understanding the coding'!$B$11:$C$23,2,FALSE) -> Living_room_lounge_dining_room_furniture | C51: 017 | D51: =VLOOKUP(C51,'Understanding the coding'!$E$11:$F$65,2,FALSE) -> Storage units (excluding shelves) | E51: 02 | F51: =VLOOKUP(E51,'Understanding the coding'!$H$11:$I$91,2,FALSE) -> > 50% metal | G51: 035 | H51: =VLOOKUP(G51,'Understanding the coding'!$K$11:$L$114,2,FALSE) -> Between 400 kg and < 500 kg | J51: 01017020350 | K51: Living_room_lounge_dining_room_furniture,Storage units (excluding shelves),> 50% metal,Between 400 kg and < 500 kg | L51: 17.5 | M51: 073 | N51: 21
A52: 01 | B52: =VLOOKUP(A52,'Understanding the coding'!$B$11:$C$23,2,FALSE) -> Living_room_lounge_dining_room_furniture | C52: 017 | D52: =VLOOKUP(C52,'Understanding the coding'!$E$11:$F$65,2,FALSE) -> Storage units (excluding shelves) | E52: 02 | F52: =VLOOKUP(E52,'Understanding the coding'!$H$11:$I$91,2,FALSE) -> > 50% metal | G52: 036 | H52: =VLOOKUP(G52,'Understanding the coding'!$K$11:$L$114,2,FALSE) -> Between 500 kg and < 600 kg | J52: 01017020360 | K52: Living_room_lounge_dining_room_furniture,Storage units (excluding shelves),> 50% metal,Between 500 kg and < 600 kg | L52: 17.5 | M52: 073 | N52: 21
A53: =MID(J53,1,2) -> 01 | B53: =VLOOKUP(A53,'Understanding the coding'!$B$11:$C$23,2,FALSE) -> Living_room_lounge_dining_room_furniture | C53: =MID(J53,3,3) -> 017 | D53: =VLOOKUP(C53,'Understanding the coding'!$E$11:$F$65,2,FALSE) -> Storage units (excluding shelves) | E53: =MID(J53,6,2) -> 02 | F53: =VLOOKUP(E53,'Understanding the coding'!$H$11:$I$91,2,FALSE) -> > 50% metal | G53: =MID(J53,8,3) -> 037 | H53: =VLOOKUP(G53,'Understanding the coding'!$K$11:$L$114,2,FALSE) -> Between 600 kg and < 700 kg | J53: 01017020370 | K53: Living_room_lounge_dining_room_furniture,Storage units (excluding shelves),> 50% metal,Between 600 kg and < 700 kg | L53: 17.5 | M53: 073 | N53: 21
A54: 01 | B54: =VLOOKUP(A54,'Understanding the coding'!$B$11:$C$23,2,FALSE) -> Living_room_lounge_dining_room_furniture | C54: 017 | D54: =VLOOKUP(C54,'Understanding the coding'!$E$11:$F$65,2,FALSE) -> Storage units (excluding shelves) | E54: 02 | F54: =VLOOKUP(E54,'Understanding the coding'!$H$11:$I$91,2,FALSE) -> > 50% metal | G54: 038 | H54: =VLOOKUP(G54,'Understanding the coding'!$K$11:$L$114,2,FALSE) -> Between 700 kg and < 800 kg | J54: 01017020380 | K54: Living_room_lounge_dining_room_furniture,Storage units (excluding shelves),> 50% metal,Between 700 kg and < 800 kg | L54: 17.5 | M54: 073 | N54: 21
A55: 01 | B55: =VLOOKUP(A55,'Understanding the coding'!$B$11:$C$23,2,FALSE) -> Living_room_lounge_dining_room_furniture | C55: 017 | D55: =VLOOKUP(C55,'Understanding the coding'!$E$11:$F$65,2,FALSE) -> Storage units (excluding shelves) | E55: 02 | F55: =VLOOKUP(E55,'Understanding the coding'!$H$11:$I$91,2,FALSE) -> > 50% metal | G55: 039 | H55: =VLOOKUP(G55,'Understanding the coding'!$K$11:$L$114,2,FALSE) -> Between 800 kg and < 900 kg | J55: 01017020390 | K55: Living_room_lounge_dining_room_furniture,Storage units (excluding shelves),> 50% metal,Between 800 kg and < 900 kg | L55: 17.5 | M55: 073 | N55: 21
A56: 01 | B56: =VLOOKUP(A56,'Understanding the coding'!$B$11:$C$23,2,FALSE) -> Living_room_lounge_dining_room_furniture | C56: 017 | D56: =VLOOKUP(C56,'Understanding the coding'!$E$11:$F$65,2,FALSE) -> Storage units (excluding shelves) | E56: 02 | F56: =VLOOKUP(E56,'Understanding the coding'!$H$11:$I$91,2,FALSE) -> > 50% metal | G56: 040 | H56: =VLOOKUP(G56,'Understanding the coding'!$K$11:$L$114,2,FALSE) -> Between 900 kg and < 1,000 kg | J56: 01017020400 | K56: Living_room_lounge_dining_room_furniture,Storage units (excluding shelves),> 50% metal,Between 900 kg and < 1,000 kg | L56: 17.5 | M56: 073 | N56: 21
A57: =MID(J57,1,2) -> 01 | B57: =VLOOKUP(A57,'Understanding the coding'!$B$11:$C$23,2,FALSE) -> Living_room_lounge_dining_room_furniture | C57: =MID(J57,3,3) -> 017 | D57: =VLOOKUP(C57,'Understanding the coding'!$E$11:$F$65,2,FALSE) -> Storage units (excluding shelves) | E57: =MID(J57,6,2) -> 02 | F57: =VLOOKUP(E57,'Understanding the coding'!$H$11:$I$91,2,FALSE) -> > 50% metal | G57: =MID(J57,8,3) -> 041 | H57: =VLOOKUP(G57,'Understanding the coding'!$K$11:$L$114,2,FALSE) -> Between 1,000 kg and < 1,100 kg | J57: 01017020410 | K57: Living_room_lounge_dining_room_furniture,Storage units (excluding shelves),> 50% metal,Between 1,000 kg and < 1,100 kg | L57: 17.5 | M57: 073 | N57: 21
A58: 01 | B58: =VLOOKUP(A58,'Understanding the coding'!$B$11:$C$23,2,FALSE) -> Living_room_lounge_dining_room_furniture | C58: 017 | D58: =VLOOKUP(C58,'Understanding the coding'!$E$11:$F$65,2,FALSE) -> Storage units (excluding shelves) | E58: 02 | F58: =VLOOKUP(E58,'Understanding the coding'!$H$11:$I$91,2,FALSE) -> > 50% metal | G58: 042 | H58: =VLOOKUP(G58,'Understanding the coding'!$K$11:$L$114,2,FALSE) -> Between 1,100 kg and < 1,200 kg | J58: 01017020420 | K58: Living_room_lounge_dining_room_furniture,Storage units (excluding shelves),> 50% metal,Between 1,100 kg and < 1,200 kg | L58: 17.5 | M58: 073 | N58: 21
A59: 01 | B59: =VLOOKUP(A59,'Understanding the coding'!$B$11:$C$23,2,FALSE) -> Living_room_lounge_dining_room_furniture | C59: 017 | D59: =VLOOKUP(C59,'Understanding the coding'!$E$11:$F$65,2,FALSE) -> Storage units (excluding shelves) | E59: 02 | F59: =VLOOKUP(E59,'Understanding the coding'!$H$11:$I$91,2,FALSE) -> > 50% metal | G59: 043 | H59: =VLOOKUP(G59,'Understanding the coding'!$K$11:$L$114,2,FALSE) -> Between 1,200 kg and < 1,300 kg | J59: 01017020430 | K59: Living_room_lounge_dining_room_furniture,Storage units (excluding shelves),> 50% metal,Between 1,200 kg and < 1,300 kg | L59: 17.5 | M59: 073 | N59: 21
A60: 01 | B60: =VLOOKUP(A60,'Understanding the coding'!$B$11:$C$23,2,FALSE) -> Living_room_lounge_dining_room_furniture | C60: 017 | D60: =VLOOKUP(C60,'Understanding the coding'!$E$11:$F$65,2,FALSE) -> Storage units (excluding shelves) | E60: 02 | F60: =VLOOKUP(E60,'Understanding the coding'!$H$11:$I$91,2,FALSE) -> > 50% metal | G60: 044 | H60: =VLOOKUP(G60,'Understanding the coding'!$K$11:$L$114,2,FALSE) -> Between 1,300 kg and < 1,400 kg | J60: 01017020440 | K60: Living_room_lounge_dining_room_furniture,Storage units (excluding shelves),> 50% metal,Between 1,300 kg and < 1,400 kg | L60: 17.5 | M60: 073 | N60: 21
A61: =MID(J61,1,2) -> 01 | B61: =VLOOKUP(A61,'Understanding the coding'!$B$11:$C$23,2,FALSE) -> Living_room_lounge_dining_room_furniture | C61: =MID(J61,3,3) -> 017 | D61: =VLOOKUP(C61,'Understanding the coding'!$E$11:$F$65,2,FALSE) -> Storage units (excluding shelves) | E61: =MID(J61,6,2) -> 02 | F61: =VLOOKUP(E61,'Understanding the coding'!$H$11:$I$91,2,FALSE) -> > 50% metal | G61: =MID(J61,8,3) -> 045 | H61: =VLOOKUP(G61,'Understanding the coding'!$K$11:$L$114,2,FALSE) -> Between 1,400 kg and < 1,500 kg | J61: 01017020450 | K61: Living_room_lounge_dining_room_furniture,Storage units (excluding shelves),> 50% metal,Between 1,400 kg and < 1,500 kg | L61: 17.5 | M61: 073 | N61: 21
A62: 01 | B62: =VLOOKUP(A62,'Understanding the coding'!$B$11:$C$23,2,FALSE) -> Living_room_lounge_dining_room_furniture | C62: 017 | D62: =VLOOKUP(C62,'Understanding the coding'!$E$11:$F$65,2,FALSE) -> Storage units (excluding shelves) | E62: 02 | F62: =VLOOKUP(E62,'Understanding the coding'!$H$11:$I$91,2,FALSE) -> > 50% metal | G62: 046 | H62: =VLOOKUP(G62,'Understanding the coding'!$K$11:$L$114,2,FALSE) -> Between 1,500 kg and < 1,600 kg | J62: 01017020460 | K62: Living_room_lounge_dining_room_furniture,Storage units (excluding shelves),> 50% metal,Between 1,500 kg and < 1,600 kg | L62: 17.5 | M62: 073 | N62: 21
A63: 01 | B63: =VLOOKUP(A63,'Understanding the coding'!$B$11:$C$23,2,FALSE) -> Living_room_lounge_dining_room_furniture | C63: 017 | D63: =VLOOKUP(C63,'Understanding the coding'!$E$11:$F$65,2,FALSE) -> Storage units (excluding shelves) | E63: 02 | F63: =VLOOKUP(E63,'Understanding the coding'!$H$11:$I$91,2,FALSE) -> > 50% metal | G63: 047 | H63: =VLOOKUP(G63,'Understanding the coding'!$K$11:$L$114,2,FALSE) -> Between 1,600 kg and < 1,700 kg | J63: 01017020470 | K63: Living_room_lounge_dining_room_furniture,Storage units (excluding shelves),> 50% metal,Between 1,600 kg and < 1,700 kg | L63: 17.5 | M63: 073 | N63: 21
A64: 01 | B64: =VLOOKUP(A64,'Understanding the coding'!$B$11:$C$23,2,FALSE) -> Living_room_lounge_dining_room_furniture | C64: 017 | D64: =VLOOKUP(C64,'Understanding the coding'!$E$11:$F$65,2,FALSE) -> Storage units (excluding shelves) | E64: 02 | F64: =VLOOKUP(E64,'Understanding the coding'!$H$11:$I$91,2,FALSE) -> > 50% metal | G64: 048 | H64: =VLOOKUP(G64,'Understanding the coding'!$K$11:$L$114,2,FALSE) -> Between 1,700 kg and < 1,800 kg | J64: 01017020480 | K64: Living_room_lounge_dining_room_furniture,Storage units (excluding shelves),> 50% metal,Between 1,700 kg and < 1,800 kg | L64: 17.5 | M64: 073 | N64: 21
A65: =MID(J65,1,2) -> 01 | B65: =VLOOKUP(A65,'Understanding the coding'!$B$11:$C$23,2,FALSE) -> Living_room_lounge_dining_room_furniture | C65: =MID(J65,3,3) -> 017 | D65: =VLOOKUP(C65,'Understanding the coding'!$E$11:$F$65,2,FALSE) -> Storage units (excluding shelves) | E65: =MID(J65,6,2) -> 02 | F65: =VLOOKUP(E65,'Understanding the coding'!$H$11:$I$91,2,FALSE) -> > 50% metal | G65: =MID(J65,8,3) -> 049 | H65: =VLOOKUP(G65,'Understanding the coding'!$K$11:$L$114,2,FALSE) -> Between 1,800 kg and < 1,900 kg | J65: 01017020490 | K65: Living_room_lounge_dining_room_furniture,Storage units (excluding shelves),> 50% metal,Between 1,800 kg and < 1,900 kg | L65: 17.5 | M65: 073 | N65: 21
A66: 01 | B66: =VLOOKUP(A66,'Understanding the coding'!$B$11:$C$23,2,FALSE) -> Living_room_lounge_dining_room_furniture | C66: 017 | D66: =VLOOKUP(C66,'Understanding the coding'!$E$11:$F$65,2,FALSE) -> Storage units (excluding shelves) | E66: 02 | F66: =VLOOKUP(E66,'Understanding the coding'!$H$11:$I$91,2,FALSE) -> > 50% metal | G66: 050 | H66: =VLOOKUP(G66,'Understanding the coding'!$K$11:$L$114,2,FALSE) -> Between 1,900 kg and < 2,000 kg | J66: 01017020500 | K66: Living_room_lounge_dining_room_furniture,Storage units (excluding shelves),> 50% metal,Between 1,900 kg and < 2,000 kg | L66: 17.5 | M66: 073 | N66: 21
A67: 01 | B67: =VLOOKUP(A67,'Understanding the coding'!$B$11:$C$23,2,FALSE) -> Living_room_lounge_dining_room_furniture | C67: 017 | D67: =VLOOKUP(C67,'Understanding the coding'!$E$11:$F$65,2,FALSE) -> Storage units (excluding shelves) | E67: 02 | F67: =VLOOKUP(E67,'Understanding the coding'!$H$11:$I$91,2,FALSE) -> > 50% metal | G67: 051 | H67: =VLOOKUP(G67,'Understanding the coding'!$K$11:$L$114,2,FALSE) -> Over 2,000 kg | J67: 01017020510 | K67: Living_room_lounge_dining_room_furniture,Storage units (excluding shelves),> 50% metal,Over 2,000 kg | L67: 17.5 | M67: 073 | N67: 21
A68: 01 | B68: =VLOOKUP(A68,'Understanding the coding'!$B$11:$C$23,2,FALSE) -> Living_room_lounge_dining_room_furniture | C68: 017 | D68: =VLOOKUP(C68,'Understanding the coding'!$E$11:$F$65,2,FALSE) -> Storage units (excluding shelves) | E68: 02 | F68: =VLOOKUP(E68,'Understanding the coding'!$H$11:$I$91,2,FALSE) -> > 50% metal | G68: 106 | H68: =VLOOKUP(G68,'Understanding the coding'!$K$11:$L$114,2,FALSE) -> Strictly less than 0.25 kg | J68: 01017021060 | K68: Living_room_lounge_dining_room_furniture,Storage units (excluding shelves),> 50% metal,Strictly less than 0.25 kg | L68: 0.02 | M68: 047 | N68: 0.02
A69: =MID(J69,1,2) -> 01 | B69: =VLOOKUP(A69,'Understanding the coding'!$B$11:$C$23,2,FALSE) -> Living_room_lounge_dining_room_furniture | C69: =MID(J69,3,3) -> 017 | D69: =VLOOKUP(C69,'Understanding the coding'!$E$11:$F$65,2,FALSE) -> Storage units (excluding shelves) | E69: =MID(J69,6,2) -> 02 | F69: =VLOOKUP(E69,'Understanding the coding'!$H$11:$I$91,2,FALSE) -> > 50% metal | G69: =MID(J69,8,3) -> 107 | H69: =VLOOKUP(G69,'Understanding the coding'!$K$11:$L$114,2,FALSE) -> Between 0.25 kg and 0.5 kg excluded | J69: 01017021070 | K69: Living_room_lounge_dining_room_furniture,Storage units (excluding shelves),> 50% metal,Between 0.25 kg and 0.5 kg excluded | L69: 0.03 | M69: 092 | N69: 0.04
A70: 01 | B70: =VLOOKUP(A70,'Understanding the coding'!$B$11:$C$23,2,FALSE) -> Living_room_lounge_dining_room_furniture | C70: 017 | D70: =VLOOKUP(C70,'Understanding the coding'!$E$11:$F$65,2,FALSE) -> Storage units (excluding shelves) | E70: 03 | F70: =VLOOKUP(E70,'Understanding the coding'!$H$11:$I$91,2,FALSE) -> Bamboo/rattan | G70: 020 | H70: =VLOOKUP(G70,'Understanding the coding'!$K$11:$L$114,2,FALSE) -> Must not exceed 0.5 kg | J70: 01017030200 | K70: Living_room_lounge_dining_room_furniture,Storage units (excluding shelves),Bamboo/rattan,Must not exceed 0.5 kg | L70: 0.04 | M70: 002 | N70: 0.05
A71: =MID(J71,1,2) -> 01 | B71: =VLOOKUP(A71,'Understanding the coding'!$B$11:$C$23,2,FALSE) -> Living_room_lounge_dining_room_furniture | C71: =MID(J71,3,3) -> 017 | D71: =VLOOKUP(C71,'Understanding the coding'!$E$11:$F$65,2,FALSE) -> Storage units (excluding shelves) | E71: =MID(J71,6,2) -> 03 | F71: =VLOOKUP(E71,'Understanding the coding'!$H$11:$I$91,2,FALSE) -> Bamboo/rattan | G71: =MID(J71,8,3) -> 021 | H71: =VLOOKUP(G71,'Understanding the coding'!$K$11:$L$114,2,FALSE) -> Between 0.5 kg and < 1 kg | J71: 01017030210 | K71: Living_room_lounge_dining_room_furniture,Storage units (excluding shelves),Bamboo/rattan,Between 0.5 kg and < 1 kg | L71: 0.11 | M71: 262 | N71: 0.13
A72: 01 | B72: =VLOOKUP(A72,'Understanding the coding'!$B$11:$C$23,2,FALSE) -> Living_room_lounge_dining_room_furniture | C72: 017 | D72: =VLOOKUP(C72,'Understanding the coding'!$E$11:$F$65,2,FALSE) -> Storage units (excluding shelves) | E72: 03 | F72: =VLOOKUP(E72,'Understanding the coding'!$H$11:$I$91,2,FALSE) -> Bamboo/rattan | G72: 022 | H72: =VLOOKUP(G72,'Understanding the coding'!$K$11:$L$114,2,FALSE) -> Between 1 kg and < 2 kg | J72: 01017030220 | K72: Living_room_lounge_dining_room_furniture,Storage units (excluding shelves),Bamboo/rattan,Between 1 kg and < 2 kg | L72: 0.18 | M72: 100 | N72: 0.22
A73: 01 | B73: =VLOOKUP(A73,'Understanding the coding'!$B$11:$C$23,2,FALSE) -> Living_room_lounge_dining_room_furniture | C73: 017 | D73: =VLOOKUP(C73,'Understanding the coding'!$E$11:$F$65,2,FALSE) -> Storage units (excluding shelves) | E73: 03 | F73: =VLOOKUP(E73,'Understanding the coding'!$H$11:$I$91,2,FALSE) -> Bamboo/rattan | G73: 023 | H73: =VLOOKUP(G73,'Understanding the coding'!$K$11:$L$114,2,FALSE) -> Between 2 kg and < 5 kg | J73: 01017030230 | K73: Living_room_lounge_dining_room_furniture,Storage units (excluding shelves),Bamboo/rattan,Between 2 kg and < 5 kg | L73: 0.37 | M73: 268 | N73: 0.44
A74: 01 | B74: =VLOOKUP(A74,'Understanding the coding'!$B$11:$C$23,2,FALSE) -> Living_room_lounge_dining_room_furniture | C74: 017 | D74: =VLOOKUP(C74,'Understanding the coding'!$E$11:$F$65,2,FALSE) -> Storage units (excluding shelves) | E74: 03 | F74: =VLOOKUP(E74,'Understanding the coding'!$H$11:$I$91,2,FALSE) -> Bamboo/rattan | G74: 024 | H74: =VLOOKUP(G74,'Understanding the coding'!$K$11:$L$114,2,FALSE) -> Between 5 kg and < 10 kg | J74: 01017030240 | K74: Living_room_lounge_dining_room_furniture,Storage units (excluding shelves),Bamboo/rattan,Between 5 kg and < 10 kg | L74: 0.83 | M74: 008 | N74: 1
A75: =MID(J75,1,2) -> 01 | B75: =VLOOKUP(A75,'Understanding the coding'!$B$11:$C$23,2,FALSE) -> Living_room_lounge_dining_room_furniture | C75: =MID(J75,3,3) -> 017 | D75: =VLOOKUP(C75,'Understanding the coding'!$E$11:$F$65,2,FALSE) -> Storage units (excluding shelves) | E75: =MID(J75,6,2) -> 03 | F75: =VLOOKUP(E75,'Understanding the coding'!$H$11:$I$91,2,FALSE) -> Bamboo/rattan | G75: =MID(J75,8,3) -> 025 | H75: =VLOOKUP(G75,'Understanding the coding'!$K$11:$L$114,2,FALSE) -> Between 10 kg and < 20 kg | J75: 01017030250 | K75: Living_room_lounge_dining_room_furniture,Storage units (excluding shelves),Bamboo/rattan,Between 10 kg and < 20 kg | L75: 1.75 | M75: 538 | N75: 2.1
A76: 01 | B76: =VLOOKUP(A76,'Understanding the coding'!$B$11:$C$23,2,FALSE) -> Living_room_lounge_dining_room_furniture | C76: 017 | D76: =VLOOKUP(C76,'Understanding the coding'!$E$11:$F$65,2,FALSE) -> Storage units (excluding shelves) | E76: 03 | F76: =VLOOKUP(E76,'Understanding the coding'!$H$11:$I$91,2,FALSE) -> Bamboo/rattan | G76: 026 | H76: =VLOOKUP(G76,'Understanding the coding'!$K$11:$L$114,2,FALSE) -> Between 20 kg and < 30 kg | J76: 01017030260 | K76: Living_room_lounge_dining_room_furniture,Storage units (excluding shelves),Bamboo/rattan,Between 20 kg and < 30 kg | L76: 2.92 | M76: 013 | N76: 3.5
A77: 01 | B77: =VLOOKUP(A77,'Understanding the coding'!$B$11:$C$23,2,FALSE) -> Living_room_lounge_dining_room_furniture | C77: 017 | D77: =VLOOKUP(C77,'Understanding the coding'!$E$11:$F$65,2,FALSE) -> Storage units (excluding shelves) | E77: 03 | F77: =VLOOKUP(E77,'Understanding the coding'!$H$11:$I$91,2,FALSE) -> Bamboo/rattan | G77: 027 | H77: =VLOOKUP(G77,'Understanding the coding'!$K$11:$L$114,2,FALSE) -> Between 30 kg and < 40 kg | J77: 01017030270 | K77: Living_room_lounge_dining_room_furniture,Storage units (excluding shelves),Bamboo/rattan,Between 30 kg and < 40 kg | L77: 4 | M77: 274 | N77: 4.8
A78: 01 | B78: =VLOOKUP(A78,'Understanding the coding'!$B$11:$C$23,2,FALSE) -> Living_room_lounge_dining_room_furniture | C78: 017 | D78: =VLOOKUP(C78,'Understanding the coding'!$E$11:$F$65,2,FALSE) -> Storage units (excluding shelves) | E78: 03 | F78: =VLOOKUP(E78,'Understanding the coding'!$H$11:$I$91,2,FALSE) -> Bamboo/rattan | G78: 028 | H78: =VLOOKUP(G78,'Understanding the coding'!$K$11:$L$114,2,FALSE) -> Between 40 kg and < 60 kg | J78: 01017030280 | K78: Living_room_lounge_dining_room_furniture,Storage units (excluding shelves),Bamboo/rattan,Between 40 kg and < 60 kg | L78: 5.33 | M78: 132 | N78: 6.4
A79: =MID(J79,1,2) -> 01 | B79: =VLOOKUP(A79,'Understanding the coding'!$B$11:$C$23,2,FALSE) -> Living_room_lounge_dining_room_furniture | C79: =MID(J79,3,3) -> 017 | D79: =VLOOKUP(C79,'Understanding the coding'!$E$11:$F$65,2,FALSE) -> Storage units (excluding shelves) | E79: =MID(J79,6,2) -> 03 | F79: =VLOOKUP(E79,'Understanding the coding'!$H$11:$I$91,2,FALSE) -> Bamboo/rattan | G79: =MID(J79,8,3) -> 029 | H79: =VLOOKUP(G79,'Understanding the coding'!$K$11:$L$114,2,FALSE) -> Between 60 kg and < 100 kg | J79: 01017030290 | K79: Living_room_lounge_dining_room_furniture,Storage units (excluding shelves),Bamboo/rattan,Between 60 kg and < 100 kg | L79: 8.33 | M79: 021 | N79: 10
A80: 01 | B80: =VLOOKUP(A80,'Understanding the coding'!$B$11:$C$23,2,FALSE) -> Living_room_lounge_dining_room_furniture | C80: 017 | D80: =VLOOKUP(C80,'Understanding the coding'!$E$11:$F$65,2,FALSE) -> Storage units (excluding shelves) | E80: 03 | F80: =VLOOKUP(E80,'Understanding the coding'!$H$11:$I$91,2,FALSE) -> Bamboo/rattan | G80: 030 | H80: =VLOOKUP(G80,'Understanding the coding'!$K$11:$L$114,2,FALSE) -> Between 100 kg and < 150 kg | J80: 01017030300 | K80: Living_room_lounge_dining_room_furniture,Storage units (excluding shelves),Bamboo/rattan,Between 100 kg and < 150 kg | L80: 15 | M80: 023 | N80: 18
A81: 01 | B81: =VLOOKUP(A81,'Understanding the coding'!$B$11:$C$23,2,FALSE) -> Living_room_lounge_dining_room_furniture | C81: 017 | D81: =VLOOKUP(C81,'Understanding the coding'!$E$11:$F$65,2,FALSE) -> Storage units (excluding shelves) | E81: 03 | F81: =VLOOKUP(E81,'Understanding the coding'!$H$11:$I$91,2,FALSE) -> Bamboo/rattan | G81: 031 | H81: =VLOOKUP(G81,'Understanding the coding'!$K$11:$L$114,2,FALSE) -> Between 150 kg and < 200 kg | J81: 01017030310 | K81: Living_room_lounge_dining_room_furniture,Storage units (excluding shelves),Bamboo/rattan,Between 150 kg and < 200 kg | L81: 25 | M81: 151 | N81: 30
A82: 01 | B82: =VLOOKUP(A82,'Understanding the coding'!$B$11:$C$23,2,FALSE) -> Living_room_lounge_dining_room_furniture | C82: 017 | D82: =VLOOKUP(C82,'Understanding the coding'!$E$11:$F$65,2,FALSE) -> Storage units (excluding shelves) | E82: 03 | F82: =VLOOKUP(E82,'Understanding the coding'!$H$11:$I$91,2,FALSE) -> Bamboo/rattan | G82: 032 | H82: =VLOOKUP(G82,'Understanding the coding'!$K$11:$L$114,2,FALSE) -> Between 200 kg and < 250 kg | J82: 01017030320 | K82: Living_room_lounge_dining_room_furniture,Storage units (excluding shelves),Bamboo/rattan,Between 200 kg and < 250 kg | L82: 25 | M82: 151 | N82: 30
A83: =MID(J83,1,2) -> 01 | B83: =VLOOKUP(A83,'Understanding the coding'!$B$11:$C$23,2,FALSE) -> Living_room_lounge_dining_room_furniture | C83: =MID(J83,3,3) -> 017 | D83: =VLOOKUP(C83,'Understanding the coding'!$E$11:$F$65,2,FALSE) -> Storage units (excluding shelves) | E83: =MID(J83,6,2) -> 03 | F83: =VLOOKUP(E83,'Understanding the coding'!$H$11:$I$91,2,FALSE) -> Bamboo/rattan | G83: =MID(J83,8,3) -> 033 | H83: =VLOOKUP(G83,'Understanding the coding'!$K$11:$L$114,2,FALSE) -> Between 250 kg and < 300 kg | J83: 01017030330 | K83: Living_room_lounge_dining_room_furniture,Storage units (excluding shelves),Bamboo/rattan,Between 250 kg and < 300 kg | L83: 25 | M83: 151 | N83: 30
A84: 01 | B84: =VLOOKUP(A84,'Understanding the coding'!$B$11:$C$23,2,FALSE) -> Living_room_lounge_dining_room_furniture | C84: 017 | D84: =VLOOKUP(C84,'Understanding the coding'!$E$11:$F$65,2,FALSE) -> Storage units (excluding shelves) | E84: 03 | F84: =VLOOKUP(E84,'Understanding the coding'!$H$11:$I$91,2,FALSE) -> Bamboo/rattan | G84: 034 | H84: =VLOOKUP(G84,'Understanding the coding'!$K$11:$L$114,2,FALSE) -> Between 300 kg and < 400 kg | J84: 01017030340 | K84: Living_room_lounge_dining_room_furniture,Storage units (excluding shelves),Bamboo/rattan,Between 300 kg and < 400 kg | L84: 25 | M84: 151 | N84: 30
A85: 01 | B85: =VLOOKUP(A85,'Understanding the coding'!$B$11:$C$23,2,FALSE) -> Living_room_lounge_dining_room_furniture | C85: 017 | D85: =VLOOKUP(C85,'Understanding the coding'!$E$11:$F$65,2,FALSE) -> Storage units (excluding shelves) | E85: 03 | F85: =VLOOKUP(E85,'Understanding the coding'!$H$11:$I$91,2,FALSE) -> Bamboo/rattan | G85: 035 | H85: =VLOOKUP(G85,'Understanding the coding'!$K$11:$L$114,2,FALSE) -> Between 400 kg and < 500 kg | J85: 01017030350 | K85: Living_room_lounge_dining_room_furniture,Storage units (excluding shelves),Bamboo/rattan,Between 400 kg and < 500 kg | L85: 25 | M85: 151 | N85: 30
A86: 01 | B86: =VLOOKUP(A86,'Understanding the coding'!$B$11:$C$23,2,FALSE) -> Living_room_lounge_dining_room_furniture | C86: 017 | D86: =VLOOKUP(C86,'Understanding the coding'!$E$11:$F$65,2,FALSE) -> Storage units (excluding shelves) | E86: 03 | F86: =VLOOKUP(E86,'Understanding the coding'!$H$11:$I$91,2,FALSE) -> Bamboo/rattan | G86: 036 | H86: =VLOOKUP(G86,'Understanding the coding'!$K$11:$L$114,2,FALSE) -> Between 500 kg and < 600 kg | J86: 01017030360 | K86: Living_room_lounge_dining_room_furniture,Storage units (excluding shelves),Bamboo/rattan,Between 500 kg and < 600 kg | L86: 25 | M86: 151 | N86: 30
A87: =MID(J87,1,2) -> 01 | B87: =VLOOKUP(A87,'Understanding the coding'!$B$11:$C$23,2,FALSE) -> Living_room_lounge_dining_room_furniture | C87: =MID(J87,3,3) -> 017 | D87: =VLOOKUP(C87,'Understanding the coding'!$E$11:$F$65,2,FALSE) -> Storage units (excluding shelves) | E87: =MID(J87,6,2) -> 03 | F87: =VLOOKUP(E87,'Understanding the coding'!$H$11:$I$91,2,FALSE) -> Bamboo/rattan | G87: =MID(J87,8,3) -> 037 | H87: =VLOOKUP(G87,'Understanding the coding'!$K$11:$L$114,2,FALSE) -> Between 600 kg and < 700 kg | J87: 01017030370 | K87: Living_room_lounge_dining_room_furniture,Storage units (excluding shelves),Bamboo/rattan,Between 600 kg and < 700 kg | L87: 25 | M87: 151 | N87: 30
A88: 01 | B88: =VLOOKUP(A88,'Understanding the coding'!$B$11:$C$23,2,FALSE) -> Living_room_lounge_dining_room_furniture | C88: 017 | D88: =VLOOKUP(C88,'Understanding the coding'!$E$11:$F$65,2,FALSE) -> Storage units (excluding shelves) | E88: 03 | F88: =VLOOKUP(E88,'Understanding the coding'!$H$11:$I$91,2,FALSE) -> Bamboo/rattan | G88: 038 | H88: =VLOOKUP(G88,'Understanding the coding'!$K$11:$L$114,2,FALSE) -> Between 700 kg and < 800 kg | J88: 01017030380 | K88: Living_room_lounge_dining_room_furniture,Storage units (excluding shelves),Bamboo/rattan,Between 700 kg and < 800 kg | L88: 25 | M88: 151 | N88: 30
A89: 01 | B89: =VLOOKUP(A89,'Understanding the coding'!$B$11:$C$23,2,FALSE) -> Living_room_lounge_dining_room_furniture | C89: 017 | D89: =VLOOKUP(C89,'Understanding the coding'!$E$11:$F$65,2,FALSE) -> Storage units (excluding shelves) | E89: 03 | F89: =VLOOKUP(E89,'Understanding the coding'!$H$11:$I$91,2,FALSE) -> Bamboo/rattan | G89: 039 | H89: =VLOOKUP(G89,'Understanding the coding'!$K$11:$L$114,2,FALSE) -> Between 800 kg and < 900 kg | J89: 01017030390 | K89: Living_room_lounge_dining_room_furniture,Storage units (excluding shelves),Bamboo/rattan,Between 800 kg and < 900 kg | L89: 25 | M89: 151 | N89: 30
A90: 01 | B90: =VLOOKUP(A90,'Understanding the coding'!$B$11:$C$23,2,FALSE) -> Living_room_lounge_dining_room_furniture | C90: 017 | D90: =VLOOKUP(C90,'Understanding the coding'!$E$11:$F$65,2,FALSE) -> Storage units (excluding shelves) | E90: 03 | F90: =VLOOKUP(E90,'Understanding the coding'!$H$11:$I$91,2,FALSE) -> Bamboo/rattan | G90: 040 | H90: =VLOOKUP(G90,'Understanding the coding'!$K$11:$L$114,2,FALSE) -> Between 900 kg and < 1,000 kg | J90: 01017030400 | K90: Living_room_lounge_dining_room_furniture,Storage units (excluding shelves),Bamboo/rattan,Between 900 kg and < 1,000 kg | L90: 25 | M90: 151 | N90: 30
A91: =MID(J91,1,2) -> 01 | B91: =VLOOKUP(A91,'Understanding the coding'!$B$11:$C$23,2,FALSE) -> Living_room_lounge_dining_room_furniture | C91: =MID(J91,3,3) -> 017 | D91: =VLOOKUP(C91,'Understanding the coding'!$E$11:$F$65,2,FALSE) -> Storage units (excluding shelves) | E91: =MID(J91,6,2) -> 03 | F91: =VLOOKUP(E91,'Understanding the coding'!$H$11:$I$91,2,FALSE) -> Bamboo/rattan | G91: =MID(J91,8,3) -> 041 | H91: =VLOOKUP(G91,'Understanding the coding'!$K$11:$L$114,2,FALSE) -> Between 1,000 kg and < 1,100 kg | J91: 01017030410 | K91: Living_room_lounge_dining_room_furniture,Storage units (excluding shelves),Bamboo/rattan,Between 1,000 kg and < 1,100 kg | L91: 25 | M91: 151 | N91: 30
A92: 01 | B92: =VLOOKUP(A92,'Understanding the coding'!$B$11:$C$23,2,FALSE) -> Living_room_lounge_dining_room_furniture | C92: 017 | D92: =VLOOKUP(C92,'Understanding the coding'!$E$11:$F$65,2,FALSE) -> Storage units (excluding shelves) | E92: 03 | F92: =VLOOKUP(E92,'Understanding the coding'!$H$11:$I$91,2,FALSE) -> Bamboo/rattan | G92: 042 | H92: =VLOOKUP(G92,'Understanding the coding'!$K$11:$L$114,2,FALSE) -> Between 1,100 kg and < 1,200 kg | J92: 01017030420 | K92: Living_room_lounge_dining_room_furniture,Storage units (excluding shelves),Bamboo/rattan,Between 1,100 kg and < 1,200 kg | L92: 25 | M92: 151 | N92: 30
A93: 01 | B93: =VLOOKUP(A93,'Understanding the coding'!$B$11:$C$23,2,FALSE) -> Living_room_lounge_dining_room_furniture | C93: 017 | D93: =VLOOKUP(C93,'Understanding the coding'!$E$11:$F$65,2,FALSE) -> Storage units (excluding shelves) | E93: 03 | F93: =VLOOKUP(E93,'Understanding the coding'!$H$11:$I$91,2,FALSE) -> Bamboo/rattan | G93: 043 | H93: =VLOOKUP(G93,'Understanding the coding'!$K$11:$L$114,2,FALSE) -> Between 1,200 kg and < 1,300 kg | J93: 01017030430 | K93: Living_room_lounge_dining_room_furniture,Storage units (excluding shelves),Bamboo/rattan,Between 1,200 kg and < 1,300 kg | L93: 25 | M93: 151 | N93: 30
A94: 01 | B94: =VLOOKUP(A94,'Understanding the coding'!$B$11:$C$23,2,FALSE) -> Living_room_lounge_dining_room_furniture | C94: 017 | D94: =VLOOKUP(C94,'Understanding the coding'!$E$11:$F$65,2,FALSE) -> Storage units (excluding shelves) | E94: 03 | F94: =VLOOKUP(E94,'Understanding the coding'!$H$11:$I$91,2,FALSE) -> Bamboo/rattan | G94: 044 | H94: =VLOOKUP(G94,'Understanding the coding'!$K$11:$L$114,2,FALSE) -> Between 1,300 kg and < 1,400 kg | J94: 01017030440 | K94: Living_room_lounge_dining_room_furniture,Storage units (excluding shelves),Bamboo/rattan,Between 1,300 kg and < 1,400 kg | L94: 25 | M94: 151 | N94: 30
A95: =MID(J95,1,2) -> 01 | B95: =VLOOKUP(A95,'Understanding the coding'!$B$11:$C$23,2,FALSE) -> Living_room_lounge_dining_room_furniture | C95: =MID(J95,3,3) -> 017 | D95: =VLOOKUP(C95,'Understanding the coding'!$E$11:$F$65,2,FALSE) -> Storage units (excluding shelves) | E95: =MID(J95,6,2) -> 03 | F95: =VLOOKUP(E95,'Understanding the coding'!$H$11:$I$91,2,FALSE) -> Bamboo/rattan | G95: =MID(J95,8,3) -> 045 | H95: =VLOOKUP(G95,'Understanding the coding'!$K$11:$L$114,2,FALSE) -> Between 1,400 kg and < 1,500 kg | J95: 01017030450 | K95: Living_room_lounge_dining_room_furniture,Storage units (excluding shelves),Bamboo/rattan,Between 1,400 kg and < 1,500 kg | L95: 25 | M95: 151 | N95: 30
A96: 01 | B96: =VLOOKUP(A96,'Understanding the coding'!$B$11:$C$23,2,FALSE) -> Living_room_lounge_dining_room_furniture | C96: 017 | D96: =VLOOKUP(C96,'Understanding the coding'!$E$11:$F$65,2,FALSE) -> Storage units (excluding shelves) | E96: 03 | F96: =VLOOKUP(E96,'Understanding the coding'!$H$11:$I$91,2,FALSE) -> Bamboo/rattan | G96: 046 | H96: =VLOOKUP(G96,'Understanding the coding'!$K$11:$L$114,2,FALSE) -> Between 1,500 kg and < 1,600 kg | J96: 01017030460 | K96: Living_room_lounge_dining_room_furniture,Storage units (excluding shelves),Bamboo/rattan,Between 1,500 kg and < 1,600 kg | L96: 25 | M96: 151 | N96: 30
A97: 01 | B97: =VLOOKUP(A97,'Understanding the coding'!$B$11:$C$23,2,FALSE) -> Living_room_lounge_dining_room_furniture | C97: 017 | D97: =VLOOKUP(C97,'Understanding the coding'!$E$11:$F$65,2,FALSE) -> Storage units (excluding shelves) | E97: 03 | F97: =VLOOKUP(E97,'Understanding the coding'!$H$11:$I$91,2,FALSE) -> Bamboo/rattan | G97: 047 | H97: =VLOOKUP(G97,'Understanding the coding'!$K$11:$L$114,2,FALSE) -> Between 1,600 kg and < 1,700 kg | J97: 01017030470 | K97: Living_room_lounge_dining_room_furniture,Storage units (excluding shelves),Bamboo/rattan,Between 1,600 kg and < 1,700 kg | L97: 25 | M97: 151 | N97: 30
A98: 01 | B98: =VLOOKUP(A98,'Understanding the coding'!$B$11:$C$23,2,FALSE) -> Living_room_lounge_dining_room_furniture | C98: 017 | D98: =VLOOKUP(C98,'Understanding the coding'!$E$11:$F$65,2,FALSE) -> Storage units (excluding shelves) | E98: 03 | F98: =VLOOKUP(E98,'Understanding the coding'!$H$11:$I$91,2,FALSE) -> Bamboo/rattan | G98: 048 | H98: =VLOOKUP(G98,'Understanding the coding'!$K$11:$L$114,2,FALSE) -> Between 1,700 kg and < 1,800 kg | J98: 01017030480 | K98: Living_room_lounge_dining_room_furniture,Storage units (excluding shelves),Bamboo/rattan,Between 1,700 kg and < 1,800 kg | L98: 25 | M98: 151 | N98: 30
A99: =MID(J99,1,2) -> 01 | B99: =VLOOKUP(A99,'Understanding the coding'!$B$11:$C$23,2,FALSE) -> Living_room_lounge_dining_room_furniture | C99: =MID(J99,3,3) -> 017 | D99: =VLOOKUP(C99,'Understanding the coding'!$E$11:$F$65,2,FALSE) -> Storage units (excluding shelves) | E99: =MID(J99,6,2) -> 03 | F99: =VLOOKUP(E99,'Understanding the coding'!$H$11:$I$91,2,FALSE) -> Bamboo/rattan | G99: =MID(J99,8,3) -> 049 | H99: =VLOOKUP(G99,'Understanding the coding'!$K$11:$L$114,2,FALSE) -> Between 1,800 kg and < 1,900 kg | J99: 01017030490 | K99: Living_room_lounge_dining_room_furniture,Storage units (excluding shelves),Bamboo/rattan,Between 1,800 kg and < 1,900 kg | L99: 25 | M99: 151 | N99: 30
A100: 01 | B100: =VLOOKUP(A100,'Understanding the coding'!$B$11:$C$23,2,FALSE) -> Living_room_lounge_dining_room_furniture | C100: 017 | D100: =VLOOKUP(C100,'Understanding the coding'!$E$11:$F$65,2,FALSE) -> Storage units (excluding shelves) | E100: 03 | F100: =VLOOKUP(E100,'Understanding the coding'!$H$11:$I$91,2,FALSE) -> Bamboo/rattan | G100: 050 | H100: =VLOOKUP(G100,'Understanding the coding'!$K$11:$L$114,2,FALSE) -> Between 1,900 kg and < 2,000 kg | J100: 01017030500 | K100: Living_room_lounge_dining_room_furniture,Storage units (excluding shelves),Bamboo/rattan,Between 1,900 kg and < 2,000 kg | L100: 25 | M100: 151 | N100: 30
A101: =MID(J101,1,2) -> 01 | B101: =VLOOKUP(A101,'Understanding the coding'!$B$11:$C$23,2,FALSE) -> Living_room_lounge_dining_room_furniture | C101: =MID(J101,3,3) -> 017 | D101: =VLOOKUP(C101,'Understanding the coding'!$E$11:$F$65,2,FALSE) -> Storage units (excluding shelves) | E101: =MID(J101,6,2) -> 03 | F101: =VLOOKUP(E101,'Understanding the coding'!$H$11:$I$91,2,FALSE) -> Bamboo/rattan | G101: =MID(J101,8,3) -> 051 | H101: =VLOOKUP(G101,'Understanding the coding'!$K$11:$L$114,2,FALSE) -> Over 2,000 kg | J101: 01017030510 | K101: Living_room_lounge_dining_room_furniture,Storage units (excluding shelves),Bamboo/rattan,Over 2,000 kg | L101: 25 | M101: 151 | N101: 30
A102: 01 | B102: =VLOOKUP(A102,'Understanding the coding'!$B$11:$C$23,2,FALSE) -> Living_room_lounge_dining_room_furniture | C102: 017 | D102: =VLOOKUP(C102,'Understanding the coding'!$E$11:$F$65,2,FALSE) -> Storage units (excluding shelves) | E102: 03 | F102: =VLOOKUP(E102,'Understanding the coding'!$H$11:$I$91,2,FALSE) -> Bamboo/rattan | G102: 106 | H102: =VLOOKUP(G102,'Understanding the coding'!$K$11:$L$114,2,FALSE) -> Strictly less than 0.25 kg | J102: 01017031060 | K102: Living_room_lounge_dining_room_furniture,Storage units (excluding shelves),Bamboo/rattan,Strictly less than 0.25 kg | L102: 0.03 | M102: 092 | N102: 0.04
A103: 01 | B103: =VLOOKUP(A103,'Understanding the coding'!$B$11:$C$23,2,FALSE) -> Living_room_lounge_dining_room_furniture | C103: 017 | D103: =VLOOKUP(C103,'Understanding the coding'!$E$11:$F$65,2,FALSE) -> Storage units (excluding shelves) | E103: 03 | F103: =VLOOKUP(E103,'Understanding the coding'!$H$11:$I$91,2,FALSE) -> Bamboo/rattan | G103: 107 | H103: =VLOOKUP(G103,'Understanding the coding'!$K$11:$L$114,2,FALSE) -> Between 0.25 kg and 0.5 kg excluded | J103: 01017031070 | K103: Living_room_lounge_dining_room_furniture,Storage units (excluding shelves),Bamboo/rattan,Between 0.25 kg and 0.5 kg excluded | L103: 0.04 | M103: 002 | N103: 0.05
A104: 01 | B104: =VLOOKUP(A104,'Understanding the coding'!$B$11:$C$23,2,FALSE) -> Living_room_lounge_dining_room_furniture | C104: 017 | D104: =VLOOKUP(C104,'Understanding the coding'!$E$11:$F$65,2,FALSE) -> Storage units (excluding shelves) | E104: 04 | F104: =VLOOKUP(E104,'Understanding the coding'!$H$11:$I$91,2,FALSE) -> > 50% biosourced materials or non-synthetic textiles | G104: 020 | H104: =VLOOKUP(G104,'Understanding the coding'!$K$11:$L$114,2,FALSE) -> Must not exceed 0.5 kg | J104: 01017040200 | K104: Living_room_lounge_dining_room_furniture,Storage units (excluding shelves),> 50% biosourced materials or non-synthetic textiles,Must not exceed 0.5 kg | L104: 0.04 | M104: 002 | N104: 0.05
A105: =MID(J105,1,2) -> 01 | B105: =VLOOKUP(A105,'Understanding the coding'!$B$11:$C$23,2,FALSE) -> Living_room_lounge_dining_room_furniture | C105: =MID(J105,3,3) -> 017 | D105: =VLOOKUP(C105,'Understanding the coding'!$E$11:$F$65,2,FALSE) -> Storage units (excluding shelves) | E105: =MID(J105,6,2) -> 04 | F105: =VLOOKUP(E105,'Understanding the coding'!$H$11:$I$91,2,FALSE) -> > 50% biosourced materials or non-synthetic textiles | G105: =MID(J105,8,3) -> 021 | H105: =VLOOKUP(G105,'Understanding the coding'!$K$11:$L$114,2,FALSE) -> Between 0.5 kg and < 1 kg | J105: 01017040210 | K105: Living_room_lounge_dining_room_furniture,Storage units (excluding shelves),> 50% biosourced materials or non-synthetic textiles,Between 0.5 kg and < 1 kg | L105: 0.11 | M105: 262 | N105: 0.13
A106: 01 | B106: =VLOOKUP(A106,'Understanding the coding'!$B$11:$C$23,2,FALSE) -> Living_room_lounge_dining_room_furniture | C106: 017 | D106: =VLOOKUP(C106,'Understanding the coding'!$E$11:$F$65,2,FALSE) -> Storage units (excluding shelves) | E106: 04 | F106: =VLOOKUP(E106,'Understanding the coding'!$H$11:$I$91,2,FALSE) -> > 50% biosourced materials or non-synthetic textiles | G106: 022 | H106: =VLOOKUP(G106,'Understanding the coding'!$K$11:$L$114,2,FALSE) -> Between 1 kg and < 2 kg | J106: 01017040220 | K106: Living_room_lounge_dining_room_furniture,Storage units (excluding shelves),> 50% biosourced materials or non-synthetic textiles,Between 1 kg and < 2 kg | L106: 0.18 | M106: 100 | N106: 0.22
A107: 01 | B107: =VLOOKUP(A107,'Understanding the coding'!$B$11:$C$23,2,FALSE) -> Living_room_lounge_dining_room_furniture | C107: 017 | D107: =VLOOKUP(C107,'Understanding the coding'!$E$11:$F$65,2,FALSE) -> Storage units (excluding shelves) | E107: 04 | F107: =VLOOKUP(E107,'Understanding the coding'!$H$11:$I$91,2,FALSE) -> > 50% biosourced materials or non-synthetic textiles | G107: 023 | H107: =VLOOKUP(G107,'Understanding the coding'!$K$11:$L$114,2,FALSE) -> Between 2 kg and < 5 kg | J107: 01017040230 | K107: Living_room_lounge_dining_room_furniture,Storage units (excluding shelves),> 50% biosourced materials or non-synthetic textiles,Between 2 kg and < 5 kg | L107: 0.37 | M107: 268 | N107: 0.44
A108: 01 | B108: =VLOOKUP(A108,'Understanding the coding'!$B$11:$C$23,2,FALSE) -> Living_room_lounge_dining_room_furniture | C108: 017 | D108: =VLOOKUP(C108,'Understanding the coding'!$E$11:$F$65,2,FALSE) -> Storage units (excluding shelves) | E108: 04 | F108: =VLOOKUP(E108,'Understanding the coding'!$H$11:$I$91,2,FALSE) -> > 50% biosourced materials or non-synthetic textiles | G108: 024 | H108: =VLOOKUP(G108,'Understanding the coding'!$K$11:$L$114,2,FALSE) -> Between 5 kg and < 10 kg | J108: 01017040240 | K108: Living_room_lounge_dining_room_furniture,Storage units (excluding shelves),> 50% biosourced materials or non-synthetic textiles,Between 5 kg and < 10 kg | L108: 0.83 | M108: 008 | N108: 1
A109: =MID(J109,1,2) -> 01 | B109: =VLOOKUP(A109,'Understanding the coding'!$B$11:$C$23,2,FALSE) -> Living_room_lounge_dining_room_furniture | C109: =MID(J109,3,3) -> 017 | D109: =VLOOKUP(C109,'Understanding the coding'!$E$11:$F$65,2,FALSE) -> Storage units (excluding shelves) | E109: =MID(J109,6,2) -> 04 | F109: =VLOOKUP(E109,'Understanding the coding'!$H$11:$I$91,2,FALSE) -> > 50% biosourced materials or non-synthetic textiles | G109: =MID(J109,8,3) -> 025 | H109: =VLOOKUP(G109,'Understanding the coding'!$K$11:$L$114,2,FALSE) -> Between 10 kg and < 20 kg | J109: 01017040250 | K109: Living_room_lounge_dining_room_furniture,Storage units (excluding shelves),> 50% biosourced materials or non-synthetic textiles,Between 10 kg and < 20 kg | L109: 1.75 | M109: 538 | N109: 2.1
A110: 01 | B110: =VLOOKUP(A110,'Understanding the coding'!$B$11:$C$23,2,FALSE) -> Living_room_lounge_dining_room_furniture | C110: 017 | D110: =VLOOKUP(C110,'Understanding the coding'!$E$11:$F$65,2,FALSE) -> Storage units (excluding shelves) | E110: 04 | F110: =VLOOKUP(E110,'Understanding the coding'!$H$11:$I$91,2,FALSE) -> > 50% biosourced materials or non-synthetic textiles | G110: 026 | H110: =VLOOKUP(G110,'Understanding the coding'!$K$11:$L$114,2,FALSE) -> Between 20 kg and < 30 kg | J110: 01017040260 | K110: Living_room_lounge_dining_room_furniture,Storage units (excluding shelves),> 50% biosourced materials or non-synthetic textiles,Between 20 kg and < 30 kg | L110: 2.92 | M110: 013 | N110: 3.5
A111: 01 | B111: =VLOOKUP(A111,'Understanding the coding'!$B$11:$C$23,2,FALSE) -> Living_room_lounge_dining_room_furniture | C111: 017 | D111: =VLOOKUP(C111,'Understanding the coding'!$E$11:$F$65,2,FALSE) -> Storage units (excluding shelves) | E111: 04 | F111: =VLOOKUP(E111,'Understanding the coding'!$H$11:$I$91,2,FALSE) -> > 50% biosourced materials or non-synthetic textiles | G111: 027 | H111: =VLOOKUP(G111,'Understanding the coding'!$K$11:$L$114,2,FALSE) -> Between 30 kg and < 40 kg | J111: 01017040270 | K111: Living_room_lounge_dining_room_furniture,Storage units (excluding shelves),> 50% biosourced materials or non-synthetic textiles,Between 30 kg and < 40 kg | L111: 4 | M111: 274 | N111: 4.8
A112: 01 | B112: =VLOOKUP(A112,'Understanding the coding'!$B$11:$C$23,2,FALSE) -> Living_room_lounge_dining_room_furniture | C112: 017 | D112: =VLOOKUP(C112,'Understanding the coding'!$E$11:$F$65,2,FALSE) -> Storage units (excluding shelves) | E112: 04 | F112: =VLOOKUP(E112,'Understanding the coding'!$H$11:$I$91,2,FALSE) -> > 50% biosourced materials or non-synthetic textiles | G112: 028 | H112: =VLOOKUP(G112,'Understanding the coding'!$K$11:$L$114,2,FALSE) -> Between 40 kg and < 60 kg | J112: 01017040280 | K112: Living_room_lounge_dining_room_furniture,Storage units (excluding shelves),> 50% biosourced materials or non-synthetic textiles,Between 40 kg and < 60 kg | L112: 5.33 | M112: 132 | N112: 6.4
A113: =MID(J113,1,2) -> 01 | B113: =VLOOKUP(A113,'Understanding the coding'!$B$11:$C$23,2,FALSE) -> Living_room_lounge_dining_room_furniture | C113: =MID(J113,3,3) -> 017 | D113: =VLOOKUP(C113,'Understanding the coding'!$E$11:$F$65,2,FALSE) -> Storage units (excluding shelves) | E113: =MID(J113,6,2) -> 04 | F113: =VLOOKUP(E113,'Understanding the coding'!$H$11:$I$91,2,FALSE) -> > 50% biosourced materials or non-synthetic textiles | G113: =MID(J113,8,3) -> 029 | H113: =VLOOKUP(G113,'Understanding the coding'!$K$11:$L$114,2,FALSE) -> Between 60 kg and < 100 kg | J113: 01017040290 | K113: Living_room_lounge_dining_room_furniture,Storage units (excluding shelves),> 50% biosourced materials or non-synthetic textiles,Between 60 kg and < 100 kg | L113: 8.33 | M113: 021 | N113: 10
A114: 01 | B114: =VLOOKUP(A114,'Understanding the coding'!$B$11:$C$23,2,FALSE) -> Living_room_lounge_dining_room_furniture | C114: 017 | D114: =VLOOKUP(C114,'Understanding the coding'!$E$11:$F$65,2,FALSE) -> Storage units (excluding shelves) | E114: 04 | F114: =VLOOKUP(E114,'Understanding the coding'!$H$11:$I$91,2,FALSE) -> > 50% biosourced materials or non-synthetic textiles | G114: 030 | H114: =VLOOKUP(G114,'Understanding the coding'!$K$11:$L$114,2,FALSE) -> Between 100 kg and < 150 kg | J114: 01017040300 | K114: Living_room_lounge_dining_room_furniture,Storage units (excluding shelves),> 50% biosourced materials or non-synthetic textiles,Between 100 kg and < 150 kg | L114: 15 | M114: 023 | N114: 18
A115: 01 | B115: =VLOOKUP(A115,'Understanding the coding'!$B$11:$C$23,2,FALSE) -> Living_room_lounge_dining_room_furniture | C115: 017 | D115: =VLOOKUP(C115,'Understanding the coding'!$E$11:$F$65,2,FALSE) -> Storage units (excluding shelves) | E115: 04 | F115: =VLOOKUP(E115,'Understanding the coding'!$H$11:$I$91,2,FALSE) -> > 50% biosourced materials or non-synthetic textiles | G115: 031 | H115: =VLOOKUP(G115,'Understanding the coding'!$K$11:$L$114,2,FALSE) -> Between 150 kg and < 200 kg | J115: 01017040310 | K115: Living_room_lounge_dining_room_furniture,Storage units (excluding shelves),> 50% biosourced materials or non-synthetic textiles,Between 150 kg and < 200 kg | L115: 25 | M115: 151 | N115: 30
A116: 01 | B116: =VLOOKUP(A116,'Understanding the coding'!$B$11:$C$23,2,FALSE) -> Living_room_lounge_dining_room_furniture | C116: 017 | D116: =VLOOKUP(C116,'Understanding the coding'!$E$11:$F$65,2,FALSE) -> Storage units (excluding shelves) | E116: 04 | F116: =VLOOKUP(E116,'Understanding the coding'!$H$11:$I$91,2,FALSE) -> > 50% biosourced materials or non-synthetic textiles | G116: 032 | H116: =VLOOKUP(G116,'Understanding the coding'!$K$11:$L$114,2,FALSE) -> Between 200 kg and < 250 kg | J116: 01017040320 | K116: Living_room_lounge_dining_room_furniture,Storage units (excluding shelves),> 50% biosourced materials or non-synthetic textiles,Between 200 kg and < 250 kg | L116: 25 | M116: 151 | N116: 30
A117: =MID(J117,1,2) -> 01 | B117: =VLOOKUP(A117,'Understanding the coding'!$B$11:$C$23,2,FALSE) -> Living_room_lounge_dining_room_furniture | C117: =MID(J117,3,3) -> 017 | D117: =VLOOKUP(C117,'Understanding the coding'!$E$11:$F$65,2,FALSE) -> Storage units (excluding shelves) | E117: =MID(J117,6,2) -> 04 | F117: =VLOOKUP(E117,'Understanding the coding'!$H$11:$I$91,2,FALSE) -> > 50% biosourced materials or non-synthetic textiles | G117: =MID(J117,8,3) -> 033 | H117: =VLOOKUP(G117,'Understanding the coding'!$K$11:$L$114,2,FALSE) -> Between 250 kg and < 300 kg | J117: 01017040330 | K117: Living_room_lounge_dining_room_furniture,Storage units (excluding shelves),> 50% biosourced materials or non-synthetic textiles,Between 250 kg and < 300 kg | L117: 25 | M117: 151 | N117: 30
A118: 01 | B118: =VLOOKUP(A118,'Understanding the coding'!$B$11:$C$23,2,FALSE) -> Living_room_lounge_dining_room_furniture | C118: 017 | D118: =VLOOKUP(C118,'Understanding the coding'!$E$11:$F$65,2,FALSE) -> Storage units (excluding shelves) | E118: 04 | F118: =VLOOKUP(E118,'Understanding the coding'!$H$11:$I$91,2,FALSE) -> > 50% biosourced materials or non-synthetic textiles | G118: 034 | H118: =VLOOKUP(G118,'Understanding the coding'!$K$11:$L$114,2,FALSE) -> Between 300 kg and < 400 kg | J118: 01017040340 | K118: Living_room_lounge_dining_room_furniture,Storage units (excluding shelves),> 50% biosourced materials or non-synthetic textiles,Between 300 kg and < 400 kg | L118: 25 | M118: 151 | N118: 30
A119: 01 | B119: =VLOOKUP(A119,'Understanding the coding'!$B$11:$C$23,2,FALSE) -> Living_room_lounge_dining_room_furniture | C119: 017 | D119: =VLOOKUP(C119,'Understanding the coding'!$E$11:$F$65,2,FALSE) -> Storage units (excluding shelves) | E119: 04 | F119: =VLOOKUP(E119,'Understanding the coding'!$H$11:$I$91,2,FALSE) -> > 50% biosourced materials or non-synthetic textiles | G119: 035 | H119: =VLOOKUP(G119,'Understanding the coding'!$K$11:$L$114,2,FALSE) -> Between 400 kg and < 500 kg | J119: 01017040350 | K119: Living_room_lounge_dining_room_furniture,Storage units (excluding shelves),> 50% biosourced materials or non-synthetic textiles,Between 400 kg and < 500 kg | L119: 25 | M119: 151 | N119: 30
A120: 01 | B120: =VLOOKUP(A120,'Understanding the coding'!$B$11:$C$23,2,FALSE) -> Living_room_lounge_dining_room_furniture | C120: 017 | D120: =VLOOKUP(C120,'Understanding the coding'!$E$11:$F$65,2,FALSE) -> Storage units (excluding shelves) | E120: 04 | F120: =VLOOKUP(E120,'Understanding the coding'!$H$11:$I$91,2,FALSE) -> > 50% biosourced materials or non-synthetic textiles | G120: 036 | H120: =VLOOKUP(G120,'Understanding the coding'!$K$11:$L$114,2,FALSE) -> Between 500 kg and < 600 kg | J120: 01017040360 | K120: Living_room_lounge_dining_room_furniture,Storage units (excluding shelves),> 50% biosourced materials or non-synthetic textiles,Between 500 kg and < 600 kg | L120: 25 | M120: 151 | N120: 30
A121: =MID(J121,1,2) -> 01 | B121: =VLOOKUP(A121,'Understanding the coding'!$B$11:$C$23,2,FALSE) -> Living_room_lounge_dining_room_furniture | C121: =MID(J121,3,3) -> 017 | D121: =VLOOKUP(C121,'Understanding the coding'!$E$11:$F$65,2,FALSE) -> Storage units (excluding shelves) | E121: =MID(J121,6,2) -> 04 | F121: =VLOOKUP(E121,'Understanding the coding'!$H$11:$I$91,2,FALSE) -> > 50% biosourced materials or non-synthetic textiles | G121: =MID(J121,8,3) -> 037 | H121: =VLOOKUP(G121,'Understanding the coding'!$K$11:$L$114,2,FALSE) -> Between 600 kg and < 700 kg | J121: 01017040370 | K121: Living_room_lounge_dining_room_furniture,Storage units (excluding shelves),> 50% biosourced materials or non-synthetic textiles,Between 600 kg and < 700 kg | L121: 25 | M121: 151 | N121: 30
A122: 01 | B122: =VLOOKUP(A122,'Understanding the coding'!$B$11:$C$23,2,FALSE) -> Living_room_lounge_dining_room_furniture | C122: 017 | D122: =VLOOKUP(C122,'Understanding the coding'!$E$11:$F$65,2,FALSE) -> Storage units (excluding shelves) | E122: 04 | F122: =VLOOKUP(E122,'Understanding the coding'!$H$11:$I$91,2,FALSE) -> > 50% biosourced materials or non-synthetic textiles | G122: 038 | H122: =VLOOKUP(G122,'Understanding the coding'!$K$11:$L$114,2,FALSE) -> Between 700 kg and < 800 kg | J122: 01017040380 | K122: Living_room_lounge_dining_room_furniture,Storage units (excluding shelves),> 50% biosourced materials or non-synthetic textiles,Between 700 kg and < 800 kg | L122: 25 | M122: 151 | N122: 30
A123: 01 | B123: =VLOOKUP(A123,'Understanding the coding'!$B$11:$C$23,2,FALSE) -> Living_room_lounge_dining_room_furniture | C123: 017 | D123: =VLOOKUP(C123,'Understanding the coding'!$E$11:$F$65,2,FALSE) -> Storage units (excluding shelves) | E123: 04 | F123: =VLOOKUP(E123,'Understanding the coding'!$H$11:$I$91,2,FALSE) -> > 50% biosourced materials or non-synthetic textiles | G123: 039 | H123: =VLOOKUP(G123,'Understanding the coding'!$K$11:$L$114,2,FALSE) -> Between 800 kg and < 900 kg | J123: 01017040390 | K123: Living_room_lounge_dining_room_furniture,Storage units (excluding shelves),> 50% biosourced materials or non-synthetic textiles,Between 800 kg and < 900 kg | L123: 25 | M123: 151 | N123: 30
A124: 01 | B124: =VLOOKUP(A124,'Understanding the coding'!$B$11:$C$23,2,FALSE) -> Living_room_lounge_dining_room_furniture | C124: 017 | D124: =VLOOKUP(C124,'Understanding the coding'!$E$11:$F$65,2,FALSE) -> Storage units (excluding shelves) | E124: 04 | F124: =VLOOKUP(E124,'Understanding the coding'!$H$11:$I$91,2,FALSE) -> > 50% biosourced materials or non-synthetic textiles | G124: 040 | H124: =VLOOKUP(G124,'Understanding the coding'!$K$11:$L$114,2,FALSE) -> Between 900 kg and < 1,000 kg | J124: 01017040400 | K124: Living_room_lounge_dining_room_furniture,Storage units (excluding shelves),> 50% biosourced materials or non-synthetic textiles,Between 900 kg and < 1,000 kg | L124: 25 | M124: 151 | N124: 30
A125: =MID(J125,1,2) -> 01 | B125: =VLOOKUP(A125,'Understanding the coding'!$B$11:$C$23,2,FALSE) -> Living_room_lounge_dining_room_furniture | C125: =MID(J125,3,3) -> 017 | D125: =VLOOKUP(C125,'Understanding the coding'!$E$11:$F$65,2,FALSE) -> Storage units (excluding shelves) | E125: =MID(J125,6,2) -> 04 | F125: =VLOOKUP(E125,'Understanding the coding'!$H$11:$I$91,2,FALSE) -> > 50% biosourced materials or non-synthetic textiles | G125: =MID(J125,8,3) -> 041 | H125: =VLOOKUP(G125,'Understanding the coding'!$K$11:$L$114,2,FALSE) -> Between 1,000 kg and < 1,100 kg | J125: 01017040410 | K125: Living_room_lounge_dining_room_furniture,Storage units (excluding shelves),> 50% biosourced materials or non-synthetic textiles,Between 1,000 kg and < 1,100 kg | L125: 25 | M125: 151 | N125: 30
A126: 01 | B126: =VLOOKUP(A126,'Understanding the coding'!$B$11:$C$23,2,FALSE) -> Living_room_lounge_dining_room_furniture | C126: 017 | D126: =VLOOKUP(C126,'Understanding the coding'!$E$11:$F$65,2,FALSE) -> Storage units (excluding shelves) | E126: 04 | F126: =VLOOKUP(E126,'Understanding the coding'!$H$11:$I$91,2,FALSE) -> > 50% biosourced materials or non-synthetic textiles | G126: 042 | H126: =VLOOKUP(G126,'Understanding the coding'!$K$11:$L$114,2,FALSE) -> Between 1,100 kg and < 1,200 kg | J126: 01017040420 | K126: Living_room_lounge_dining_room_furniture,Storage units (excluding shelves),> 50% biosourced materials or non-synthetic textiles,Between 1,100 kg and < 1,200 kg | L126: 25 | M126: 151 | N126: 30
A127: 01 | B127: =VLOOKUP(A127,'Understanding the coding'!$B$11:$C$23,2,FALSE) -> Living_room_lounge_dining_room_furniture | C127: 017 | D127: =VLOOKUP(C127,'Understanding the coding'!$E$11:$F$65,2,FALSE) -> Storage units (excluding shelves) | E127: 04 | F127: =VLOOKUP(E127,'Understanding the coding'!$H$11:$I$91,2,FALSE) -> > 50% biosourced materials or non-synthetic textiles | G127: 043 | H127: =VLOOKUP(G127,'Understanding the coding'!$K$11:$L$114,2,FALSE) -> Between 1,200 kg and < 1,300 kg | J127: 01017040430 | K127: Living_room_lounge_dining_room_furniture,Storage units (excluding shelves),> 50% biosourced materials or non-synthetic textiles,Between 1,200 kg and < 1,300 kg | L127: 25 | M127: 151 | N127: 30
A128: 01 | B128: =VLOOKUP(A128,'Understanding the coding'!$B$11:$C$23,2,FALSE) -> Living_room_lounge_dining_room_furniture | C128: 017 | D128: =VLOOKUP(C128,'Understanding the coding'!$E$11:$F$65,2,FALSE) -> Storage units (excluding shelves) | E128: 04 | F128: =VLOOKUP(E128,'Understanding the coding'!$H$11:$I$91,2,FALSE) -> > 50% biosourced materials or non-synthetic textiles | G128: 044 | H128: =VLOOKUP(G128,'Understanding the coding'!$K$11:$L$114,2,FALSE) -> Between 1,300 kg and < 1,400 kg | J128: 01017040440 | K128: Living_room_lounge_dining_room_furniture,Storage units (excluding shelves),> 50% biosourced materials or non-synthetic textiles,Between 1,300 kg and < 1,400 kg | L128: 25 | M128: 151 | N128: 30
A129: =MID(J129,1,2) -> 01 | B129: =VLOOKUP(A129,'Understanding the coding'!$B$11:$C$23,2,FALSE) -> Living_room_lounge_dining_room_furniture | C129: =MID(J129,3,3) -> 017 | D129: =VLOOKUP(C129,'Understanding the coding'!$E$11:$F$65,2,FALSE) -> Storage units (excluding shelves) | E129: =MID(J129,6,2) -> 04 | F129: =VLOOKUP(E129,'Understanding the coding'!$H$11:$I$91,2,FALSE) -> > 50% biosourced materials or non-synthetic textiles | G129: =MID(J129,8,3) -> 045 | H129: =VLOOKUP(G129,'Understanding the coding'!$K$11:$L$114,2,FALSE) -> Between 1,400 kg and < 1,500 kg | J129: 01017040450 | K129: Living_room_lounge_dining_room_furniture,Storage units (excluding shelves),> 50% biosourced materials or non-synthetic textiles,Between 1,400 kg and < 1,500 kg | L129: 25 | M129: 151 | N129: 30
A130: 01 | B130: =VLOOKUP(A130,'Understanding the coding'!$B$11:$C$23,2,FALSE) -> Living_room_lounge_dining_room_furniture | C130: 017 | D130: =VLOOKUP(C130,'Understanding the coding'!$E$11:$F$65,2,FALSE) -> Storage units (excluding shelves) | E130: 04 | F130: =VLOOKUP(E130,'Understanding the coding'!$H$11:$I$91,2,FALSE) -> > 50% biosourced materials or non-synthetic textiles | G130: 046 | H130: =VLOOKUP(G130,'Understanding the coding'!$K$11:$L$114,2,FALSE) -> Between 1,500 kg and < 1,600 kg | J130: 01017040460 | K130: Living_room_lounge_dining_room_furniture,Storage units (excluding shelves),> 50% biosourced materials or non-synthetic textiles,Between 1,500 kg and < 1,600 kg | L130: 25 | M130: 151 | N130: 30
A131: 01 | B131: =VLOOKUP(A131,'Understanding the coding'!$B$11:$C$23,2,FALSE) -> Living_room_lounge_dining_room_furniture | C131: 017 | D131: =VLOOKUP(C131,'Understanding the coding'!$E$11:$F$65,2,FALSE) -> Storage units (excluding shelves) | E131: 04 | F131: =VLOOKUP(E131,'Understanding the coding'!$H$11:$I$91,2,FALSE) -> > 50% biosourced materials or non-synthetic textiles | G131: 047 | H131: =VLOOKUP(G131,'Understanding the coding'!$K$11:$L$114,2,FALSE) -> Between 1,600 kg and < 1,700 kg | J131: 01017040470 | K131: Living_room_lounge_dining_room_furniture,Storage units (excluding shelves),> 50% biosourced materials or non-synthetic textiles,Between 1,600 kg and < 1,700 kg | L131: 25 | M131: 151 | N131: 30
A132: 01 | B132: =VLOOKUP(A132,'Understanding the coding'!$B$11:$C$23,2,FALSE) -> Living_room_lounge_dining_room_furniture | C132: 017 | D132: =VLOOKUP(C132,'Understanding the coding'!$E$11:$F$65,2,FALSE) -> Storage units (excluding shelves) | E132: 04 | F132: =VLOOKUP(E132,'Understanding the coding'!$H$11:$I$91,2,FALSE) -> > 50% biosourced materials or non-synthetic textiles | G132: 048 | H132: =VLOOKUP(G132,'Understanding the coding'!$K$11:$L$114,2,FALSE) -> Between 1,700 kg and < 1,800 kg | J132: 01017040480 | K132: Living_room_lounge_dining_room_furniture,Storage units (excluding shelves),> 50% biosourced materials or non-synthetic textiles,Between 1,700 kg and < 1,800 kg | L132: 25 | M132: 151 | N132: 30
A133: =MID(J133,1,2) -> 01 | B133: =VLOOKUP(A133,'Understanding the coding'!$B$11:$C$23,2,FALSE) -> Living_room_lounge_dining_room_furniture | C133: =MID(J133,3,3) -> 017 | D133: =VLOOKUP(C133,'Understanding the coding'!$E$11:$F$65,2,FALSE) -> Storage units (excluding shelves) | E133: =MID(J133,6,2) -> 04 | F133: =VLOOKUP(E133,'Understanding the coding'!$H$11:$I$91,2,FALSE) -> > 50% biosourced materials or non-synthetic textiles | G133: =MID(J133,8,3) -> 049 | H133: =VLOOKUP(G133,'Understanding the coding'!$K$11:$L$114,2,FALSE) -> Between 1,800 kg and < 1,900 kg | J133: 01017040490 | K133: Living_room_lounge_dining_room_furniture,Storage units (excluding shelves),> 50% biosourced materials or non-synthetic textiles,Between 1,800 kg and < 1,900 kg | L133: 25 | M133: 151 | N133: 30
A134: 01 | B134: =VLOOKUP(A134,'Understanding the coding'!$B$11:$C$23,2,FALSE) -> Living_room_lounge_dining_room_furniture | C134: 017 | D134: =VLOOKUP(C134,'Understanding the coding'!$E$11:$F$65,2,FALSE) -> Storage units (excluding shelves) | E134: 04 | F134: =VLOOKUP(E134,'Understanding the coding'!$H$11:$I$91,2,FALSE) -> > 50% biosourced materials or non-synthetic textiles | G134: 050 | H134: =VLOOKUP(G134,'Understanding the coding'!$K$11:$L$114,2,FALSE) -> Between 1,900 kg and < 2,000 kg | J134: 01017040500 | K134: Living_room_lounge_dining_room_furniture,Storage units (excluding shelves),> 50% biosourced materials or non-synthetic textiles,Between 1,900 kg and < 2,000 kg | L134: 25 | M134: 151 | N134: 30
A135: =MID(J135,1,2) -> 01 | B135: =VLOOKUP(A135,'Understanding the coding'!$B$11:$C$23,2,FALSE) -> Living_room_lounge_dining_room_furniture | C135: =MID(J135,3,3) -> 017 | D135: =VLOOKUP(C135,'Understanding the coding'!$E$11:$F$65,2,FALSE) -> Storage units (excluding shelves) | E135: =MID(J135,6,2) -> 04 | F135: =VLOOKUP(E135,'Understanding the coding'!$H$11:$I$91,2,FALSE) -> > 50% biosourced materials or non-synthetic textiles | G135: =MID(J135,8,3) -> 051 | H135: =VLOOKUP(G135,'Understanding the coding'!$K$11:$L$114,2,FALSE) -> Over 2,000 kg | J135: 01017040510 | K135: Living_room_lounge_dining_room_furniture,Storage units (excluding shelves),> 50% biosourced materials or non-synthetic textiles,Over 2,000 kg | L135: 25 | M135: 151 | N135: 30
A136: 01 | B136: =VLOOKUP(A136,'Understanding the coding'!$B$11:$C$23,2,FALSE) -> Living_room_lounge_dining_room_furniture | C136: 017 | D136: =VLOOKUP(C136,'Understanding the coding'!$E$11:$F$65,2,FALSE) -> Storage units (excluding shelves) | E136: 04 | F136: =VLOOKUP(E136,'Understanding the coding'!$H$11:$I$91,2,FALSE) -> > 50% biosourced materials or non-synthetic textiles | G136: 106 | H136: =VLOOKUP(G136,'Understanding the coding'!$K$11:$L$114,2,FALSE) -> Strictly less than 0.25 kg | J136: 01017041060 | K136: Living_room_lounge_dining_room_furniture,Storage units (excluding shelves),> 50% biosourced materials or non-synthetic textiles,Strictly less than 0.25 kg | L136: 0.03 | M136: 092 | N136: 0.04
A137: 01 | B137: =VLOOKUP(A137,'Understanding the coding'!$B$11:$C$23,2,FALSE) -> Living_room_lounge_dining_room_furniture | C137: 017 | D137: =VLOOKUP(C137,'Understanding the coding'!$E$11:$F$65,2,FALSE) -> Storage units (excluding shelves) | E137: 04 | F137: =VLOOKUP(E137,'Understanding the coding'!$H$11:$I$91,2,FALSE) -> > 50% biosourced materials or non-synthetic textiles | G137: 107 | H137: =VLOOKUP(G137,'Understanding the coding'!$K$11:$L$114,2,FALSE) -> Between 0.25 kg and 0.5 kg excluded | J137: 01017041070 | K137: Living_room_lounge_dining_room_furniture,Storage units (excluding shelves),> 50% biosourced materials or non-synthetic textiles,Between 0.25 kg and 0.5 kg excluded | L137: 0.04 | M137: 002 | N137: 0.05
A138: 01 | B138: =VLOOKUP(A138,'Understanding the coding'!$B$11:$C$23,2,FALSE) -> Living_room_lounge_dining_room_furniture | C138: 017 | D138: =VLOOKUP(C138,'Understanding the coding'!$E$11:$F$65,2,FALSE) -> Storage units (excluding shelves) | E138: 05 | F138: =VLOOKUP(E138,'Understanding the coding'!$H$11:$I$91,2,FALSE) -> Plastics | G138: 020 | H138: =VLOOKUP(G138,'Understanding the coding'!$K$11:$L$114,2,FALSE) -> Must not exceed 0.5 kg | J138: 01017050200 | K138: Living_room_lounge_dining_room_furniture,Storage units (excluding shelves),Plastics,Must not exceed 0.5 kg | L138: 0.06 | M138: 096 | N138: 0.07
A139: =MID(J139,1,2) -> 01 | B139: =VLOOKUP(A139,'Understanding the coding'!$B$11:$C$23,2,FALSE) -> Living_room_lounge_dining_room_furniture | C139: =MID(J139,3,3) -> 017 | D139: =VLOOKUP(C139,'Understanding the coding'!$E$11:$F$65,2,FALSE) -> Storage units (excluding shelves) | E139: =MID(J139,6,2) -> 05 | F139: =VLOOKUP(E139,'Understanding the coding'!$H$11:$I$91,2,FALSE) -> Plastics | G139: =MID(J139,8,3) -> 021 | H139: =VLOOKUP(G139,'Understanding the coding'!$K$11:$L$114,2,FALSE) -> Between 0.5 kg and < 1 kg | J139: 01017050210 | K139: Living_room_lounge_dining_room_furniture,Storage units (excluding shelves),Plastics,Between 0.5 kg and < 1 kg | L139: 0.17 | M139: 005 | N139: 0.2
A140: 01 | B140: =VLOOKUP(A140,'Understanding the coding'!$B$11:$C$23,2,FALSE) -> Living_room_lounge_dining_room_furniture | C140: 017 | D140: =VLOOKUP(C140,'Understanding the coding'!$E$11:$F$65,2,FALSE) -> Storage units (excluding shelves) | E140: 05 | F140: =VLOOKUP(E140,'Understanding the coding'!$H$11:$I$91,2,FALSE) -> Plastics | G140: 022 | H140: =VLOOKUP(G140,'Understanding the coding'!$K$11:$L$114,2,FALSE) -> Between 1 kg and < 2 kg | J140: 01017050220 | K140: Living_room_lounge_dining_room_furniture,Storage units (excluding shelves),Plastics,Between 1 kg and < 2 kg | L140: 0.29 | M140: 324 | N140: 0.35
A141: 01 | B141: =VLOOKUP(A141,'Understanding the coding'!$B$11:$C$23,2,FALSE) -> Living_room_lounge_dining_room_furniture | C141: 017 | D141: =VLOOKUP(C141,'Understanding the coding'!$E$11:$F$65,2,FALSE) -> Storage units (excluding shelves) | E141: 05 | F141: =VLOOKUP(E141,'Understanding the coding'!$H$11:$I$91,2,FALSE) -> Plastics | G141: 023 | H141: =VLOOKUP(G141,'Understanding the coding'!$K$11:$L$114,2,FALSE) -> Between 2 kg and < 5 kg | J141: 01017050230 | K141: Living_room_lounge_dining_room_furniture,Storage units (excluding shelves),Plastics,Between 2 kg and < 5 kg | L141: 0.58 | M141: 535 | N141: 0.7
A142: 01 | B142: =VLOOKUP(A142,'Understanding the coding'!$B$11:$C$23,2,FALSE) -> Living_room_lounge_dining_room_furniture | C142: 017 | D142: =VLOOKUP(C142,'Understanding the coding'!$E$11:$F$65,2,FALSE) -> Storage units (excluding shelves) | E142: 05 | F142: =VLOOKUP(E142,'Understanding the coding'!$H$11:$I$91,2,FALSE) -> Plastics | G142: 024 | H142: =VLOOKUP(G142,'Understanding the coding'!$K$11:$L$114,2,FALSE) -> Between 5 kg and < 10 kg | J142: 01017050240 | K142: Living_room_lounge_dining_room_furniture,Storage units (excluding shelves),Plastics,Between 5 kg and < 10 kg | L142: 1.17 | M142: 537 | N142: 1.4
A143: =MID(J143,1,2) -> 01 | B143: =VLOOKUP(A143,'Understanding the coding'!$B$11:$C$23,2,FALSE) -> Living_room_lounge_dining_room_furniture | C143: =MID(J143,3,3) -> 017 | D143: =VLOOKUP(C143,'Understanding the coding'!$E$11:$F$65,2,FALSE) -> Storage units (excluding shelves) | E143: =MID(J143,6,2) -> 05 | F143: =VLOOKUP(E143,'Understanding the coding'!$H$11:$I$91,2,FALSE) -> Plastics | G143: =MID(J143,8,3) -> 025 | H143: =VLOOKUP(G143,'Understanding the coding'!$K$11:$L$114,2,FALSE) -> Between 10 kg and < 20 kg | J143: 01017050250 | K143: Living_room_lounge_dining_room_furniture,Storage units (excluding shelves),Plastics,Between 10 kg and < 20 kg | L143: 2.33 | M143: 062 | N143: 2.8
A144: 01 | B144: =VLOOKUP(A144,'Understanding the coding'!$B$11:$C$23,2,FALSE) -> Living_room_lounge_dining_room_furniture | C144: 017 | D144: =VLOOKUP(C144,'Understanding the coding'!$E$11:$F$65,2,FALSE) -> Storage units (excluding shelves) | E144: 05 | F144: =VLOOKUP(E144,'Understanding the coding'!$H$11:$I$91,2,FALSE) -> Plastics | G144: 026 | H144: =VLOOKUP(G144,'Understanding the coding'!$K$11:$L$114,2,FALSE) -> Between 20 kg and < 30 kg | J144: 01017050260 | K144: Living_room_lounge_dining_room_furniture,Storage units (excluding shelves),Plastics,Between 20 kg and < 30 kg | L144: 3.83 | M144: 521 | N144: 4.6
A145: 01 | B145: =VLOOKUP(A145,'Understanding the coding'!$B$11:$C$23,2,FALSE) -> Living_room_lounge_dining_room_furniture | C145: 017 | D145: =VLOOKUP(C145,'Understanding the coding'!$E$11:$F$65,2,FALSE) -> Storage units (excluding shelves) | E145: 05 | F145: =VLOOKUP(E145,'Understanding the coding'!$H$11:$I$91,2,FALSE) -> Plastics | G145: 027 | H145: =VLOOKUP(G145,'Understanding the coding'!$K$11:$L$114,2,FALSE) -> Between 30 kg and < 40 kg | J145: 01017050270 | K145: Living_room_lounge_dining_room_furniture,Storage units (excluding shelves),Plastics,Between 30 kg and < 40 kg | L145: 5.25 | M145: 349 | N145: 6.3
A146: 01 | B146: =VLOOKUP(A146,'Understanding the coding'!$B$11:$C$23,2,FALSE) -> Living_room_lounge_dining_room_furniture | C146: 017 | D146: =VLOOKUP(C146,'Understanding the coding'!$E$11:$F$65,2,FALSE) -> Storage units (excluding shelves) | E146: 05 | F146: =VLOOKUP(E146,'Understanding the coding'!$H$11:$I$91,2,FALSE) -> Plastics | G146: 028 | H146: =VLOOKUP(G146,'Understanding the coding'!$K$11:$L$114,2,FALSE) -> Between 40 kg and < 60 kg | J146: 01017050280 | K146: Living_room_lounge_dining_room_furniture,Storage units (excluding shelves),Plastics,Between 40 kg and < 60 kg | L146: 8.34 | M146: 526 | N146: 10.01
A147: =MID(J147,1,2) -> 01 | B147: =VLOOKUP(A147,'Understanding the coding'!$B$11:$C$23,2,FALSE) -> Living_room_lounge_dining_room_furniture | C147: =MID(J147,3,3) -> 017 | D147: =VLOOKUP(C147,'Understanding the coding'!$E$11:$F$65,2,FALSE) -> Storage units (excluding shelves) | E147: =MID(J147,6,2) -> 05 | F147: =VLOOKUP(E147,'Understanding the coding'!$H$11:$I$91,2,FALSE) -> Plastics | G147: =MID(J147,8,3) -> 029 | H147: =VLOOKUP(G147,'Understanding the coding'!$K$11:$L$114,2,FALSE) -> Between 60 kg and < 100 kg | J147: 01017050290 | K147: Living_room_lounge_dining_room_furniture,Storage units (excluding shelves),Plastics,Between 60 kg and < 100 kg | L147: 12.5 | M147: 072 | N147: 15
A148: 01 | B148: =VLOOKUP(A148,'Understanding the coding'!$B$11:$C$23,2,FALSE) -> Living_room_lounge_dining_room_furniture | C148: 017 | D148: =VLOOKUP(C148,'Understanding the coding'!$E$11:$F$65,2,FALSE) -> Storage units (excluding shelves) | E148: 05 | F148: =VLOOKUP(E148,'Understanding the coding'!$H$11:$I$91,2,FALSE) -> Plastics | G148: 030 | H148: =VLOOKUP(G148,'Understanding the coding'!$K$11:$L$114,2,FALSE) -> Between 100 kg and < 150 kg | J148: 01017050300 | K148: Living_room_lounge_dining_room_furniture,Storage units (excluding shelves),Plastics,Between 100 kg and < 150 kg | L148: 20.83 | M148: 149 | N148: 25
A149: 01 | B149: =VLOOKUP(A149,'Understanding the coding'!$B$11:$C$23,2,FALSE) -> Living_room_lounge_dining_room_furniture | C149: 017 | D149: =VLOOKUP(C149,'Understanding the coding'!$E$11:$F$65,2,FALSE) -> Storage units (excluding shelves) | E149: 05 | F149: =VLOOKUP(E149,'Understanding the coding'!$H$11:$I$91,2,FALSE) -> Plastics | G149: 031 | H149: =VLOOKUP(G149,'Understanding the coding'!$K$11:$L$114,2,FALSE) -> Between 150 kg and < 200 kg | J149: 01017050310 | K149: Living_room_lounge_dining_room_furniture,Storage units (excluding shelves),Plastics,Between 150 kg and < 200 kg | L149: 29.17 | M149: 534 | N149: 35
A150: 01 | B150: =VLOOKUP(A150,'Understanding the coding'!$B$11:$C$23,2,FALSE) -> Living_room_lounge_dining_room_furniture | C150: 017 | D150: =VLOOKUP(C150,'Understanding the coding'!$E$11:$F$65,2,FALSE) -> Storage units (excluding shelves) | E150: 05 | F150: =VLOOKUP(E150,'Understanding the coding'!$H$11:$I$91,2,FALSE) -> Plastics | G150: 032 | H150: =VLOOKUP(G150,'Understanding the coding'!$K$11:$L$114,2,FALSE) -> Between 200 kg and < 250 kg | J150: 01017050320 | K150: Living_room_lounge_dining_room_furniture,Storage units (excluding shelves),Plastics,Between 200 kg and < 250 kg | L150: 29.17 | M150: 534 | N150: 35
A151: =MID(J151,1,2) -> 01 | B151: =VLOOKUP(A151,'Understanding the coding'!$B$11:$C$23,2,FALSE) -> Living_room_lounge_dining_room_furniture | C151: =MID(J151,3,3) -> 017 | D151: =VLOOKUP(C151,'Understanding the coding'!$E$11:$F$65,2,FALSE) -> Storage units (excluding shelves) | E151: =MID(J151,6,2) -> 05 | F151: =VLOOKUP(E151,'Understanding the coding'!$H$11:$I$91,2,FALSE) -> Plastics | G151: =MID(J151,8,3) -> 033 | H151: =VLOOKUP(G151,'Understanding the coding'!$K$11:$L$114,2,FALSE) -> Between 250 kg and < 300 kg | J151: 01017050330 | K151: Living_room_lounge_dining_room_furniture,Storage units (excluding shelves),Plastics,Between 250 kg and < 300 kg | L151: 29.17 | M151: 534 | N151: 35
A152: 01 | B152: =VLOOKUP(A152,'Understanding the coding'!$B$11:$C$23,2,FALSE) -> Living_room_lounge_dining_room_furniture | C152: 017 | D152: =VLOOKUP(C152,'Understanding the coding'!$E$11:$F$65,2,FALSE) -> Storage units (excluding shelves) | E152: 05 | F152: =VLOOKUP(E152,'Understanding the coding'!$H$11:$I$91,2,FALSE) -> Plastics | G152: 034 | H152: =VLOOKUP(G152,'Understanding the coding'!$K$11:$L$114,2,FALSE) -> Between 300 kg and < 400 kg | J152: 01017050340 | K152: Living_room_lounge_dining_room_furniture,Storage units (excluding shelves),Plastics,Between 300 kg and < 400 kg | L152: 29.17 | M152: 534 | N152: 35
A153: 01 | B153: =VLOOKUP(A153,'Understanding the coding'!$B$11:$C$23,2,FALSE) -> Living_room_lounge_dining_room_furniture | C153: 017 | D153: =VLOOKUP(C153,'Understanding the coding'!$E$11:$F$65,2,FALSE) -> Storage units (excluding shelves) | E153: 05 | F153: =VLOOKUP(E153,'Understanding the coding'!$H$11:$I$91,2,FALSE) -> Plastics | G153: 035 | H153: =VLOOKUP(G153,'Understanding the coding'!$K$11:$L$114,2,FALSE) -> Between 400 kg and < 500 kg | J153: 01017050350 | K153: Living_room_lounge_dining_room_furniture,Storage units (excluding shelves),Plastics,Between 400 kg and < 500 kg | L153: 29.17 | M153: 534 | N153: 35
A154: 01 | B154: =VLOOKUP(A154,'Understanding the coding'!$B$11:$C$23,2,FALSE) -> Living_room_lounge_dining_room_furniture | C154: 017 | D154: =VLOOKUP(C154,'Understanding the coding'!$E$11:$F$65,2,FALSE) -> Storage units (excluding shelves) | E154: 05 | F154: =VLOOKUP(E154,'Understanding the coding'!$H$11:$I$91,2,FALSE) -> Plastics | G154: 036 | H154: =VLOOKUP(G154,'Understanding the coding'!$K$11:$L$114,2,FALSE) -> Between 500 kg and < 600 kg | J154: 01017050360 | K154: Living_room_lounge_dining_room_furniture,Storage units (excluding shelves),Plastics,Between 500 kg and < 600 kg | L154: 29.17 | M154: 534 | N154: 35
A155: =MID(J155,1,2) -> 01 | B155: =VLOOKUP(A155,'Understanding the coding'!$B$11:$C$23,2,FALSE) -> Living_room_lounge_dining_room_furniture | C155: =MID(J155,3,3) -> 017 | D155: =VLOOKUP(C155,'Understanding the coding'!$E$11:$F$65,2,FALSE) -> Storage units (excluding shelves) | E155: =MID(J155,6,2) -> 05 | F155: =VLOOKUP(E155,'Understanding the coding'!$H$11:$I$91,2,FALSE) -> Plastics | G155: =MID(J155,8,3) -> 037 | H155: =VLOOKUP(G155,'Understanding the coding'!$K$11:$L$114,2,FALSE) -> Between 600 kg and < 700 kg | J155: 01017050370 | K155: Living_room_lounge_dining_room_furniture,Storage units (excluding shelves),Plastics,Between 600 kg and < 700 kg | L155: 29.17 | M155: 534 | N155: 35
A156: 01 | B156: =VLOOKUP(A156,'Understanding the coding'!$B$11:$C$23,2,FALSE) -> Living_room_lounge_dining_room_furniture | C156: 017 | D156: =VLOOKUP(C156,'Understanding the coding'!$E$11:$F$65,2,FALSE) -> Storage units (excluding shelves) | E156: 05 | F156: =VLOOKUP(E156,'Understanding the coding'!$H$11:$I$91,2,FALSE) -> Plastics | G156: 038 | H156: =VLOOKUP(G156,'Understanding the coding'!$K$11:$L$114,2,FALSE) -> Between 700 kg and < 800 kg | J156: 01017050380 | K156: Living_room_lounge_dining_room_furniture,Storage units (excluding shelves),Plastics,Between 700 kg and < 800 kg | L156: 29.17 | M156: 534 | N156: 35
A157: 01 | B157: =VLOOKUP(A157,'Understanding the coding'!$B$11:$C$23,2,FALSE) -> Living_room_lounge_dining_room_furniture | C157: 017 | D157: =VLOOKUP(C157,'Understanding the coding'!$E$11:$F$65,2,FALSE) -> Storage units (excluding shelves) | E157: 05 | F157: =VLOOKUP(E157,'Understanding the coding'!$H$11:$I$91,2,FALSE) -> Plastics | G157: 039 | H157: =VLOOKUP(G157,'Understanding the coding'!$K$11:$L$114,2,FALSE) -> Between 800 kg and < 900 kg | J157: 01017050390 | K157: Living_room_lounge_dining_room_furniture,Storage units (excluding shelves),Plastics,Between 800 kg and < 900 kg | L157: 29.17 | M157: 534 | N157: 35
A158: 01 | B158: =VLOOKUP(A158,'Understanding the coding'!$B$11:$C$23,2,FALSE) -> Living_room_lounge_dining_room_furniture | C158: 017 | D158: =VLOOKUP(C158,'Understanding the coding'!$E$11:$F$65,2,FALSE) -> Storage units (excluding shelves) | E158: 05 | F158: =VLOOKUP(E158,'Understanding the coding'!$H$11:$I$91,2,FALSE) -> Plastics | G158: 040 | H158: =VLOOKUP(G158,'Understanding the coding'!$K$11:$L$114,2,FALSE) -> Between 900 kg and < 1,000 kg | J158: 01017050400 | K158: Living_room_lounge_dining_room_furniture,Storage units (excluding shelves),Plastics,Between 900 kg and < 1,000 kg | L158: 29.17 | M158: 534 | N158: 35
A159: =MID(J159,1,2) -> 01 | B159: =VLOOKUP(A159,'Understanding the coding'!$B$11:$C$23,2,FALSE) -> Living_room_lounge_dining_room_furniture | C159: =MID(J159,3,3) -> 017 | D159: =VLOOKUP(C159,'Understanding the coding'!$E$11:$F$65,2,FALSE) -> Storage units (excluding shelves) | E159: =MID(J159,6,2) -> 05 | F159: =VLOOKUP(E159,'Understanding the coding'!$H$11:$I$91,2,FALSE) -> Plastics | G159: =MID(J159,8,3) -> 041 | H159: =VLOOKUP(G159,'Understanding the coding'!$K$11:$L$114,2,FALSE) -> Between 1,000 kg and < 1,100 kg | J159: 01017050410 | K159: Living_room_lounge_dining_room_furniture,Storage units (excluding shelves),Plastics,Between 1,000 kg and < 1,100 kg | L159: 29.17 | M159: 534 | N159: 35
A160: 01 | B160: =VLOOKUP(A160,'Understanding the coding'!$B$11:$C$23,2,FALSE) -> Living_room_lounge_dining_room_furniture | C160: 017 | D160: =VLOOKUP(C160,'Understanding the coding'!$E$11:$F$65,2,FALSE) -> Storage units (excluding shelves) | E160: 05 | F160: =VLOOKUP(E160,'Understanding the coding'!$H$11:$I$91,2,FALSE) -> Plastics | G160: 042 | H160: =VLOOKUP(G160,'Understanding the coding'!$K$11:$L$114,2,FALSE) -> Between 1,100 kg and < 1,200 kg | J160: 01017050420 | K160: Living_room_lounge_dining_room_furniture,Storage units (excluding shelves),Plastics,Between 1,100 kg and < 1,200 kg | L160: 29.17 | M160: 534 | N160: 35
A161: 01 | B161: =VLOOKUP(A161,'Understanding the coding'!$B$11:$C$23,2,FALSE) -> Living_room_lounge_dining_room_furniture | C161: 017 | D161: =VLOOKUP(C161,'Understanding the coding'!$E$11:$F$65,2,FALSE) -> Storage units (excluding shelves) | E161: 05 | F161: =VLOOKUP(E161,'Understanding the coding'!$H$11:$I$91,2,FALSE) -> Plastics | G161: 043 | H161: =VLOOKUP(G161,'Understanding the coding'!$K$11:$L$114,2,FALSE) -> Between 1,200 kg and < 1,300 kg | J161: 01017050430 | K161: Living_room_lounge_dining_room_furniture,Storage units (excluding shelves),Plastics,Between 1,200 kg and < 1,300 kg | L161: 29.17 | M161: 534 | N161: 35
A162: 01 | B162: =VLOOKUP(A162,'Understanding the coding'!$B$11:$C$23,2,FALSE) -> Living_room_lounge_dining_room_furniture | C162: 017 | D162: =VLOOKUP(C162,'Understanding the coding'!$E$11:$F$65,2,FALSE) -> Storage units (excluding shelves) | E162: 05 | F162: =VLOOKUP(E162,'Understanding the coding'!$H$11:$I$91,2,FALSE) -> Plastics | G162: 044 | H162: =VLOOKUP(G162,'Understanding the coding'!$K$11:$L$114,2,FALSE) -> Between 1,300 kg and < 1,400 kg | J162: 01017050440 | K162: Living_room_lounge_dining_room_furniture,Storage units (excluding shelves),Plastics,Between 1,300 kg and < 1,400 kg | L162: 29.17 | M162: 534 | N162: 35
A163: =MID(J163,1,2) -> 01 | B163: =VLOOKUP(A163,'Understanding the coding'!$B$11:$C$23,2,FALSE) -> Living_room_lounge_dining_room_furniture | C163: =MID(J163,3,3) -> 017 | D163: =VLOOKUP(C163,'Understanding the coding'!$E$11:$F$65,2,FALSE) -> Storage units (excluding shelves) | E163: =MID(J163,6,2) -> 05 | F163: =VLOOKUP(E163,'Understanding the coding'!$H$11:$I$91,2,FALSE) -> Plastics | G163: =MID(J163,8,3) -> 045 | H163: =VLOOKUP(G163,'Understanding the coding'!$K$11:$L$114,2,FALSE) -> Between 1,400 kg and < 1,500 kg | J163: 01017050450 | K163: Living_room_lounge_dining_room_furniture,Storage units (excluding shelves),Plastics,Between 1,400 kg and < 1,500 kg | L163: 29.17 | M163: 534 | N163: 35
A164: 01 | B164: =VLOOKUP(A164,'Understanding the coding'!$B$11:$C$23,2,FALSE) -> Living_room_lounge_dining_room_furniture | C164: 017 | D164: =VLOOKUP(C164,'Understanding the coding'!$E$11:$F$65,2,FALSE) -> Storage units (excluding shelves) | E164: 05 | F164: =VLOOKUP(E164,'Understanding the coding'!$H$11:$I$91,2,FALSE) -> Plastics | G164: 046 | H164: =VLOOKUP(G164,'Understanding the coding'!$K$11:$L$114,2,FALSE) -> Between 1,500 kg and < 1,600 kg | J164: 01017050460 | K164: Living_room_lounge_dining_room_furniture,Storage units (excluding shelves),Plastics,Between 1,500 kg and < 1,600 kg | L164: 29.17 | M164: 534 | N164: 35
A165: =MID(J165,1,2) -> 01 | B165: =VLOOKUP(A165,'Understanding the coding'!$B$11:$C$23,2,FALSE) -> Living_room_lounge_dining_room_furniture | C165: =MID(J165,3,3) -> 017 | D165: =VLOOKUP(C165,'Understanding the coding'!$E$11:$F$65,2,FALSE) -> Storage units (excluding shelves) | E165: =MID(J165,6,2) -> 05 | F165: =VLOOKUP(E165,'Understanding the coding'!$H$11:$I$91,2,FALSE) -> Plastics | G165: =MID(J165,8,3) -> 047 | H165: =VLOOKUP(G165,'Understanding the coding'!$K$11:$L$114,2,FALSE) -> Between 1,600 kg and < 1,700 kg | J165: 01017050470 | K165: Living_room_lounge_dining_room_furniture,Storage units (excluding shelves),Plastics,Between 1,600 kg and < 1,700 kg | L165: 29.17 | M165: 534 | N165: 35
A166: 01 | B166: =VLOOKUP(A166,'Understanding the coding'!$B$11:$C$23,2,FALSE) -> Living_room_lounge_dining_room_furniture | C166: 017 | D166: =VLOOKUP(C166,'Understanding the coding'!$E$11:$F$65,2,FALSE) -> Storage units (excluding shelves) | E166: 05 | F166: =VLOOKUP(E166,'Understanding the coding'!$H$11:$I$91,2,FALSE) -> Plastics | G166: 048 | H166: =VLOOKUP(G166,'Understanding the coding'!$K$11:$L$114,2,FALSE) -> Between 1,700 kg and < 1,800 kg | J166: 01017050480 | K166: Living_room_lounge_dining_room_furniture,Storage units (excluding shelves),Plastics,Between 1,700 kg and < 1,800 kg | L166: 29.17 | M166: 534 | N166: 35
A167: 01 | B167: =VLOOKUP(A167,'Understanding the coding'!$B$11:$C$23,2,FALSE) -> Living_room_lounge_dining_room_furniture | C167: 017 | D167: =VLOOKUP(C167,'Understanding the coding'!$E$11:$F$65,2,FALSE) -> Storage units (excluding shelves) | E167: 05 | F167: =VLOOKUP(E167,'Understanding the coding'!$H$11:$I$91,2,FALSE) -> Plastics | G167: 049 | H167: =VLOOKUP(G167,'Understanding the coding'!$K$11:$L$114,2,FALSE) -> Between 1,800 kg and < 1,900 kg | J167: 01017050490 | K167: Living_room_lounge_dining_room_furniture,Storage units (excluding shelves),Plastics,Between 1,800 kg and < 1,900 kg | L167: 29.17 | M167: 534 | N167: 35
A168: 01 | B168: =VLOOKUP(A168,'Understanding the coding'!$B$11:$C$23,2,FALSE) -> Living_room_lounge_dining_room_furniture | C168: 017 | D168: =VLOOKUP(C168,'Understanding the coding'!$E$11:$F$65,2,FALSE) -> Storage units (excluding shelves) | E168: 05 | F168: =VLOOKUP(E168,'Understanding the coding'!$H$11:$I$91,2,FALSE) -> Plastics | G168: 050 | H168: =VLOOKUP(G168,'Understanding the coding'!$K$11:$L$114,2,FALSE) -> Between 1,900 kg and < 2,000 kg | J168: 01017050500 | K168: Living_room_lounge_dining_room_furniture,Storage units (excluding shelves),Plastics,Between 1,900 kg and < 2,000 kg | L168: 29.17 | M168: 534 | N168: 35
A169: =MID(J169,1,2) -> 01 | B169: =VLOOKUP(A169,'Understanding the coding'!$B$11:$C$23,2,FALSE) -> Living_room_lounge_dining_room_furniture | C169: =MID(J169,3,3) -> 017 | D169: =VLOOKUP(C169,'Understanding the coding'!$E$11:$F$65,2,FALSE) -> Storage units (excluding shelves) | E169: =MID(J169,6,2) -> 05 | F169: =VLOOKUP(E169,'Understanding the coding'!$H$11:$I$91,2,FALSE) -> Plastics | G169: =MID(J169,8,3) -> 051 | H169: =VLOOKUP(G169,'Understanding the coding'!$K$11:$L$114,2,FALSE) -> Over 2,000 kg | J169: 01017050510 | K169: Living_room_lounge_dining_room_furniture,Storage units (excluding shelves),Plastics,Over 2,000 kg | L169: 29.17 | M169: 534 | N169: 35
A170: 01 | B170: =VLOOKUP(A170,'Understanding the coding'!$B$11:$C$23,2,FALSE) -> Living_room_lounge_dining_room_furniture | C170: 017 | D170: =VLOOKUP(C170,'Understanding the coding'!$E$11:$F$65,2,FALSE) -> Storage units (excluding shelves) | E170: 05 | F170: =VLOOKUP(E170,'Understanding the coding'!$H$11:$I$91,2,FALSE) -> Plastics | G170: 106 | H170: =VLOOKUP(G170,'Understanding the coding'!$K$11:$L$114,2,FALSE) -> Strictly less than 0.25 kg | J170: 01017051060 | K170: Living_room_lounge_dining_room_furniture,Storage units (excluding shelves),Plastics,Strictly less than 0.25 kg | L170: 0.03 | M170: 092 | N170: 0.04
A171: 01 | B171: =VLOOKUP(A171,'Understanding the coding'!$B$11:$C$23,2,FALSE) -> Living_room_lounge_dining_room_furniture | C171: 017 | D171: =VLOOKUP(C171,'Understanding the coding'!$E$11:$F$65,2,FALSE) -> Storage units (excluding shelves) | E171: 05 | F171: =VLOOKUP(E171,'Understanding the coding'!$H$11:$I$91,2,FALSE) -> Plastics | G171: 107 | H171: =VLOOKUP(G171,'Understanding the coding'!$K$11:$L$114,2,FALSE) -> Between 0.25 kg and 0.5 kg excluded | J171: 01017051070 | K171: Living_room_lounge_dining_room_furniture,Storage units (excluding shelves),Plastics,Between 0.25 kg and 0.5 kg excluded | L171: 0.06 | M171: 096 | N171: 0.07
A172: 01 | B172: =VLOOKUP(A172,'Understanding the coding'!$B$11:$C$23,2,FALSE) -> Living_room_lounge_dining_room_furniture | C172: 017 | D172: =VLOOKUP(C172,'Understanding the coding'!$E$11:$F$65,2,FALSE) -> Storage units (excluding shelves) | E172: 06 | F172: =VLOOKUP(E172,'Understanding the coding'!$H$11:$I$91,2,FALSE) -> Textiles, leathers, furs | G172: 020 | H172: =VLOOKUP(G172,'Understanding the coding'!$K$11:$L$114,2,FALSE) -> Must not exceed 0.5 kg | J172: 01017060200 | K172: Living_room_lounge_dining_room_furniture,Storage units (excluding shelves),Textiles, leathers, furs,Must not exceed 0.5 kg | L172: 0.06 | M172: 096 | N172: 0.07
A173: =MID(J173,1,2) -> 01 | B173: =VLOOKUP(A173,'Understanding the coding'!$B$11:$C$23,2,FALSE) -> Living_room_lounge_dining_room_furniture | C173: =MID(J173,3,3) -> 017 | D173: =VLOOKUP(C173,'Understanding the coding'!$E$11:$F$65,2,FALSE) -> Storage units (excluding shelves) | E173: =MID(J173,6,2) -> 06 | F173: =VLOOKUP(E173,'Understanding the coding'!$H$11:$I$91,2,FALSE) -> Textiles, leathers, furs | G173: =MID(J173,8,3) -> 021 | H173: =VLOOKUP(G173,'Understanding the coding'!$K$11:$L$114,2,FALSE) -> Between 0.5 kg and < 1 kg | J173: 01017060210 | K173: Living_room_lounge_dining_room_furniture,Storage units (excluding shelves),Textiles, leathers, furs,Between 0.5 kg and < 1 kg | L173: 0.17 | M173: 005 | N173: 0.2
A174: 01 | B174: =VLOOKUP(A174,'Understanding the coding'!$B$11:$C$23,2,FALSE) -> Living_room_lounge_dining_room_furniture | C174: 017 | D174: =VLOOKUP(C174,'Understanding the coding'!$E$11:$F$65,2,FALSE) -> Storage units (excluding shelves) | E174: 06 | F174: =VLOOKUP(E174,'Understanding the coding'!$H$11:$I$91,2,FALSE) -> Textiles, leathers, furs | G174: 022 | H174: =VLOOKUP(G174,'Understanding the coding'!$K$11:$L$114,2,FALSE) -> Between 1 kg and < 2 kg | J174: 01017060220 | K174: Living_room_lounge_dining_room_furniture,Storage units (excluding shelves),Textiles, leathers, furs,Between 1 kg and < 2 kg | L174: 0.29 | M174: 324 | N174: 0.35
A175: 01 | B175: =VLOOKUP(A175,'Understanding the coding'!$B$11:$C$23,2,FALSE) -> Living_room_lounge_dining_room_furniture | C175: 017 | D175: =VLOOKUP(C175,'Understanding the coding'!$E$11:$F$65,2,FALSE) -> Storage units (excluding shelves) | E175: 06 | F175: =VLOOKUP(E175,'Understanding the coding'!$H$11:$I$91,2,FALSE) -> Textiles, leathers, furs | G175: 023 | H175: =VLOOKUP(G175,'Understanding the coding'!$K$11:$L$114,2,FALSE) -> Between 2 kg and < 5 kg | J175: 01017060230 | K175: Living_room_lounge_dining_room_furniture,Storage units (excluding shelves),Textiles, leathers, furs,Between 2 kg and < 5 kg | L175: 0.58 | M175: 535 | N175: 0.7
A176: 01 | B176: =VLOOKUP(A176,'Understanding the coding'!$B$11:$C$23,2,FALSE) -> Living_room_lounge_dining_room_furniture | C176: 017 | D176: =VLOOKUP(C176,'Understanding the coding'!$E$11:$F$65,2,FALSE) -> Storage units (excluding shelves) | E176: 06 | F176: =VLOOKUP(E176,'Understanding the coding'!$H$11:$I$91,2,FALSE) -> Textiles, leathers, furs | G176: 024 | H176: =VLOOKUP(G176,'Understanding the coding'!$K$11:$L$114,2,FALSE) -> Between 5 kg and < 10 kg | J176: 01017060240 | K176: Living_room_lounge_dining_room_furniture,Storage units (excluding shelves),Textiles, leathers, furs,Between 5 kg and < 10 kg | L176: 1.17 | M176: 537 | N176: 1.4
A177: =MID(J177,1,2) -> 01 | B177: =VLOOKUP(A177,'Understanding the coding'!$B$11:$C$23,2,FALSE) -> Living_room_lounge_dining_room_furniture | C177: =MID(J177,3,3) -> 017 | D177: =VLOOKUP(C177,'Understanding the coding'!$E$11:$F$65,2,FALSE) -> Storage units (excluding shelves) | E177: =MID(J177,6,2) -> 06 | F177: =VLOOKUP(E177,'Understanding the coding'!$H$11:$I$91,2,FALSE) -> Textiles, leathers, furs | G177: =MID(J177,8,3) -> 025 | H177: =VLOOKUP(G177,'Understanding the coding'!$K$11:$L$114,2,FALSE) -> Between 10 kg and < 20 kg | J177: 01017060250 | K177: Living_room_lounge_dining_room_furniture,Storage units (excluding shelves),Textiles, leathers, furs,Between 10 kg and < 20 kg | L177: 2.33 | M177: 062 | N177: 2.8
A178: 01 | B178: =VLOOKUP(A178,'Understanding the coding'!$B$11:$C$23,2,FALSE) -> Living_room_lounge_dining_room_furniture | C178: 017 | D178: =VLOOKUP(C178,'Understanding the coding'!$E$11:$F$65,2,FALSE) -> Storage units (excluding shelves) | E178: 06 | F178: =VLOOKUP(E178,'Understanding the coding'!$H$11:$I$91,2,FALSE) -> Textiles, leathers, furs | G178: 026 | H178: =VLOOKUP(G178,'Understanding the coding'!$K$11:$L$114,2,FALSE) -> Between 20 kg and < 30 kg | J178: 01017060260 | K178: Living_room_lounge_dining_room_furniture,Storage units (excluding shelves),Textiles, leathers, furs,Between 20 kg and < 30 kg | L178: 3.83 | M178: 521 | N178: 4.6
A179: 01 | B179: =VLOOKUP(A179,'Understanding the coding'!$B$11:$C$23,2,FALSE) -> Living_room_lounge_dining_room_furniture | C179: 017 | D179: =VLOOKUP(C179,'Understanding the coding'!$E$11:$F$65,2,FALSE) -> Storage units (excluding shelves) | E179: 06 | F179: =VLOOKUP(E179,'Understanding the coding'!$H$11:$I$91,2,FALSE) -> Textiles, leathers, furs | G179: 027 | H179: =VLOOKUP(G179,'Understanding the coding'!$K$11:$L$114,2,FALSE) -> Between 30 kg and < 40 kg | J179: 01017060270 | K179: Living_room_lounge_dining_room_furniture,Storage units (excluding shelves),Textiles, leathers, furs,Between 30 kg and < 40 kg | L179: 5.25 | M179: 349 | N179: 6.3
A180: 01 | B180: =VLOOKUP(A180,'Understanding the coding'!$B$11:$C$23,2,FALSE) -> Living_room_lounge_dining_room_furniture | C180: 017 | D180: =VLOOKUP(C180,'Understanding the coding'!$E$11:$F$65,2,FALSE) -> Storage units (excluding shelves) | E180: 06 | F180: =VLOOKUP(E180,'Understanding the coding'!$H$11:$I$91,2,FALSE) -> Textiles, leathers, furs | G180: 028 | H180: =VLOOKUP(G180,'Understanding the coding'!$K$11:$L$114,2,FALSE) -> Between 40 kg and < 60 kg | J180: 01017060280 | K180: Living_room_lounge_dining_room_furniture,Storage units (excluding shelves),Textiles, leathers, furs,Between 40 kg and < 60 kg | L180: 8.34 | M180: 526 | N180: 10.01
A181: =MID(J181,1,2) -> 01 | B181: =VLOOKUP(A181,'Understanding the coding'!$B$11:$C$23,2,FALSE) -> Living_room_lounge_dining_room_furniture | C181: =MID(J181,3,3) -> 017 | D181: =VLOOKUP(C181,'Understanding the coding'!$E$11:$F$65,2,FALSE) -> Storage units (excluding shelves) | E181: =MID(J181,6,2) -> 06 | F181: =VLOOKUP(E181,'Understanding the coding'!$H$11:$I$91,2,FALSE) -> Textiles, leathers, furs | G181: =MID(J181,8,3) -> 029 | H181: =VLOOKUP(G181,'Understanding the coding'!$K$11:$L$114,2,FALSE) -> Between 60 kg and < 100 kg | J181: 01017060290 | K181: Living_room_lounge_dining_room_furniture,Storage units (excluding shelves),Textiles, leathers, furs,Between 60 kg and < 100 kg | L181: 12.5 | M181: 072 | N181: 15
A182: 01 | B182: =VLOOKUP(A182,'Understanding the coding'!$B$11:$C$23,2,FALSE) -> Living_room_lounge_dining_room_furniture | C182: 017 | D182: =VLOOKUP(C182,'Understanding the coding'!$E$11:$F$65,2,FALSE) -> Storage units (excluding shelves) | E182: 06 | F182: =VLOOKUP(E182,'Understanding the coding'!$H$11:$I$91,2,FALSE) -> Textiles, leathers, furs | G182: 030 | H182: =VLOOKUP(G182,'Understanding the coding'!$K$11:$L$114,2,FALSE) -> Between 100 kg and < 150 kg | J182: 01017060300 | K182: Living_room_lounge_dining_room_furniture,Storage units (excluding shelves),Textiles, leathers, furs,Between 100 kg and < 150 kg | L182: 20.83 | M182: 149 | N182: 25
A183: 01 | B183: =VLOOKUP(A183,'Understanding the coding'!$B$11:$C$23,2,FALSE) -> Living_room_lounge_dining_room_furniture | C183: 017 | D183: =VLOOKUP(C183,'Understanding the coding'!$E$11:$F$65,2,FALSE) -> Storage units (excluding shelves) | E183: 06 | F183: =VLOOKUP(E183,'Understanding the coding'!$H$11:$I$91,2,FALSE) -> Textiles, leathers, furs | G183: 031 | H183: =VLOOKUP(G183,'Understanding the coding'!$K$11:$L$114,2,FALSE) -> Between 150 kg and < 200 kg | J183: 01017060310 | K183: Living_room_lounge_dining_room_furniture,Storage units (excluding shelves),Textiles, leathers, furs,Between 150 kg and < 200 kg | L183: 29.17 | M183: 534 | N183: 35
A184: 01 | B184: =VLOOKUP(A184,'Understanding the coding'!$B$11:$C$23,2,FALSE) -> Living_room_lounge_dining_room_furniture | C184: 017 | D184: =VLOOKUP(C184,'Understanding the coding'!$E$11:$F$65,2,FALSE) -> Storage units (excluding shelves) | E184: 06 | F184: =VLOOKUP(E184,'Understanding the coding'!$H$11:$I$91,2,FALSE) -> Textiles, leathers, furs | G184: 032 | H184: =VLOOKUP(G184,'Understanding the coding'!$K$11:$L$114,2,FALSE) -> Between 200 kg and < 250 kg | J184: 01017060320 | K184: Living_room_lounge_dining_room_furniture,Storage units (excluding shelves),Textiles, leathers, furs,Between 200 kg and < 250 kg | L184: 29.17 | M184: 534 | N184: 35
A185: =MID(J185,1,2) -> 01 | B185: =VLOOKUP(A185,'Understanding the coding'!$B$11:$C$23,2,FALSE) -> Living_room_lounge_dining_room_furniture | C185: =MID(J185,3,3) -> 017 | D185: =VLOOKUP(C185,'Understanding the coding'!$E$11:$F$65,2,FALSE) -> Storage units (excluding shelves) | E185: =MID(J185,6,2) -> 06 | F185: =VLOOKUP(E185,'Understanding the coding'!$H$11:$I$91,2,FALSE) -> Textiles, leathers, furs | G185: =MID(J185,8,3) -> 033 | H185: =VLOOKUP(G185,'Understanding the coding'!$K$11:$L$114,2,FALSE) -> Between 250 kg and < 300 kg | J185: 01017060330 | K185: Living_room_lounge_dining_room_furniture,Storage units (excluding shelves),Textiles, leathers, furs,Between 250 kg and < 300 kg | L185: 29.17 | M185: 534 | N185: 35
A186: 01 | B186: =VLOOKUP(A186,'Understanding the coding'!$B$11:$C$23,2,FALSE) -> Living_room_lounge_dining_room_furniture | C186: 017 | D186: =VLOOKUP(C186,'Understanding the coding'!$E$11:$F$65,2,FALSE) -> Storage units (excluding shelves) | E186: 06 | F186: =VLOOKUP(E186,'Understanding the coding'!$H$11:$I$91,2,FALSE) -> Textiles, leathers, furs | G186: 034 | H186: =VLOOKUP(G186,'Understanding the coding'!$K$11:$L$114,2,FALSE) -> Between 300 kg and < 400 kg | J186: 01017060340 | K186: Living_room_lounge_dining_room_furniture,Storage units (excluding shelves),Textiles, leathers, furs,Between 300 kg and < 400 kg | L186: 29.17 | M186: 534 | N186: 35
A187: 01 | B187: =VLOOKUP(A187,'Understanding the coding'!$B$11:$C$23,2,FALSE) -> Living_room_lounge_dining_room_furniture | C187: 017 | D187: =VLOOKUP(C187,'Understanding the coding'!$E$11:$F$65,2,FALSE) -> Storage units (excluding shelves) | E187: 06 | F187: =VLOOKUP(E187,'Understanding the coding'!$H$11:$I$91,2,FALSE) -> Textiles, leathers, furs | G187: 035 | H187: =VLOOKUP(G187,'Understanding the coding'!$K$11:$L$114,2,FALSE) -> Between 400 kg and < 500 kg | J187: 01017060350 | K187: Living_room_lounge_dining_room_furniture,Storage units (excluding shelves),Textiles, leathers, furs,Between 400 kg and < 500 kg | L187: 29.17 | M187: 534 | N187: 35
A188: 01 | B188: =VLOOKUP(A188,'Understanding the coding'!$B$11:$C$23,2,FALSE) -> Living_room_lounge_dining_room_furniture | C188: 017 | D188: =VLOOKUP(C188,'Understanding the coding'!$E$11:$F$65,2,FALSE) -> Storage units (excluding shelves) | E188: 06 | F188: =VLOOKUP(E188,'Understanding the coding'!$H$11:$I$91,2,FALSE) -> Textiles, leathers, furs | G188: 036 | H188: =VLOOKUP(G188,'Understanding the coding'!$K$11:$L$114,2,FALSE) -> Between 500 kg and < 600 kg | J188: 01017060360 | K188: Living_room_lounge_dining_room_furniture,Storage units (excluding shelves),Textiles, leathers, furs,Between 500 kg and < 600 kg | L188: 29.17 | M188: 534 | N188: 35
A189: =MID(J189,1,2) -> 01 | B189: =VLOOKUP(A189,'Understanding the coding'!$B$11:$C$23,2,FALSE) -> Living_room_lounge_dining_room_furniture | C189: =MID(J189,3,3) -> 017 | D189: =VLOOKUP(C189,'Understanding the coding'!$E$11:$F$65,2,FALSE) -> Storage units (excluding shelves) | E189: =MID(J189,6,2) -> 06 | F189: =VLOOKUP(E189,'Understanding the coding'!$H$11:$I$91,2,FALSE) -> Textiles, leathers, furs | G189: =MID(J189,8,3) -> 037 | H189: =VLOOKUP(G189,'Understanding the coding'!$K$11:$L$114,2,FALSE) -> Between 600 kg and < 700 kg | J189: 01017060370 | K189: Living_room_lounge_dining_room_furniture,Storage units (excluding shelves),Textiles, leathers, furs,Between 600 kg and < 700 kg | L189: 29.17 | M189: 534 | N189: 35
A190: 01 | B190: =VLOOKUP(A190,'Understanding the coding'!$B$11:$C$23,2,FALSE) -> Living_room_lounge_dining_room_furniture | C190: 017 | D190: =VLOOKUP(C190,'Understanding the coding'!$E$11:$F$65,2,FALSE) -> Storage units (excluding shelves) | E190: 06 | F190: =VLOOKUP(E190,'Understanding the coding'!$H$11:$I$91,2,FALSE) -> Textiles, leathers, furs | G190: 038 | H190: =VLOOKUP(G190,'Understanding the coding'!$K$11:$L$114,2,FALSE) -> Between 700 kg and < 800 kg | J190: 01017060380 | K190: Living_room_lounge_dining_room_furniture,Storage units (excluding shelves),Textiles, leathers, furs,Between 700 kg and < 800 kg | L190: 29.17 | M190: 534 | N190: 35
A191: 01 | B191: =VLOOKUP(A191,'Understanding the coding'!$B$11:$C$23,2,FALSE) -> Living_room_lounge_dining_room_furniture | C191: 017 | D191: =VLOOKUP(C191,'Understanding the coding'!$E$11:$F$65,2,FALSE) -> Storage units (excluding shelves) | E191: 06 | F191: =VLOOKUP(E191,'Understanding the coding'!$H$11:$I$91,2,FALSE) -> Textiles, leathers, furs | G191: 039 | H191: =VLOOKUP(G191,'Understanding the coding'!$K$11:$L$114,2,FALSE) -> Between 800 kg and < 900 kg | J191: 01017060390 | K191: Living_room_lounge_dining_room_furniture,Storage units (excluding shelves),Textiles, leathers, furs,Between 800 kg and < 900 kg | L191: 29.17 | M191: 534 | N191: 35
A192: 01 | B192: =VLOOKUP(A192,'Understanding the coding'!$B$11:$C$23,2,FALSE) -> Living_room_lounge_dining_room_furniture | C192: 017 | D192: =VLOOKUP(C192,'Understanding the coding'!$E$11:$F$65,2,FALSE) -> Storage units (excluding shelves) | E192: 06 | F192: =VLOOKUP(E192,'Understanding the coding'!$H$11:$I$91,2,FALSE) -> Textiles, leathers, furs | G192: 040 | H192: =VLOOKUP(G192,'Understanding the coding'!$K$11:$L$114,2,FALSE) -> Between 900 kg and < 1,000 kg | J192: 01017060400 | K192: Living_room_lounge_dining_room_furniture,Storage units (excluding shelves),Textiles, leathers, furs,Between 900 kg and < 1,000 kg | L192: 29.17 | M192: 534 | N192: 35
A193: =MID(J193,1,2) -> 01 | B193: =VLOOKUP(A193,'Understanding the coding'!$B$11:$C$23,2,FALSE) -> Living_room_lounge_dining_room_furniture | C193: =MID(J193,3,3) -> 017 | D193: =VLOOKUP(C193,'Understanding the coding'!$E$11:$F$65,2,FALSE) -> Storage units (excluding shelves) | E193: =MID(J193,6,2) -> 06 | F193: =VLOOKUP(E193,'Understanding the coding'!$H$11:$I$91,2,FALSE) -> Textiles, leathers, furs | G193: =MID(J193,8,3) -> 041 | H193: =VLOOKUP(G193,'Understanding the coding'!$K$11:$L$114,2,FALSE) -> Between 1,000 kg and < 1,100 kg | J193: 01017060410 | K193: Living_room_lounge_dining_room_furniture,Storage units (excluding shelves),Textiles, leathers, furs,Between 1,000 kg and < 1,100 kg | L193: 29.17 | M193: 534 | N193: 35
A194: 01 | B194: =VLOOKUP(A194,'Understanding the coding'!$B$11:$C$23,2,FALSE) -> Living_room_lounge_dining_room_furniture | C194: 017 | D194: =VLOOKUP(C194,'Understanding the coding'!$E$11:$F$65,2,FALSE) -> Storage units (excluding shelves) | E194: 06 | F194: =VLOOKUP(E194,'Understanding the coding'!$H$11:$I$91,2,FALSE) -> Textiles, leathers, furs | G194: 042 | H194: =VLOOKUP(G194,'Understanding the coding'!$K$11:$L$114,2,FALSE) -> Between 1,100 kg and < 1,200 kg | J194: 01017060420 | K194: Living_room_lounge_dining_room_furniture,Storage units (excluding shelves),Textiles, leathers, furs,Between 1,100 kg and < 1,200 kg | L194: 29.17 | M194: 534 | N194: 35
A195: 01 | B195: =VLOOKUP(A195,'Understanding the coding'!$B$11:$C$23,2,FALSE) -> Living_room_lounge_dining_room_furniture | C195: 017 | D195: =VLOOKUP(C195,'Understanding the coding'!$E$11:$F$65,2,FALSE) -> Storage units (excluding shelves) | E195: 06 | F195: =VLOOKUP(E195,'Understanding the coding'!$H$11:$I$91,2,FALSE) -> Textiles, leathers, furs | G195: 043 | H195: =VLOOKUP(G195,'Understanding the coding'!$K$11:$L$114,2,FALSE) -> Between 1,200 kg and < 1,300 kg | J195: 01017060430 | K195: Living_room_lounge_dining_room_furniture,Storage units (excluding shelves),Textiles, leathers, furs,Between 1,200 kg and < 1,300 kg | L195: 29.17 | M195: 534 | N195: 35
A196: 01 | B196: =VLOOKUP(A196,'Understanding the coding'!$B$11:$C$23,2,FALSE) -> Living_room_lounge_dining_room_furniture | C196: 017 | D196: =VLOOKUP(C196,'Understanding the coding'!$E$11:$F$65,2,FALSE) -> Storage units (excluding shelves) | E196: 06 | F196: =VLOOKUP(E196,'Understanding the coding'!$H$11:$I$91,2,FALSE) -> Textiles, leathers, furs | G196: 044 | H196: =VLOOKUP(G196,'Understanding the coding'!$K$11:$L$114,2,FALSE) -> Between 1,300 kg and < 1,400 kg | J196: 01017060440 | K196: Living_room_lounge_dining_room_furniture,Storage units (excluding shelves),Textiles, leathers, furs,Between 1,300 kg and < 1,400 kg | L196: 29.17 | M196: 534 | N196: 35
A197: =MID(J197,1,2) -> 01 | B197: =VLOOKUP(A197,'Understanding the coding'!$B$11:$C$23,2,FALSE) -> Living_room_lounge_dining_room_furniture | C197: =MID(J197,3,3) -> 017 | D197: =VLOOKUP(C197,'Understanding the coding'!$E$11:$F$65,2,FALSE) -> Storage units (excluding shelves) | E197: =MID(J197,6,2) -> 06 | F197: =VLOOKUP(E197,'Understanding the coding'!$H$11:$I$91,2,FALSE) -> Textiles, leathers, furs | G197: =MID(J197,8,3) -> 045 | H197: =VLOOKUP(G197,'Understanding the coding'!$K$11:$L$114,2,FALSE) -> Between 1,400 kg and < 1,500 kg | J197: 01017060450 | K197: Living_room_lounge_dining_room_furniture,Storage units (excluding shelves),Textiles, leathers, furs,Between 1,400 kg and < 1,500 kg | L197: 29.17 | M197: 534 | N197: 35
A198: 01 | B198: =VLOOKUP(A198,'Understanding the coding'!$B$11:$C$23,2,FALSE) -> Living_room_lounge_dining_room_furniture | C198: 017 | D198: =VLOOKUP(C198,'Understanding the coding'!$E$11:$F$65,2,FALSE) -> Storage units (excluding shelves) | E198: 06 | F198: =VLOOKUP(E198,'Understanding the coding'!$H$11:$I$91,2,FALSE) -> Textiles, leathers, furs | G198: 046 | H198: =VLOOKUP(G198,'Understanding the coding'!$K$11:$L$114,2,FALSE) -> Between 1,500 kg and < 1,600 kg | J198: 01017060460 | K198: Living_room_lounge_dining_room_furniture,Storage units (excluding shelves),Textiles, leathers, furs,Between 1,500 kg and < 1,600 kg | L198: 29.17 | M198: 534 | N198: 35
A199: =MID(J199,1,2) -> 01 | B199: =VLOOKUP(A199,'Understanding the coding'!$B$11:$C$23,2,FALSE) -> Living_room_lounge_dining_room_furniture | C199: =MID(J199,3,3) -> 017 | D199: =VLOOKUP(C199,'Understanding the coding'!$E$11:$F$65,2,FALSE) -> Storage units (excluding shelves) | E199: =MID(J199,6,2) -> 06 | F199: =VLOOKUP(E199,'Understanding the coding'!$H$11:$I$91,2,FALSE) -> Textiles, leathers, furs | G199: =MID(J199,8,3) -> 047 | H199: =VLOOKUP(G199,'Understanding the coding'!$K$11:$L$114,2,FALSE) -> Between 1,600 kg and < 1,700 kg | J199: 01017060470 | K199: Living_room_lounge_dining_room_furniture,Storage units (excluding shelves),Textiles, leathers, furs,Between 1,600 kg and < 1,700 kg | L199: 29.17 | M199: 534 | N199: 35
A200: 01 | B200: =VLOOKUP(A200,'Understanding the coding'!$B$11:$C$23,2,FALSE) -> Living_room_lounge_dining_room_furniture | C200: 017 | D200: =VLOOKUP(C200,'Understanding the coding'!$E$11:$F$65,2,FALSE) -> Storage units (excluding shelves) | E200: 06 | F200: =VLOOKUP(E200,'Understanding the coding'!$H$11:$I$91,2,FALSE) -> Textiles, leathers, furs | G200: 048 | H200: =VLOOKUP(G200,'Understanding the coding'!$K$11:$L$114,2,FALSE) -> Between 1,700 kg and < 1,800 kg | J200: 01017060480 | K200: Living_room_lounge_dining_room_furniture,Storage units (excluding shelves),Textiles, leathers, furs,Between 1,700 kg and < 1,800 kg | L200: 29.17 | M200: 534 | N200: 35
... 4300 more rows

Sheet Code per size
A1: Product code | B1: Product description | C1: Eco-fee ex VAT | D1: Eco-fee code | E1: Eco-fee inc VAT | I1: 0
A2: 02038019010 | B2: Wooden shelf only, from 0 to 60cm long, width less than 25cm | C2: Pending | E2: Pending
A3: 02038209010 | B3: Shelf only in solid wood certified at more than 75% from 0 to 60cm in length, width less than 25cm | C3: Pending | E3: Pending
A4: 02038219010 | B4: Solid wood shelf only, more than 75% uncertified, 0 to 60cm long, width less than 25cm | C4: Pending | E4: Pending
A5: 02038259010 | B5: Shelf only in particleboard more than 75% from 0 to 60cm long, width less than 25cm | C5: Pending | E5: Pending
A6: 02039019010 | B6: Wooden cutting board, 0 to 60cm long, less than 25cm wide | C6: Pending | E6: Pending
A7: 02039209010 | B7: Cut-to-size drawing in solid wood over 75% certified from 0 to 60cm in length, width less than 25cm | C7: Pending | E7: Pending
A8: 02039219010 | B8: Solid wood cut-to-size, more than 75% uncertified, 0 to 60cm long, less than 25cm wide | C8: Pending | E8: Pending
A9: 02039259010 | B9: Particleboard cut-to-size over 75% from 0 to 60cm in length, width less than 25cm | C9: Pending | E9: Pending
A10: 02038019020 | B10: Single wooden shelf, 60 to 120cm long, less than 25cm wide | C10: Pending | E10: Pending
A11: 02038209020 | B11: Shelf only in solid wood certified at more than 75% from 60 to 120cm in length, width less than 25cm | C11: Pending | E11: Pending
A12: 02038219020 | B12: Solid wood shelf only, more than 75% uncertified, 60 to 120cm long, width less than 25cm | C12: Pending | E12: Pending
A13: 02038259020 | B13: Shelf only in particleboard more than 75% from 60 to 120cm long, width less than 25cm | C13: Pending | E13: Pending
A14: 02039019020 | B14: Wooden cutting board, 60 to 120cm long, less than 25cm wide | C14: Pending | E14: Pending
A15: 02039209020 | B15: Cut-to-size plane in solid wood over 75% certified, 60 to 120cm long, less than 25cm wide | C15: Pending | E15: Pending
A16: 02039219020 | B16: Solid wood cut-to-size, more than 75% uncertified, 60 to 120cm long, less than 25cm wide | C16: Pending | E16: Pending
A17: 02039259020 | B17: Cut-to-size drawing in particleboard over 75% from 60 to 120cm long, width less than 25cm | C17: Pending | E17: Pending
A18: 02038019030 | B18: Single wooden shelf, over 120cm long, less than 25cm wide | C18: Pending | E18: Pending
A19: 02038209030 | B19: Shelf only in solid wood certified at more than 75% more than 120cm long, width less than 25cm | C19: Pending | E19: Pending
A20: 02038219030 | B20: Shelf only in uncertified solid wood over 75% more than 120cm long, width less than 25cm | C20: Pending | E20: Pending
A21: 02038259030 | B21: Particleboard single shelf over 75% over 120cm long, less than 25cm wide | C21: Pending | E21: Pending
A22: 02039019030 | B22: Wooden cutting board, over 120cm long, less than 25cm wide | C22: Pending | E22: Pending
A23: 02039209030 | B23: Cut-to-size drawing in certified solid wood over 75% more than 120cm long, less than 25cm wide | C23: Pending | E23: Pending
A24: 02039219030 | B24: Non-certified solid wood cutting plane more than 75% over 120cm long, less than 25cm wide | C24: Pending | E24: Pending
A25: 02039259030 | B25: Cut-to-size drawing in particleboard more than 75% over 120cm long, less than 25cm wide | C25: Pending | E25: Pending
A26: 02038019040 | B26: Single wooden shelf, 0 to 60cm long, width over 25cm | C26: Pending | E26: Pending
A27: 02038209040 | B27: Shelf only in solid wood certified at more than 75% from 0 to 60cm in length, width greater than 25cm | C27: Pending | E27: Pending
A28: 02038219040 | B28: Solid wood shelf only, more than 75% uncertified, 0 to 60cm long, width greater than 25cm | C28: Pending | E28: Pending
A29: 02038259040 | B29: Shelf only in particleboard more than 75% from 0 to 60cm long, width greater than 25cm | C29: Pending | E29: Pending
A30: 02039019040 | B30: Wooden cutting board, from 0 to 60cm in length, width greater than 25cm | C30: Pending | E30: Pending
A31: 02039209040 | B31: Cut-to-size drawing in solid wood over 75% certified from 0 to 60cm in length, width over 25cm | C31: Pending | E31: Pending
A32: 02039219040 | B32: Solid wood cut-to-size, more than 75% uncertified, 0 to 60cm long, width greater than 25cm | C32: Pending | E32: Pending
A33: 02039259040 | B33: Cutting plan for particleboard over 75% from 0 to 60cm in length, width over 25cm | C33: Pending | E33: Pending
A34: 02038019050 | B34: Single wooden shelf, 60 to 120cm long, width over 25cm | C34: Pending | E34: Pending
A35: 02038209050 | B35: Shelf only in solid wood certified at more than 75% from 60 to 120cm in length, width greater than 25cm | C35: Pending | E35: Pending
A36: 02038219050 | B36: Solid wood shelf only, more than 75% uncertified, 60 to 120cm long, width greater than 25cm | C36: Pending | E36: Pending
A37: 02038259050 | B37: Shelf only in particleboard more than 75% from 60 to 120cm long, width greater than 25cm | C37: Pending | E37: Pending
A38: 02039019050 | B38: Wooden cutting board, from 60 to 120cm long, width greater than 25cm | C38: Pending | E38: Pending
A39: 02039209050 | B39: Cut-to-size plane in solid wood certified at more than 75%, 60 to 120cm long, width greater than 25cm | C39: Pending | E39: Pending
A40: 02039219050 | B40: Solid wood cut-to-size, more than 75% uncertified, 60 to 120cm long, width greater than 25cm | C40: Pending | E40: Pending
A41: 02039259050 | B41: Cut-to-size plan for particleboard panels over 75% 60 to 120cm long, width over 25cm | C41: Pending | E41: Pending
A42: 02038019060 | B42: Single wooden shelf, more than 120cm long, width greater than 25cm | C42: Pending | E42: Pending
A43: 02038209060 | B43: Shelf only in solid wood certified at more than 75% more than 120cm long, width greater than 25cm | C43: Pending | E43: Pending
A44: 02038219060 | B44: Shelf only in uncertified solid wood more than 75% longer than 120cm, wider than 25cm | C44: Pending | E44: Pending
A45: 02038259060 | B45: Particleboard single shelves more than 75% longer than 120cm, wider than 25cm | C45: Pending | E45: Pending
A46: 02039019060 | B46: Wooden cutting board, more than 120cm long, width greater than 25cm | C46: Pending | E46: Pending
A47: 02039209060 | B47: Cut-to-size drawing in solid wood certified to more than 75% more than 120cm in length, width greater than 25cm | C47: Pending | E47: Pending
A48: 02039219060 | B48: Non-certified solid wood cut-to-size drawing more than 75% longer than 120cm, wider than 25cm | C48: Pending | E48: Pending
A49: 02039259060 | B49: Cutting plan for particleboard more than 75% longer than 120cm, wider than 25cm | C49: Pending | E49: Pending

Sheet Small Producer codes
A1: Product code | B1: Product description | C1: Eco-fee inc VAT | D1: Eco-fee ex VAT | E1: Up to X units
A2: 02017000900 | B2: Any category, Storage furniture, unspecified material, lot of 10 units | C2: 38.33 | D2: =C2*1.2 -> 45.996 | E2: 10
A3: 02019000900 | B3: Any category, Desk, Table, Worktop, Material not specified, lot of 10 units | C3: 52.5 | D3: 63 | E3: 10
A4: 02022000900 | B4: Appointment, Accessory (Hardware, plastic box), Material not specified, lot of 10 units | C4: 2.9 | D4: 3.48 | E4: 10
A5: 02020000900 | B5: Appoint, Shelves and racks, Unspecified material, set of 10 units | C5: 11.7 | D5: 14.04 | E5: 10
A6: 08000000900 | B6: Garden, All types of furniture, Unspecified material, Set of 10 units | C6: 23.33 | D6: 27.996 | E6: 10
A7: 09053120900 | B7: Seat, Inflatable seat, Plastic, set of 10 units | C7: 3.8 | D7: 4.56 | E7: 10
A8: 09043120900 | B8: Seat, Chair, Unpadded, set of 10 units | C8: 10.8 | D8: 12.96 | E8: 10
A9: 09043000900 | B9: Seat, Armchair and office chair, upholstered, set of 10 units | C9: 45 | D9: 54 | E9: 10
A10: 09044000900 | B10: Seat, Sofas (2-seater), upholstered, set of 10 units | C10: 166.67 | D10: 200.004 | E10: 10
A11: 09045000900 | B11: Seat, Sofas and Lounges (3+ seats), upholstered, set of 10 units | C11: 350 | D11: 420 | E11: 10
A12: 04023000900 | B12: Bedding, Inflatable mattress, plastic, set of 10 units | C12: 17 | D12: 20.4 | E12: 10
A13: 04061120900 | B13: Bedding, Mattress and mattress topper, Unspecified material, set of 10 units | C13: 125 | D13: 150 | E13: 10
A14: 04062000900 | B14: Bedding, Box spring, upholstered, set of 10 units | C14: 70.83 | D14: 84.996 | E14: 10
A15: 04024000900 | B15: Bedding, Chest Bed, Mechanical or without, set of 10 units | C15: 112.5 | D15: 135 | E15: 10
A16: 03018120900 | B16: Bedding, Bed frame, Material not specified, set of 10 units | C16: 83.4 | D16: 100.08 | E16: 10
A17: 04077000960 | B17: Bedding, Headboard, Material not specified, set of 10 units | C17: 25 | D17: =C17*1.2 -> 30 | E17: 10
A18: 04025120900 | B18: Bedding, Footboards, Material not specified, set of 10 units | C18: 1.33 | D18: 1.596 | E18: 10
A19: 11031120900 | B19: Upholstered article seat bedding, Cushions / pillows, Upholstery, batch of 10 units | C19: 1.67 | D19: 2.004 | E19: 10
A20: 11029120900 | B20: Upholstered article seat bedding, Comforter / sleeping bag, Upholstery, batch of 10 units | C20: 5 | D20: 6 | E20: 10
A21: 11028120900 | B21: Upholstered article seat bedding, Non litter mattress topper, Upholstery, batch of 10 units | C21: 5 | D21: =C21*1.2 -> 6 | E21: 10
A22: 12071120900 | B22: Decorative textile items / functional mats / doormats, made from unspecified materials, batch of 10 units | C22: 7.5 | D22: 9 | E22: 10
A26: 0

Sheet 2020 codes deleted in 2024
A1: Product code | B1: Wording
A2: 02035060200 | B2: Occasional_furniture, Furnishing fabrics, Textiles, leathers, furs ,Must not exceed 0.5 kg
A3: 02035060210 | B3: Occasional_furniture, Furnishing fabrics, Textiles, leathers, furs ,Between 0.5 kg and < 1 kg
A4: 02035060220 | B4: Occasional_furniture, Furnishing fabrics, Textiles, leathers, furs ,Between 1 kg and < 2 kg
A5: 02035060230 | B5: Occasional_furniture, Furnishing fabrics, Textiles, leathers, furs ,Between 2 kg and < 5 kg
A6: 02035060240 | B6: Occasional_furniture, Furnishing fabrics, Textiles, leathers, furs ,Between 5 kg and < 10 kg
A7: 02035060250 | B7: Occasional_furniture, Furnishing fabrics, Textiles, leathers, furs ,Between 10 kg and < 20 kg
A8: 02035060260 | B8: Occasional_furniture, Furnishing fabrics, Textiles, leathers, furs ,Between 20 kg and < 30 kg
A9: 02035060270 | B9: Occasional_furniture, Furnishing fabrics, Textiles, leathers, furs ,Between 30 kg and < 40 kg
A10: 02035060280 | B10: Occasional_furniture, Furnishing fabrics, Textiles, leathers, furs ,Between 40 kg and < 60 kg
A11: 02035060290 | B11: Occasional_furniture, Furnishing fabrics, Textiles, leathers, furs ,Between 60 kg and < 100 kg
A12: 02035060300 | B12: Occasional_furniture, Furnishing fabrics, Textiles, leathers, furs ,Between 100 kg and < 150 kg
A13: 02035060310 | B13: Occasional_furniture, Furnishing fabrics, Textiles, leathers, furs ,Between 150 kg and < 200 kg
A14: 02035060320 | B14: Occasional_furniture, Furnishing fabrics, Textiles, leathers, furs ,Between 200 kg and < 250 kg
A15: 02035060330 | B15: Occasional_furniture, Furnishing fabrics, Textiles, leathers, furs ,Between 250 kg and < 300 kg
A16: 02035060340 | B16: Occasional_furniture, Furnishing fabrics, Textiles, leathers, furs ,Between 300 kg and < 400 kg
A17: 02035060350 | B17: Occasional_furniture, Furnishing fabrics, Textiles, leathers, furs ,Between 400 kg and < 500 kg
A18: 02035060360 | B18: Occasional_furniture, Furnishing fabrics, Textiles, leathers, furs ,Between 500 kg and < 600 kg
A19: 02035060370 | B19: Occasional_furniture, Furnishing fabrics, Textiles, leathers, furs ,Between 600 kg and < 700 kg
A20: 02035060380 | B20: Occasional_furniture, Furnishing fabrics, Textiles, leathers, furs ,Between 700 kg and < 800 kg
A21: 02035060390 | B21: Occasional_furniture, Furnishing fabrics, Textiles, leathers, furs ,Between 800 kg and < 900 kg
A22: 02035060400 | B22: Occasional_furniture, Furnishing fabrics, Textiles, leathers, furs ,Between 900 kg and < 1,000 kg
A23: 02035060410 | B23: Occasional_furniture, Furnishing fabrics, Textiles, leathers, furs ,Between 1,000 kg and < 1,100 kg
A24: 02035060420 | B24: Occasional_furniture, Furnishing fabrics, Textiles, leathers, furs ,Between 1,100 kg and < 1,200 kg
A25: 02035060430 | B25: Occasional_furniture, Furnishing fabrics, Textiles, leathers, furs ,Between 1,200 kg and < 1,300 kg
A26: 02035060440 | B26: Occasional_furniture, Furnishing fabrics, Textiles, leathers, furs ,Between 1,300 kg and < 1,400 kg
A27: 02035060450 | B27: Occasional_furniture, Furnishing fabrics, Textiles, leathers, furs ,Between 1,400 kg and < 1,500 kg
A28: 02035060460 | B28: Occasional_furniture, Furnishing fabrics, Textiles, leathers, furs ,Between 1,500 kg and < 1,600 kg
A29: 02035060470 | B29: Occasional_furniture, Furnishing fabrics, Textiles, leathers, furs ,Between 1,600 kg and < 1,700 kg
A30: 02035060480 | B30: Occasional_furniture, Furnishing fabrics, Textiles, leathers, furs ,Between 1,700 kg and < 1,800 kg
A31: 02035060490 | B31: Occasional_furniture, Furnishing fabrics, Textiles, leathers, furs ,Between 1,800 kg and < 1,900 kg
A32: 02035060500 | B32: Occasional_furniture, Furnishing fabrics, Textiles, leathers, furs ,Between 1,900 kg and < 2,000 kg
A33: 02035060510 | B33: Occasional_furniture, Furnishing fabrics, Textiles, leathers, furs ,Over 2,000 kg
A34: 02035120200 | B34: Occasional_furniture, Furnishing fabrics, Other ,Must not exceed 0.5 kg
A35: 02035120210 | B35: Occasional_furniture, Furnishing fabrics, Other ,Between 0.5 kg and < 1 kg
A36: 02035120220 | B36: Occasional_furniture, Furnishing fabrics, Other ,Between 1 kg and < 2 kg
A37: 02035120230 | B37: Occasional_furniture, Furnishing fabrics, Other ,Between 2 kg and < 5 kg
A38: 02035120240 | B38: Occasional_furniture, Furnishing fabrics, Other ,Between 5 kg and < 10 kg
A39: 02035120250 | B39: Occasional_furniture, Furnishing fabrics, Other ,Between 10 kg and < 20 kg
A40: 02035120260 | B40: Occasional_furniture, Furnishing fabrics, Other ,Between 20 kg and < 30 kg
A41: 02035120270 | B41: Occasional_furniture, Furnishing fabrics, Other ,Between 30 kg and < 40 kg
A42: 02035120280 | B42: Occasional_furniture, Furnishing fabrics, Other ,Between 40 kg and < 60 kg
A43: 02035120290 | B43: Occasional_furniture, Furnishing fabrics, Other ,Between 60 kg and < 100 kg
A44: 02035120300 | B44: Occasional_furniture, Furnishing fabrics, Other ,Between 100 kg and < 150 kg
A45: 02035120310 | B45: Occasional_furniture, Furnishing fabrics, Other ,Between 150 kg and < 200 kg
A46: 02035120320 | B46: Occasional_furniture, Furnishing fabrics, Other ,Between 200 kg and < 250 kg
A47: 02035120330 | B47: Occasional_furniture, Furnishing fabrics, Other ,Between 250 kg and < 300 kg
A48: 02035120340 | B48: Occasional_furniture, Furnishing fabrics, Other ,Between 300 kg and < 400 kg
A49: 02035120350 | B49: Occasional_furniture, Furnishing fabrics, Other ,Between 400 kg and < 500 kg
A50: 02035120360 | B50: Occasional_furniture, Furnishing fabrics, Other ,Between 500 kg and < 600 kg
A51: 02035120370 | B51: Occasional_furniture, Furnishing fabrics, Other ,Between 600 kg and < 700 kg
A52: 02035120380 | B52: Occasional_furniture, Furnishing fabrics, Other ,Between 700 kg and < 800 kg
A53: 02035120390 | B53: Occasional_furniture, Furnishing fabrics, Other ,Between 800 kg and < 900 kg
A54: 02035120400 | B54: Occasional_furniture, Furnishing fabrics, Other ,Between 900 kg and < 1,000 kg
A55: 02035120410 | B55: Occasional_furniture, Furnishing fabrics, Other ,Between 1,000 kg and < 1,100 kg
A56: 02035120420 | B56: Occasional_furniture, Furnishing fabrics, Other ,Between 1,100 kg and < 1,200 kg
A57: 02035120430 | B57: Occasional_furniture, Furnishing fabrics, Other ,Between 1,200 kg and < 1,300 kg
A58: 02035120440 | B58: Occasional_furniture, Furnishing fabrics, Other ,Between 1,300 kg and < 1,400 kg
A59: 02035120450 | B59: Occasional_furniture, Furnishing fabrics, Other ,Between 1,400 kg and < 1,500 kg
A60: 02035120460 | B60: Occasional_furniture, Furnishing fabrics, Other ,Between 1,500 kg and < 1,600 kg
A61: 02035120470 | B61: Occasional_furniture, Furnishing fabrics, Other ,Between 1,600 kg and < 1,700 kg
A62: 02035120480 | B62: Occasional_furniture, Furnishing fabrics, Other ,Between 1,700 kg and < 1,800 kg
A63: 02035120490 | B63: Occasional_furniture, Furnishing fabrics, Other ,Between 1,800 kg and < 1,900 kg
A64: 02035120500 | B64: Occasional_furniture, Furnishing fabrics, Other ,Between 1,900 kg and < 2,000 kg
A65: 02035120510 | B65: Occasional_furniture, Furnishing fabrics, Other ,Over 2,000 kg
A66: 04010000120 | B66: Bedding_for_domestic_market, Slatted frame, Unknown ,Width > 140 cm
A67: 04010010120 | B67: Bedding_for_domestic_market, Slatted frame, > 50% wood, wood panels, and wood derivatives ,Width > 140 cm
A68: 04010020120 | B68: Bedding_for_domestic_market, Slatted frame, > 50% metal ,Width > 140 cm
A69: 04010030120 | B69: Bedding_for_domestic_market, Slatted frame, Bamboo/rattan ,Width > 140 cm
A70: 04010040120 | B70: Bedding_for_domestic_market, Slatted frame, > 50% biosourced materials or non-synthetic textiles ,Width > 140 cm
A71: 04010050120 | B71: Bedding_for_domestic_market, Slatted frame, Plastics ,Width > 140 cm
A72: 04010120120 | B72: Bedding_for_domestic_market, Slatted frame, Other ,Width > 140 cm
A73: 04010130120 | B73: Bedding_for_domestic_market, Slatted frame, Natural stuffing (down, wool, etc.) ,Width > 140 cm
A74: 04010140120 | B74: Bedding_for_domestic_market, Slatted frame, Synthetic stuffing (foam, polyester, etc.) ,Width > 140 cm
A75: 04010200120 | B75: Bedding_for_domestic_market, Slatted frame, Min. 75% certified solid wood ,Width > 140 cm
A76: 04010210120 | B76: Bedding_for_domestic_market, Slatted frame, Min. 75% uncertified solid wood ,Width > 140 cm
A77: 04010220120 | B77: Bedding_for_domestic_market, Slatted frame, Min. 75% metal ,Width > 140 cm
A78: 04010230120 | B78: Bedding_for_domestic_market, Slatted frame, Min. 75% mix of certified solid wood and metal ,Width > 140 cm
A79: 04010240120 | B79: Bedding_for_domestic_market, Slatted frame, Particleboard and/or wood and/or metal, more than 75% ,Width > 140 cm
A80: 04010250120 | B80: Bedding_for_domestic_market, Slatted frame, Particleboard, more than 75% ,Width > 140 cm
A81: 04013000120 | B81: Bedding_for_domestic_market, Electric or mechanically adjustable bed base, Unknown ,Width > 140 cm
A82: 04013010120 | B82: Bedding_for_domestic_market, Electric or mechanically adjustable bed base, > 50% wood, wood panels, and wood derivatives ,Width > 140 cm
A83: 04013020120 | B83: Bedding_for_domestic_market, Electric or mechanically adjustable bed base, > 50% metal ,Width > 140 cm
A84: 04013030120 | B84: Bedding_for_domestic_market, Electric or mechanically adjustable bed base, Bamboo/rattan ,Width > 140 cm
A85: 04013040120 | B85: Bedding_for_domestic_market, Electric or mechanically adjustable bed base, > 50% biosourced materials or non-synthetic textiles ,Width > 140 cm
A86: 04013050120 | B86: Bedding_for_domestic_market, Electric or mechanically adjustable bed base, Plastics ,Width > 140 cm
A87: 04013120120 | B87: Bedding_for_domestic_market, Electric or mechanically adjustable bed base, Other ,Width > 140 cm
A88: 04013130120 | B88: Bedding_for_domestic_market, Electric or mechanically adjustable bed base, Natural stuffing (down, wool, etc.) ,Width > 140 cm
A89: 04013140120 | B89: Bedding_for_domestic_market, Electric or mechanically adjustable bed base, Synthetic stuffing (foam, polyester, etc.) ,Width > 140 cm
A90: 04013200120 | B90: Bedding_for_domestic_market, Electric or mechanically adjustable bed base, Min. 75% certified solid wood ,Width > 140 cm
A91: 04013210120 | B91: Bedding_for_domestic_market, Electric or mechanically adjustable bed base, Min. 75% uncertified solid wood ,Width > 140 cm
A92: 04013220120 | B92: Bedding_for_domestic_market, Electric or mechanically adjustable bed base, Min. 75% metal ,Width > 140 cm
A93: 04013230120 | B93: Bedding_for_domestic_market, Electric or mechanically adjustable bed base, Min. 75% mix of certified solid wood and metal ,Width > 140 cm
A94: 04013240120 | B94: Bedding_for_domestic_market, Electric or mechanically adjustable bed base, Particleboard and/or wood and/or metal, more than 75% ,Width > 140 cm
A95: 04013250120 | B95: Bedding_for_domestic_market, Electric or mechanically adjustable bed base, Particleboard, more than 75% ,Width > 140 cm
A96: 04023000120 | B96: Bedding_for_domestic_market, Inflatable mattress, Unknown ,Width > 140 cm
A97: 04024000120 | B97: Bedding_for_domestic_market, Storage bed, Unknown ,Width > 140 cm
A98: 04024010120 | B98: Bedding_for_domestic_market, Storage bed, > 50% wood, wood panels, and wood derivatives ,Width > 140 cm
A99: 04024020120 | B99: Bedding_for_domestic_market, Storage bed, > 50% metal ,Width > 140 cm
A100: 04024030120 | B100: Bedding_for_domestic_market, Storage bed, Bamboo/rattan ,Width > 140 cm
A101: 04024040120 | B101: Bedding_for_domestic_market, Storage bed, > 50% biosourced materials or non-synthetic textiles ,Width > 140 cm
A102: 04024050120 | B102: Bedding_for_domestic_market, Storage bed, Plastics ,Width > 140 cm
A103: 04024120120 | B103: Bedding_for_domestic_market, Storage bed, Other ,Width > 140 cm
A104: 04024130120 | B104: Bedding_for_domestic_market, Storage bed, Natural stuffing (down, wool, etc.) ,Width > 140 cm
A105: 04024140120 | B105: Bedding_for_domestic_market, Storage bed, Synthetic stuffing (foam, polyester, etc.) ,Width > 140 cm
A106: 04024200120 | B106: Bedding_for_domestic_market, Storage bed, Min. 75% certified solid wood ,Width > 140 cm
A107: 04024210120 | B107: Bedding_for_domestic_market, Storage bed, Min. 75% uncertified solid wood ,Width > 140 cm
A108: 04024220120 | B108: Bedding_for_domestic_market, Storage bed, Min. 75% metal ,Width > 140 cm
A109: 04024230120 | B109: Bedding_for_domestic_market, Storage bed, Min. 75% mix of certified solid wood and metal ,Width > 140 cm
A110: 04024240120 | B110: Bedding_for_domestic_market, Storage bed, Particleboard and/or wood and/or metal, more than 75% ,Width > 140 cm
A111: 04024250120 | B111: Bedding_for_domestic_market, Storage bed, Particleboard, more than 75% ,Width > 140 cm
A112: 04060090120 | B112: Bedding_for_domestic_market, Mattress thickness ≤ 10 cm, Foam ,Width > 140 cm
A113: 04060100120 | B113: Bedding_for_domestic_market, Mattress thickness ≤ 10 cm, Latex ,Width > 140 cm
A114: 04060110120 | B114: Bedding_for_domestic_market, Mattress thickness ≤ 10 cm, Springs ,Width > 140 cm
A115: 04060120120 | B115: Bedding_for_domestic_market, Mattress thickness ≤ 10 cm, Other ,Width > 140 cm
A116: 04061090120 | B116: Bedding_for_domestic_market, Mattress thickness > 10 cm, Foam ,Width > 140 cm
A117: 04061100120 | B117: Bedding_for_domestic_market, Mattress thickness > 10 cm, Latex ,Width > 140 cm
A118: 04061110120 | B118: Bedding_for_domestic_market, Mattress thickness > 10 cm, Springs ,Width > 140 cm
A119: 04061120120 | B119: Bedding_for_domestic_market, Mattress thickness > 10 cm, Other ,Width > 140 cm
A120: 04062000120 | B120: Bedding_for_domestic_market, Bed base (excluding relaxation bed base and storage bed), Unknown ,Width > 140 cm
A121: 04062010120 | B121: Bedding_for_domestic_market, Bed base (excluding relaxation bed base and storage bed), > 50% wood, wood panels, and wood derivatives ,Width > 140 cm
A122: 04062020120 | B122: Bedding_for_domestic_market, Bed base (excluding relaxation bed base and storage bed), > 50% metal ,Width > 140 cm
A123: 04062030120 | B123: Bedding_for_domestic_market, Bed base (excluding relaxation bed base and storage bed), Bamboo/rattan ,Width > 140 cm
A124: 04062040120 | B124: Bedding_for_domestic_market, Bed base (excluding relaxation bed base and storage bed), > 50% biosourced materials or non-synthetic textiles ,Width > 140 cm
A125: 04062050120 | B125: Bedding_for_domestic_market, Bed base (excluding relaxation bed base and storage bed), Plastics ,Width > 140 cm
A126: 04062120120 | B126: Bedding_for_domestic_market, Bed base (excluding relaxation bed base and storage bed), Other ,Width > 140 cm
A127: 04062130120 | B127: Bedding_for_domestic_market, Bed base (excluding relaxation bed base and storage bed), Natural stuffing (down, wool, etc.) ,Width > 140 cm
A128: 04062140120 | B128: Bedding_for_domestic_market, Bed base (excluding relaxation bed base and storage bed), Synthetic stuffing (foam, polyester, etc.) ,Width > 140 cm
A129: 04062200120 | B129: Bedding_for_domestic_market, Bed base (excluding relaxation bed base and storage bed), Min. 75% certified solid wood ,Width > 140 cm
A130: 04062210120 | B130: Bedding_for_domestic_market, Bed base (excluding relaxation bed base and storage bed), Min. 75% uncertified solid wood ,Width > 140 cm
A131: 04062220120 | B131: Bedding_for_domestic_market, Bed base (excluding relaxation bed base and storage bed), Min. 75% metal ,Width > 140 cm
A132: 04062230120 | B132: Bedding_for_domestic_market, Bed base (excluding relaxation bed base and storage bed), Min. 75% mix of certified solid wood and metal ,Width > 140 cm
A133: 04062240120 | B133: Bedding_for_domestic_market, Bed base (excluding relaxation bed base and storage bed), Particleboard and/or wood and/or metal, more than 75% ,Width > 140 cm
A134: 04062250120 | B134: Bedding_for_domestic_market, Bed base (excluding relaxation bed base and storage bed), Particleboard, more than 75% ,Width > 140 cm
A135: 14010000120 | B135: Bedding_for_trade_market, Slatted frame, Unknown ,Width > 140 cm
A136: 14010010120 | B136: Bedding_for_trade_market, Slatted frame, > 50% wood, wood panels, and wood derivatives ,Width > 140 cm
A137: 14010020120 | B137: Bedding_for_trade_market, Slatted frame, > 50% metal ,Width > 140 cm
A138: 14010030120 | B138: Bedding_for_trade_market, Slatted frame, Bamboo/rattan ,Width > 140 cm
A139: 14010040120 | B139: Bedding_for_trade_market, Slatted frame, > 50% biosourced materials or non-synthetic textiles ,Width > 140 cm
A140: 14010050120 | B140: Bedding_for_trade_market, Slatted frame, Plastics ,Width > 140 cm
A141: 14010120120 | B141: Bedding_for_trade_market, Slatted frame, Other ,Width > 140 cm
A142: 14010130120 | B142: Bedding_for_trade_market, Slatted frame, Natural stuffing (down, wool, etc.) ,Width > 140 cm
A143: 14010140120 | B143: Bedding_for_trade_market, Slatted frame, Synthetic stuffing (foam, polyester, etc.) ,Width > 140 cm
A144: 14010200120 | B144: Bedding_for_trade_market, Slatted frame, Min. 75% certified solid wood ,Width > 140 cm
A145: 14010210120 | B145: Bedding_for_trade_market, Slatted frame, Min. 75% uncertified solid wood ,Width > 140 cm
A146: 14010220120 | B146: Bedding_for_trade_market, Slatted frame, Min. 75% metal ,Width > 140 cm
A147: 14010230120 | B147: Bedding_for_trade_market, Slatted frame, Min. 75% mix of certified solid wood and metal ,Width > 140 cm
A148: 14010240120 | B148: Bedding_for_trade_market, Slatted frame, Particleboard and/or wood and/or metal, more than 75% ,Width > 140 cm
A149: 14010250120 | B149: Bedding_for_trade_market, Slatted frame, Particleboard, more than 75% ,Width > 140 cm
A150: 14013000120 | B150: Bedding_for_trade_market, Electric or mechanically adjustable bed base, Unknown ,Width > 140 cm
A151: 14013010120 | B151: Bedding_for_trade_market, Electric or mechanically adjustable bed base, > 50% wood, wood panels, and wood derivatives ,Width > 140 cm
A152: 14013020120 | B152: Bedding_for_trade_market, Electric or mechanically adjustable bed base, > 50% metal ,Width > 140 cm
A153: 14013030120 | B153: Bedding_for_trade_market, Electric or mechanically adjustable bed base, Bamboo/rattan ,Width > 140 cm
A154: 14013040120 | B154: Bedding_for_trade_market, Electric or mechanically adjustable bed base, > 50% biosourced materials or non-synthetic textiles ,Width > 140 cm
A155: 14013050120 | B155: Bedding_for_trade_market, Electric or mechanically adjustable bed base, Plastics ,Width > 140 cm
A156: 14013120120 | B156: Bedding_for_trade_market, Electric or mechanically adjustable bed base, Other ,Width > 140 cm
A157: 14013130120 | B157: Bedding_for_trade_market, Electric or mechanically adjustable bed base, Natural stuffing (down, wool, etc.) ,Width > 140 cm
A158: 14013140120 | B158: Bedding_for_trade_market, Electric or mechanically adjustable bed base, Synthetic stuffing (foam, polyester, etc.) ,Width > 140 cm
A159: 14013200120 | B159: Bedding_for_trade_market, Electric or mechanically adjustable bed base, Min. 75% certified solid wood ,Width > 140 cm
A160: 14013210120 | B160: Bedding_for_trade_market, Electric or mechanically adjustable bed base, Min. 75% uncertified solid wood ,Width > 140 cm
A161: 14013220120 | B161: Bedding_for_trade_market, Electric or mechanically adjustable bed base, Min. 75% metal ,Width > 140 cm
A162: 14013230120 | B162: Bedding_for_trade_market, Electric or mechanically adjustable bed base, Min. 75% mix of certified solid wood and metal ,Width > 140 cm
A163: 14013240120 | B163: Bedding_for_trade_market, Electric or mechanically adjustable bed base, Particleboard and/or wood and/or metal, more than 75% ,Width > 140 cm
A164: 14013250120 | B164: Bedding_for_trade_market, Electric or mechanically adjustable bed base, Particleboard, more than 75% ,Width > 140 cm
A165: 14023000120 | B165: Bedding_for_trade_market, Inflatable mattress, Unknown ,Width > 140 cm
A166: 14024000120 | B166: Bedding_for_trade_market, Storage bed, Unknown ,Width > 140 cm
A167: 14024010120 | B167: Bedding_for_trade_market, Storage bed, > 50% wood, wood panels, and wood derivatives ,Width > 140 cm
A168: 14024020120 | B168: Bedding_for_trade_market, Storage bed, > 50% metal ,Width > 140 cm
A169: 14024030120 | B169: Bedding_for_trade_market, Storage bed, Bamboo/rattan ,Width > 140 cm
A170: 14024040120 | B170: Bedding_for_trade_market, Storage bed, > 50% biosourced materials or non-synthetic textiles ,Width > 140 cm
A171: 14024050120 | B171: Bedding_for_trade_market, Storage bed, Plastics ,Width > 140 cm
A172: 14024120120 | B172: Bedding_for_trade_market, Storage bed, Other ,Width > 140 cm
A173: 14024130120 | B173: Bedding_for_trade_market, Storage bed, Natural stuffing (down, wool, etc.) ,Width > 140 cm
A174: 14024140120 | B174: Bedding_for_trade_market, Storage bed, Synthetic stuffing (foam, polyester, etc.) ,Width > 140 cm
A175: 14024200120 | B175: Bedding_for_trade_market, Storage bed, Min. 75% certified solid wood ,Width > 140 cm
A176: 14024210120 | B176: Bedding_for_trade_market, Storage bed, Min. 75% uncertified solid wood ,Width > 140 cm
A177: 14024220120 | B177: Bedding_for_trade_market, Storage bed, Min. 75% metal ,Width > 140 cm
A178: 14024230120 | B178: Bedding_for_trade_market, Storage bed, Min. 75% mix of certified solid wood and metal ,Width > 140 cm
A179: 14024240120 | B179: Bedding_for_trade_market, Storage bed, Particleboard and/or wood and/or metal, more than 75% ,Width > 140 cm
A180: 14024250120 | B180: Bedding_for_trade_market, Storage bed, Particleboard, more than 75% ,Width > 140 cm
A181: 14060090120 | B181: Bedding_for_trade_market, Mattress thickness ≤ 10 cm, Foam ,Width > 140 cm
A182: 14060100120 | B182: Bedding_for_trade_market, Mattress thickness ≤ 10 cm, Latex ,Width > 140 cm
A183: 14060110120 | B183: Bedding_for_trade_market, Mattress thickness ≤ 10 cm, Springs ,Width > 140 cm
A184: 14060120120 | B184: Bedding_for_trade_market, Mattress thickness ≤ 10 cm, Other ,Width > 140 cm
A185: 14061090120 | B185: Bedding_for_trade_market, Mattress thickness > 10 cm, Foam ,Width > 140 cm
A186: 14061100120 | B186: Bedding_for_trade_market, Mattress thickness > 10 cm, Latex ,Width > 140 cm
A187: 14061110120 | B187: Bedding_for_trade_market, Mattress thickness > 10 cm, Springs ,Width > 140 cm
A188: 14061120120 | B188: Bedding_for_trade_market, Mattress thickness > 10 cm, Other ,Width > 140 cm
A189: 14062000120 | B189: Bedding_for_trade_market, Bed base (excluding relaxation bed base and storage bed), Unknown ,Width > 140 cm
A190: 14062010120 | B190: Bedding_for_trade_market, Bed base (excluding relaxation bed base and storage bed), > 50% wood, wood panels, and wood derivatives ,Width > 140 cm
A191: 14062020120 | B191: Bedding_for_trade_market, Bed base (excluding relaxation bed base and storage bed), > 50% metal ,Width > 140 cm
A192: 14062030120 | B192: Bedding_for_trade_market, Bed base (excluding relaxation bed base and storage bed), Bamboo/rattan ,Width > 140 cm
A193: 14062040120 | B193: Bedding_for_trade_market, Bed base (excluding relaxation bed base and storage bed), > 50% biosourced materials or non-synthetic textiles ,Width > 140 cm
A194: 14062050120 | B194: Bedding_for_trade_market, Bed base (excluding relaxation bed base and storage bed), Plastics ,Width > 140 cm
A195: 14062120120 | B195: Bedding_for_trade_market, Bed base (excluding relaxation bed base and storage bed), Other ,Width > 140 cm
A196: 14062130120 | B196: Bedding_for_trade_market, Bed base (excluding relaxation bed base and storage bed), Natural stuffing (down, wool, etc.) ,Width > 140 cm
A197: 14062140120 | B197: Bedding_for_trade_market, Bed base (excluding relaxation bed base and storage bed), Synthetic stuffing (foam, polyester, etc.) ,Width > 140 cm
A198: 14062200120 | B198: Bedding_for_trade_market, Bed base (excluding relaxation bed base and storage bed), Min. 75% certified solid wood ,Width > 140 cm
A199: 14062210120 | B199: Bedding_for_trade_market, Bed base (excluding relaxation bed base and storage bed), Min. 75% uncertified solid wood ,Width > 140 cm
A200: 14062220120 | B200: Bedding_for_trade_market, Bed base (excluding relaxation bed base and storage bed), Min. 75% metal ,Width > 140 cm
... 15 more rows
